Workbook

Sheet OErtliNERGY
D2: Bilans de consommation énergétique
C3: Bilans de consommation énergétique - OErtliNERGY -
J5: Version 01/2021
I9: Version 07/2021
B11: Identification de l'étude
A15: ► | B15: Rénovation | I15: =TODAY() -> 2021-07-29
B17: Données géographiques
B20: Département de l'installation | D20: Commune | F20: Zone climatique
B21: 67 - Bas-Rhin | D21: MERTZWILLER | F21: =Communes!L12 -> H1b
B23: Altitude | D23: Température extérieure de base en °C
B24: 169 | D24: =Communes!L11 -> -15
B26: Caractéristiques du bâtiment
B30: Surface de la maison en m² | D30: Hauteur sous plafond en m | F30: Température de confort en °C
B31: 120 | D31: 2.5 | F31: 19
B33: Energie actuelle dans le bâtiment | D33: Rendement annuel du système de chauffage actuel | F33: ECS actuelle
B34: Gaz naturel | D34: Rendement annuel = 80% | F34: Idem chauffage
B36: Deuxième énergie dans le bâtiment ?
B37: OUI
B39: Quelle est cette deuxième énergie ? | D39: Rendement annuel de la deuxième énergie
B40: Electrique (clim…) | D40: Electrique
B42: Estimation des besoins en énergie par an (Chauffage + ECS)
B44: Nombre de personnes | D44: Consommation d'eau chaude
B45: 4 | D45: Normale (50 l/j à 55°C)
B47: Niveau d'isolation connu (G)
B48: NON
B50: Consommation actuelle d'énergie | D50: Consommation de la deuxième énergie par an | F50: Consommation totale d'énergie par an
B51: 2000 | C51: =IF($B$37="NON","","+") -> + | D51: 150 | E51: = | F51: =IF($B$37="OUI",'calculs réno'!D178,IF($B$37="NON",'calculs réno'!D172,"")) -> 2015
B52: =VLOOKUP(B34,conso,2,FALSE) -> m3 de gaz naturel | D52: =VLOOKUP(B40,conso2,2,FALSE) -> kWh électrique | F52: =B52 -> m3 de gaz naturel
F53: Conversion consommation 2ème énergie en consommation actuelle
D54: Niveau d'isolation G estimé
D55: =IFERROR('calculs réno'!H195,0) -> 0.82
D56: =IF(B48="NON","Valeur de G estimée à renseigner dans Niveau d'isolation (G)","") -> Valeur de G estimée à renseigner dans Niveau d'isolation (G)
B58: Niveau d'isolation G | D58: Déperditions en kW
B59: 0.82 | D59: ='calculs réno'!C118 -> 8.4
B62: Récapitulatif de l'estimation des besoins Chauffage et ECS
B64: Besoins annuels total en kWh | D64: Besoins chauffage annuels en kWh | F64: Besoins ECS en kWh
B65: ='calculs réno'!C122 -> 16590.5 | C65: = | D65: ='calculs réno'!C119 -> 12398.4 | E65: + | F65: ='calculs réno'!C121 -> 4192.1
B67: Installation solaire
B69: Type d'installation solaire désirée | D69: Taux de couverture ECS en % | F69: Taux de couverture Chauffage en %
B70: Aucune | D70: 60 | F70: 20
B72: Estimatif des coûts énergétiques annuels
B77: Type d'Installation | C77: Rendement du générateur sur PCI | D77: Coût ECS en € TTC hors solaire (HC en élec) | E77: Coût chauffage en € TTC hors solaire (1/3 HC - 2/3 HP)** | F77: =IF(B70="Aucune","Coût total sans Solaire en € TTC","Coût total avec Solaire en € TTC") -> Coût total sans Solaire en € TTC
B78: Installation actuelle | C78: ='calculs réno'!E183 -> 0.8 | D78: ='calculs réno'!E132 -> 441.9172083 | E78: ='calculs réno'!F132 -> 1408.758 | F78: =IF($B$70="Aucune",'calculs réno'!G132,IF($B$70="CESI",'calculs réno'!H132,'calculs réno'!I132)) -> 1850.675208
B79: Tout électrique | C79: 1 | D79: ='calculs réno'!E133 -> 563.41824 | E79: ='calculs réno'!F133 -> 2121.5232 | F79: =IF($B$70="Aucune",'calculs réno'!G133,IF($B$70="CESI",'calculs réno'!H133,'calculs réno'!I133)) -> 2684.94144
B80: PAC Air / Eau (Ap. Fioul) | C80: COP de 3,5* | D80: ='calculs réno'!E134 -> 563.41824 | E80: ='calculs réno'!F134 -> 633.8352 | F80: =IF($B$70="Aucune",'calculs réno'!G134,IF($B$70="CESI",'calculs réno'!H134,'calculs réno'!I134)) -> 1197.25344
B81: PAC Sol-Eau / Eau | C81: COP de 4* | D81: ='calculs réno'!E135 -> 563.41824 | E81: ='calculs réno'!F135 -> 560.9208 | F81: =IF($B$70="Aucune",'calculs réno'!G135,IF($B$70="CESI",'calculs réno'!H135,'calculs réno'!I135)) -> 1124.33904
B82: Bois bûches | C82: 0.85 | D82: ='calculs réno'!E136 -> 172.6158824 | E82: ='calculs réno'!F136 -> 510.5223529 | F82: =IF($B$70="Aucune",'calculs réno'!G136,IF($B$70="CESI",'calculs réno'!H136,'calculs réno'!I136)) -> 683.1382353
B83: Bois granulés | C83: 0.85 | D83: ='calculs réno'!E137 -> 286.4601667 | E83: ='calculs réno'!F137 -> 847.224 | F83: =IF($B$70="Aucune",'calculs réno'!G137,IF($B$70="CESI",'calculs réno'!H137,'calculs réno'!I137)) -> 1133.684167
B84: Gaz Condensation | C84: 109%* | D84: ='calculs réno'!E138 -> 324.3429052 | E84: ='calculs réno'!F138 -> 1061.024587 | F84: =IF($B$70="Aucune",'calculs réno'!G138,IF($B$70="CESI",'calculs réno'!H138,'calculs réno'!I138)) -> 1385.367492
B85: Gaz | C85: 0.93 | D85: ='calculs réno'!E139 -> 380.1438351 | E85: ='calculs réno'!F139 -> 1226.059355 | F85: =IF($B$70="Aucune",'calculs réno'!G139,IF($B$70="CESI",'calculs réno'!H139,'calculs réno'!I139)) -> 1606.20319
B86: Fioul condensation | C86: 104%* | D86: ='calculs réno'!E140 -> 293.8500865 | E86: ='calculs réno'!F140 -> 869.0801538 | F86: =IF($B$70="Aucune",'calculs réno'!G140,IF($B$70="CESI",'calculs réno'!H140,'calculs réno'!I140)) -> 1162.93024
B87: Fioul | C87: 0.93 | D87: ='calculs réno'!E141 -> 328.6065484 | E87: ='calculs réno'!F141 -> 971.8745806 | F87: =IF($B$70="Aucune",'calculs réno'!G141,IF($B$70="CESI",'calculs réno'!H141,'calculs réno'!I141)) -> 1300.481129
B88: Propane condensation | C88: 107%* | D88: ='calculs réno'!E142 -> 574.3568785 | E88: ='calculs réno'!F142 -> 1698.696673 | F88: =IF($B$70="Aucune",'calculs réno'!G142,IF($B$70="CESI",'calculs réno'!H142,'calculs réno'!I142)) -> 2273.053551
B89: Propane | C89: 0.93 | D89: ='calculs réno'!E143 -> 660.8192043 | E89: ='calculs réno'!F143 -> 1954.414452 | F89: =IF($B$70="Aucune",'calculs réno'!G143,IF($B$70="CESI",'calculs réno'!H143,'calculs réno'!I143)) -> 2615.233656
B90: *Rendements avec des émetteurs basse température **Abonnement inclus
B119: Les résultats de cette feuille de calcul sont donnés à titre indicatif. La responsabilité de Oertli ne peut en aucun cas être engagée sur le résultat ou tout autre utilisation.

Sheet Coûts Energies
C3: Coûts des énergies
I8: Version 07/2021
C10: Electricité
C12: Tarif de base | G12: Tarif HP/HC
C14: Electricité : Prix de 100 kWh en € TTC | E14: Au 01/2021 | G14: Electricité : Prix de 100 kWh en € TTC | I14: =E14 -> Au 01/2021
C15: 3 kVA | D15: 15.57 | E15: 15.57 | G15: HP : Heures Pleines | H15: 17.98 | I15: 17.98
C16: 6 kVA | D16: 15.57 | E16: 15.57 | G16: HC : Heures Creuses | H16: 13.44 | I16: 13.44
C17: 9 kVA | D17: 15.97 | E17: 15.97
C18: 12 kVA | D18: 15.97 | E18: 15.97
C19: 15 kVA | D19: 15.97 | E19: 15.97
C20: 18 kVA | D20: 15.97 | E20: 15.97
C21: 24 kVA | D21: 15.97 | E21: 15.97
C22: 30 kVA | D22: 15.97 | E22: 15.97
C23: 36 kVA | D23: 15.97 | E23: 15.97
C25: Abonnement annuel en € TTC | E25: =E14 -> Au 01/2021 | G25: Abonnement annuel en € TTC | I25: =E14 -> Au 01/2021
C26: 3 kVA | D26: 103.08 | E26: 103.08 | G26: 6 kVA | H26: 139.2 | I26: 139.2
C27: 6 kVA | D27: 127.92 | E27: 127.92 | G27: 9 kVA | H27: 172.08 | I27: 172.08
C28: 9 kVA | D28: 152.64 | E28: 152.64 | G28: 12 kVA | H28: 203.16 | I28: 203.16
C29: 12 kVA | D29: 177.48 | E29: 177.48 | G29: 15 kVA | H29: 232.56 | I29: 232.56
C30: 15 kVA | D30: 201.48 | E30: 201.48 | G30: 18 kVA | H30: 259.56 | I30: 259.56
C31: 18 kVA | D31: 226.08 | E31: 226.08 | G31: 24 kVA | H31: 320.64 | I31: 320.64
C32: 24 kVA | D32: 279.6 | E32: 279.6 | G32: 30 kVA | H32: 354.12 | I32: 354.12
C33: 30 kVA | D33: 335.76 | E33: 335.76 | G33: 36 kVA | H33: 401.52 | I33: 401.52
C34: 36 kVA | D34: 377.16 | E34: 377.16
C36: Gaz tarif réglementé
C40: Gaz : Prix de 100 kWh PCS en € TTC | E40: =E14 -> Au 01/2021 | G40: Abonnement annuel en € TTC | I40: =E14 -> Au 01/2021
C41: Tarif Base | D41: 7.59 | E41: 7.59 | G41: Tarif B1 | H41: 101.76 | I41: 101.76
C42: Tarif B0 | D42: 7.59 | E42: 7.59 | G42: Tarif B0 | H42: 101.76 | I42: 101.76
C43: Tarif B1 | D43: 5.12 | E43: 5.12 | G43: Tarif B1 | H43: 248.64 | I43: 248.64
C44: Tarif B2l | D44: 5.12 | E44: 5.12 | G44: Tarif B12l | H44: 248.64 | I44: 248.64
C46: Fioul
C50: Fioul : Prix de 100 kWh PCI en € TTC | E50: =E14 -> Au 01/2021
C51: Fioul | D51: 7.29 | E51: 7.29
C54: Propane
C58: Propane : Prix de 100 kWh PCI en € TTC | E58: =E14 -> Au 01/2021
C59: Propane | D59: 14.66 | E59: 14.66
C62: Bois
C66: Bois bûche : Prix du stère en € TTC | E66: Au 09/2020 | G66: Granulé bois : Prix de la tonne en € TTC | I66: Au 09/2020
C67: Bois | D67: 70 | E67: 70 | G67: Granulé bois | H67: 278.8 | I67: 278.8
C70: Correspondance Energétique
C72: 1 litre fioul | D72: 10 | E72: kWh PCI | F72: 10.63829787 | G72: kWh PCS
C73: 1 m3 gaz naturel | D73: 10 | E73: kWh PCI | F73: 11.11111111 | G73: kWh PCS
C74: 1 kg propane | D74: 12.8 | E74: kWh PCI | F74: 13.91304348 | G74: kWh PCS
C75: 1 kg Granulés | D75: 4.8 | E75: kWh PCI
C76: 1 Stère de bûche | D76: 2000 | E76: kWh PCI
C79: Tarifs EDF elec : | D79: https://selectra.info/energie/fournisseurs/edf/tarifs
D80: https://www.kelwatt.fr/fournisseurs/edf/prix/tarifs-2021
C82: Source tarif energies : | D82: http://developpement-durable.bsocom.fr/statistiques/ReportFolders/reportFolders.aspx
D83: https://www.kelwatt.fr/prix/engie

Sheet Communes (hidden)
A1: Index | B1: Code Dép | C1: Département | D1: Formule pour liste commune : | E1: Commune | F1: Formule département | G1: Zone | H1: Altitude Moyenne | I1: Formule altitude
A2: 1 | B2: 1 | C2: AIN | D2: =IF($L$2=F2,1,0) -> 0 | E2: AMBRONAY | F2: =B2&" - "&C2 -> 1 - AIN | G2: G | H2: 309 | I2: =IF(AND(H2>=0,H2<=200),$M$19, IF(AND(H2>=201,H2<=400),$M$20, IF(AND(H2>=401,H2<=600),$M$21, IF(AND(H2>=601,H2<=800),$M$22, IF(AND(H2>=801,H2<=1000),$M$23, IF(AND(H2>=1001,H2<=1200),$M$24, IF(AND(H2>=1201,H2<=1400),$M$25, IF(AND(H2>=1401,H2<=1600),$M$26, IF(AND(H2>=1601,H2<=1800),$M$27, IF(AND(H2>=1801,H2<=2000),$M$28, IF(AND(H2>=2001,H2<=2200),$M$29, IF(AND(H2>=2201,H2<=2400),$M$30, IF(AND(H2>=2401,H2<=2600),$M$31,"erreur"))))))))))))) -> 201 à 400 m | K2: Données : | L2: =OErtliNERGY!B21 -> 67 - Bas-Rhin | N2: Liens : | O2: https://www.rothelec.fr/temperature-exterieure-de-base-zone-geographique | X2: Liste déroulante choix comune : | AB2: Formule tri : | AC2: Liste finale dans l'ordre :
A3: 2 | B3: 1 | C3: AIN | D3: =IF($L$2=F3,1+D2,0) -> 0 | E3: LAGNIEU | F3: =B3&" - "&C3 -> 1 - AIN | G3: G | H3: 265 | I3: =IF(AND(H3>=0,H3<=200),$M$19, IF(AND(H3>=201,H3<=400),$M$20, IF(AND(H3>=401,H3<=600),$M$21, IF(AND(H3>=601,H3<=800),$M$22, IF(AND(H3>=801,H3<=1000),$M$23, IF(AND(H3>=1001,H3<=1200),$M$24, IF(AND(H3>=1201,H3<=1400),$M$25, IF(AND(H3>=1401,H3<=1600),$M$26, IF(AND(H3>=1601,H3<=1800),$M$27, IF(AND(H3>=1801,H3<=2000),$M$28, IF(AND(H3>=2001,H3<=2200),$M$29, IF(AND(H3>=2201,H3<=2400),$M$30, IF(AND(H3>=2401,H3<=2600),$M$31,"erreur"))))))))))))) -> 201 à 400 m | L3: =OErtliNERGY!D21 -> MERTZWILLER | O3: https://www.data.gouv.fr/fr/datasets/correspondance-entre-les-codes-postaux-et-codes-insee-des-communes-francaises/ | W3: 1 | X3: =IFERROR(VLOOKUP(W3,$D$2:$F$36613,2,FALSE),"") -> DURNINGEN | AB3: =IF(X3="","",SUMPRODUCT((X$3:X$897<=X3)-(ISBLANK(X$3:X$897)))) -> 472 | AC3: =IF(ISNA(MATCH(MIN(AB$3:AB$897)+ROW()-ROW(AC$3),AB$3:AB$897,0)),"",INDEX(X$3:X$897,MATCH(MIN(AB$3:AB$897)+ROW()-ROW(AC$3),AB$3:AB$897,0))) -> ACHENHEIM | AF3: =LOOKUP("zzzzz",CHOOSE({1.2},"",INDEX($AC$2:$AC$897,SMALL(IF($AC$2:$AC$897<>"",ROWS($AC$2:$AC$897)),ROWS($AF$3:AF3))))) -> 
A4: 3 | B4: 1 | C4: AIN | D4: =IF($L$2=F4,1+D3,0) -> 0 | E4: SAINT-ELOI | F4: 1 - AIN | G4: G | H4: 284 | I4: 201 à 400 m | L4: =VLOOKUP(L2,F:G,2,FALSE) -> I | O4: http://www.annuaire-des-mairies.com/ | W4: 2 | X4: ALTORF | AB4: =IF(X4="","",SUMPRODUCT((X$3:X$897<=X4)-(ISBLANK(X$3:X$897)))) -> 375 | AC4: =IF(ISNA(MATCH(MIN(AB$3:AB$897)+ROW()-ROW(AC$3),AB$3:AB$897,0)),"",INDEX(X$3:X$897,MATCH(MIN(AB$3:AB$897)+ROW()-ROW(AC$3),AB$3:AB$897,0))) -> ADAMSWILLER
A5: 4 | B5: 1 | C5: AIN | D5: 0 | E5: POUGNY | F5: 1 - AIN | G5: G | H5: 387 | I5: 201 à 400 m | L5: =VLOOKUP(L3,E:I,5,FALSE) -> 0 à 200 m | M5: =IF(AND(M6>=0,M6<=200),$M$19, IF(AND(M6>=201,M6<=400),$M$20, IF(AND(M6>=401,M6<=600),$M$21, IF(AND(M6>=601,M6<=800),$M$22, IF(AND(M6>=801,M6<=1000),$M$23, IF(AND(M6>=1001,M6<=1200),$M$24, IF(AND(M6>=1201,M6<=1400),$M$25, IF(AND(M6>=1401,M6<=1600),$M$26, IF(AND(M6>=1601,M6<=1800),$M$27, IF(AND(M6>=1801,M6<=2000),$M$28, IF(AND(M6>=2001,M6<=2200),$M$29, IF(AND(M6>=2201,M6<=2400),$M$30, IF(AND(M6>=2401,M6<=2600),$M$31,"erreur"))))))))))))) -> 0 à 200 m | W5: 3 | X5: ROSTEIG | AB5: =IF(X5="","",SUMPRODUCT((X$3:X$897<=X5)-(ISBLANK(X$3:X$897)))) -> 754 | AC5: ALBE
A6: 5 | B6: 1 | C6: AIN | D6: 0 | E6: VIRIGNIN | F6: 1 - AIN | G6: G | H6: 275 | I6: 201 à 400 m | L6: =VLOOKUP(L3,E:H,4,FALSE) -> 169 | M6: =OErtliNERGY!B24 -> 169 | P6: = formule | W6: 4 | X6: HAGUENAU | AB6: =IF(X6="","",SUMPRODUCT((X$3:X$897<=X6)-(ISBLANK(X$3:X$897)))) -> 537 | AC6: ALLENWILLER
A7: 6 | B7: 1 | C7: AIN | D7: 0 | E7: FARAMANS | F7: 1 - AIN | G7: G | H7: 283 | I7: 201 à 400 m | P7: = formule/donnée qui ne se déroule pas (change à chaque dép) | W7: 5 | X7: WESTHOUSE-MARMOUTIER | AB7: =IF(X7="","",SUMPRODUCT((X$3:X$897<=X7)-(ISBLANK(X$3:X$897)))) -> 864 | AC7: ALTECKENDORF
A8: 7 | B8: 1 | C8: AIN | D8: 0 | E8: LOCHIEU | F8: 1 - AIN | G8: G | H8: 920 | I8: 801 à 1000 m | K8: n° ligne : | L8: =IF($M$6<>$L$6,MATCH(M5,M19:M31,0),MATCH(L5,M19:M31,0)) -> 1 | P8: = si utilisateur choisi autre altitude que la recherche | W8: 6 | X8: SINGRIST | AB8: =IF(X8="","",SUMPRODUCT((X$3:X$897<=X8)-(ISBLANK(X$3:X$897)))) -> 809 | AC8: ALTENHEIM
A9: 8 | B9: 1 | C9: AIN | D9: 0 | E9: IZERNORE | F9: 1 - AIN | G9: G | H9: 535 | I9: 401 à 600 m | K9: n° colonne : | L9: =MATCH(L4,N18:V18,0) -> 9 | P9: = colonne D formule différente pour 1ere ville du département | W9: 7 | X9: GRIES | AB9: =IF(X9="","",SUMPRODUCT((X$3:X$897<=X9)-(ISBLANK(X$3:X$897)))) -> 529 | AC9: ALTORF
A10: 9 | B10: 1 | C10: AIN | D10: 0 | E10: ETREZ | F10: 1 - AIN | G10: G | H10: 219 | I10: 201 à 400 m | W10: 8 | X10: SCHOENENBOURG | AB10: =IF(X10="","",SUMPRODUCT((X$3:X$897<=X10)-(ISBLANK(X$3:X$897)))) -> 795 | AC10: ALTWILLER
A11: 10 | B11: 1 | C11: AIN | D11: 0 | E11: GIRON | F11: 1 - AIN | G11: G | H11: 1040 | I11: 1001 à 1200 m | K11: Choix Text de base : | L11: =INDEX(N19:V31,L8,L9) -> -15 | W11: 9 | X11: SAASENHEIM | AB11: =IF(X11="","",SUMPRODUCT((X$3:X$897<=X11)-(ISBLANK(X$3:X$897)))) -> 762 | AC11: ANDLAU
A12: 11 | B12: 1 | C12: AIN | D12: 0 | E12: LA BOISSE | F12: 1 - AIN | G12: G | H12: 230 | I12: 201 à 400 m | K12: Zone climatique : | L12: =VLOOKUP(L2,'calculs réno'!E4:AN99,36,FALSE) -> H1b | W12: 10 | X12: DORLISHEIM | AB12: =IF(X12="","",SUMPRODUCT((X$3:X$897<=X12)-(ISBLANK(X$3:X$897)))) -> 464 | AC12: ARTOLSHEIM
A13: 12 | B13: 1 | C13: AIN | D13: 0 | E13: GEX | F13: 1 - AIN | G13: G | H13: 949 | I13: 801 à 1000 m | W13: 11 | X13: DOSSENHEIM-SUR-ZINSEL | AB13: =IF(X13="","",SUMPRODUCT((X$3:X$897<=X13)-(ISBLANK(X$3:X$897)))) -> 466 | AC13: ASCHBACH
A14: 13 | B14: 1 | C14: AIN | D14: 0 | E14: LENT | F14: 1 - AIN | G14: G | H14: 268 | I14: 201 à 400 m | W14: 12 | X14: DINGSHEIM | AB14: =IF(X14="","",SUMPRODUCT((X$3:X$897<=X14)-(ISBLANK(X$3:X$897)))) -> 460 | AC14: ASSWILLER
A15: 14 | B15: 1 | C15: AIN | D15: 0 | E15: SANDRANS | F15: 1 - AIN | G15: G | H15: 275 | I15: 201 à 400 m | W15: 13 | X15: WESTHOFFEN | AB15: =IF(X15="","",SUMPRODUCT((X$3:X$897<=X15)-(ISBLANK(X$3:X$897)))) -> 862 | AC15: AUENHEIM
A16: 15 | B16: 1 | C16: AIN | D16: 0 | E16: THOISSEY | F16: 1 - AIN | G16: G | H16: 171 | I16: 0 à 200 m | N16: =COUNTIF($G$2:$G$36613,N$18) -> 614 | O16: 2094 | P16: 7375 | Q16: 10188 | R16: 2630 | S16: 2327 | T16: 6462 | U16: 2077 | V16: 2845 | W16: 14 | X16: OBERBRONN | AB16: =IF(X16="","",SUMPRODUCT((X$3:X$897<=X16)-(ISBLANK(X$3:X$897)))) -> 688 | AC16: AVOLSHEIM
A17: 16 | B17: 1 | C17: AIN | D17: 0 | E17: CHAZEY-BONS | F17: 1 - AIN | G17: G | H17: 282 | I17: 201 à 400 m | M17: Altitude | N17: Zone | W17: 15 | X17: WALDHAMBACH | AB17: =IF(X17="","",SUMPRODUCT((X$3:X$897<=X17)-(ISBLANK(X$3:X$897)))) -> 852 | AC17: BAERENDORF
A18: 17 | B18: 1 | C18: AIN | D18: 0 | E18: ARMIX | F18: 1 - AIN | G18: G | H18: 831 | I18: 801 à 1000 m | N18: A | O18: B | P18: C | Q18: D | R18: E | S18: F | T18: G | U18: H | V18: I | W18: 16 | X18: KILSTETT | AB18: =IF(X18="","",SUMPRODUCT((X$3:X$897<=X18)-(ISBLANK(X$3:X$897)))) -> 588 | AC18: BALBRONN
A19: 18 | B19: 1 | C19: AIN | D19: 0 | E19: SAINT-VULBAS | F19: 1 - AIN | G19: G | H19: 206 | I19: 201 à 400 m | M19: 0 à 200 m | N19: -2 | O19: -4 | P19: -5 | Q19: -7 | R19: -8 | S19: -9 | T19: -10 | U19: -12 | V19: -15 | W19: 17 | X19: HILSENHEIM | AB19: =IF(X19="","",SUMPRODUCT((X$3:X$897<=X19)-(ISBLANK(X$3:X$897)))) -> 552 | AC19: BALDENHEIM
A20: 19 | B20: 1 | C20: AIN | D20: 0 | E20: SAINT-LAURENT-SUR-SAONE | F20: 1 - AIN | G20: G | H20: 171 | I20: 0 à 200 m | M20: 201 à 400 m | N20: -4 | O20: -5 | P20: -6 | Q20: -8 | R20: -9 | S20: -10 | T20: -11 | U20: -13 | V20: -15 | W20: 18 | X20: SAINT-MARTIN | AB20: =IF(X20="","",SUMPRODUCT((X$3:X$897<=X20)-(ISBLANK(X$3:X$897)))) -> 766 | AC20: BAREMBACH
A21: 20 | B21: 1 | C21: AIN | D21: 0 | E21: BENONCES | F21: 1 - AIN | G21: G | H21: 702 | I21: 601 à 800 m | M21: 401 à 600 m | N21: -6 | O21: -6 | P21: -7 | Q21: -9 | R21: -11 | S21: -11 | T21: -13 | U21: -15 | V21: -19 | W21: 19 | X21: MUNDOLSHEIM | AB21: =IF(X21="","",SUMPRODUCT((X$3:X$897<=X21)-(ISBLANK(X$3:X$897)))) -> 661 | AC21: BARR
A22: 21 | B22: 1 | C22: AIN | D22: 0 | E22: MONTAGNAT | F22: 1 - AIN | G22: G | H22: 248 | I22: 201 à 400 m | M22: 601 à 800 m | N22: -8 | O22: -7 | P22: -8 | Q22: -11 | R22: -13 | S22: -12 | T22: -14 | U22: -17 | V22: -21 | W22: 20 | X22: BASSEMBERG | AB22: =IF(X22="","",SUMPRODUCT((X$3:X$897<=X22)-(ISBLANK(X$3:X$897)))) -> 388 | AC22: BASSEMBERG
A23: 22 | B23: 1 | C23: AIN | D23: 0 | E23: SAINT-JEAN-SUR-REYSSOUZE | F23: 1 - AIN | G23: G | H23: 198 | I23: 0 à 200 m | M23: 801 à 1000 m | N23: -10 | O23: -8 | P23: -9 | Q23: -13 | R23: -15 | S23: -13 | T23: -17 | U23: -19 | V23: -23 | W23: 21 | X23: BARR | AB23: =IF(X23="","",SUMPRODUCT((X$3:X$897<=X23)-(ISBLANK(X$3:X$897)))) -> 387 | AC23: BATZENDORF
A24: 23 | B24: 1 | C24: AIN | D24: 0 | E24: BEREZIAT | F24: 1 - AIN | G24: G | H24: 201 | I24: 201 à 400 m | M24: 1001 à 1200 m | N24: -12 | O24: -9 | P24: -10 | Q24: -14 | R24: -17 | S24: - | T24: -19 | U24: -23 | V24: -24 | W24: 22 | X24: HOCHFELDEN | AB24: =IF(X24="","",SUMPRODUCT((X$3:X$897<=X24)-(ISBLANK(X$3:X$897)))) -> 558 | AC24: BEINHEIM
A25: 24 | B25: 1 | C25: AIN | D25: 0 | E25: PUGIEU | F25: 1 - AIN | G25: G | H25: 289 | I25: 201 à 400 m | M25: 1201 à 1400 m | N25: -14 | O25: -10 | P25: -11 | Q25: -15 | R25: -19 | S25: - | T25: -21 | U25: -24 | V25: -25 | W25: 23 | X25: BATZENDORF | AB25: =IF(X25="","",SUMPRODUCT((X$3:X$897<=X25)-(ISBLANK(X$3:X$897)))) -> 389 | AC25: BELLEFOSSE
A26: 25 | B26: 1 | C26: AIN | D26: 0 | E26: VERSONNEX | F26: 1 - AIN | G26: G | H26: 477 | I26: 401 à 600 m | M26: 1401 à 1600 m | N26: -16 | O26: - | P26: -12 | Q26: - | R26: -21 | S26: - | T26: -23 | U26: - | V26: - | W26: 24 | X26: ORSCHWILLER | AB26: =IF(X26="","",SUMPRODUCT((X$3:X$897<=X26)-(ISBLANK(X$3:X$897)))) -> 708 | AC26: BELMONT
A27: 26 | B27: 1 | C27: AIN | D27: 0 | E27: SAINT-GEORGES-SUR-RENON | F27: 1 - AIN | G27: G | H27: 265 | I27: 201 à 400 m | M27: 1601 à 1800 m | N27: -18 | O27: - | P27: -13 | Q27: - | R27: -23 | S27: - | T27: -24 | U27: - | V27: - | W27: 25 | X27: BOUXWILLER | AB27: =IF(X27="","",SUMPRODUCT((X$3:X$897<=X27)-(ISBLANK(X$3:X$897)))) -> 426 | AC27: BENFELD
A28: 27 | B28: 1 | C28: AIN | D28: 0 | E28: JUJURIEUX | F28: 1 - AIN | G28: G | H28: 363 | I28: 201 à 400 m | M28: 1801 à 2000 m | N28: -20 | O28: - | P28: -14 | Q28: - | R28: -25 | S28: - | T28: -25 | U28: - | V28: - | W28: 26 | X28: OTTERSTHAL | AB28: =IF(X28="","",SUMPRODUCT((X$3:X$897<=X28)-(ISBLANK(X$3:X$897)))) -> 712 | AC28: BERG
A29: 28 | B29: 1 | C29: AIN | D29: 0 | E29: CONZIEU | F29: 1 - AIN | G29: G | H29: 444 | I29: 401 à 600 m | M29: 2001 à 2200 m | N29: - | O29: - | P29: -15 | Q29: - | R29: -27 | S29: - | T29: -29 | U29: - | V29: - | W29: 27 | X29: LIPSHEIM | AB29: =IF(X29="","",SUMPRODUCT((X$3:X$897<=X29)-(ISBLANK(X$3:X$897)))) -> 622 | AC29: BERGBIETEN
A30: 29 | B30: 1 | C30: AIN | D30: 0 | E30: PIRAJOUX | F30: 1 - AIN | G30: G | H30: 211 | I30: 201 à 400 m | K30: ajout car n'était pas dispo sur le site | M30: 2201 à 2400 m | N30: - | O30: - | P30: -17 | Q30: - | R30: -29 | S30: - | T30: -30 | U30: - | V30: - | W30: 28 | X30: WOLXHEIM | AB30: =IF(X30="","",SUMPRODUCT((X$3:X$897<=X30)-(ISBLANK(X$3:X$897)))) -> 889 | AC30: BERNARDSWILLER
A31: 30 | B31: 1 | C31: AIN | D31: 0 | E31: EVOSGES | F31: 1 - AIN | G31: G | H31: 831 | I31: 801 à 1000 m | M31: 2401 à 2600 m | N31: - | O31: - | P31: -19 | Q31: - | R31: -30 | S31: - | T31: -30 | U31: - | V31: - | W31: 29 | X31: ECKBOLSHEIM | AB31: =IF(X31="","",SUMPRODUCT((X$3:X$897<=X31)-(ISBLANK(X$3:X$897)))) -> 480 | AC31: BERNARDVILLE
A32: 31 | B32: 1 | C32: AIN | D32: 0 | E32: BEARD-GEOVREISSIAT | F32: 1 - AIN | G32: G | H32: 533 | I32: 401 à 600 m | W32: 30 | X32: URBEIS | AB32: =IF(X32="","",SUMPRODUCT((X$3:X$897<=X32)-(ISBLANK(X$3:X$897)))) -> 839 | AC32: BERNOLSHEIM
A33: 32 | B33: 1 | C33: AIN | D33: 0 | E33: NEUVILLE-LES-DAMES | F33: 1 - AIN | G33: G | H33: 243 | I33: 201 à 400 m | W33: 31 | X33: BETSCHDORF | AB33: =IF(X33="","",SUMPRODUCT((X$3:X$897<=X33)-(ISBLANK(X$3:X$897)))) -> 401 | AC33: BERSTETT
A34: 33 | B34: 1 | C34: AIN | D34: 0 | E34: SAINT-ANDRE-DE-CORCY | F34: 1 - AIN | G34: G | H34: 291 | I34: 201 à 400 m | M34: Altitude | N34: Coeff correction altitude | W34: 32 | X34: BERG | AB34: =IF(X34="","",SUMPRODUCT((X$3:X$897<=X34)-(ISBLANK(X$3:X$897)))) -> 394 | AC34: BERSTHEIM
A35: 34 | B35: 1 | C35: AIN | D35: 0 | E35: CHAVANNES-SUR-REYSSOUZE | F35: 1 - AIN | G35: G | H35: 198 | I35: 0 à 200 m | M35: 0 à 200 m | N35: 1 | W35: 33 | X35: HARSKIRCHEN | AB35: =IF(X35="","",SUMPRODUCT((X$3:X$897<=X35)-(ISBLANK(X$3:X$897)))) -> 540 | AC35: BETSCHDORF
A36: 35 | B36: 1 | C36: AIN | D36: 0 | E36: RAMASSE | F36: 1 - AIN | G36: G | H36: 394 | I36: 201 à 400 m | M36: 201 à 400 m | N36: 1.01 | W36: 34 | X36: VILLE | AB36: =IF(X36="","",SUMPRODUCT((X$3:X$897<=X36)-(ISBLANK(X$3:X$897)))) -> 846 | AC36: BETTWILLER
A37: 36 | B37: 1 | C37: AIN | D37: 0 | E37: BANEINS | F37: 1 - AIN | G37: G | H37: 242 | I37: 201 à 400 m | M37: 401 à 600 m | N37: 1.03 | W37: 35 | X37: BOURGHEIM | AB37: =IF(X37="","",SUMPRODUCT((X$3:X$897<=X37)-(ISBLANK(X$3:X$897)))) -> 425 | AC37: BIBLISHEIM
A38: 37 | B38: 1 | C38: AIN | D38: 0 | E38: REYSSOUZE | F38: 1 - AIN | G38: G | H38: 181 | I38: 0 à 200 m | M38: 601 à 800 m | N38: 1.05 | W38: 36 | X38: KRIEGSHEIM | AB38: =IF(X38="","",SUMPRODUCT((X$3:X$897<=X38)-(ISBLANK(X$3:X$897)))) -> 600 | AC38: BIETLENHEIM
A39: 38 | B39: 1 | C39: AIN | D39: 0 | E39: CHALEINS | F39: 1 - AIN | G39: G | H39: 234 | I39: 201 à 400 m | M39: 801 à 1000 m | N39: 1.07 | W39: 37 | X39: MITTELSCHAEFFOLSHEIM | AB39: =IF(X39="","",SUMPRODUCT((X$3:X$897<=X39)-(ISBLANK(X$3:X$897)))) -> 650 | AC39: BILWISHEIM
A40: 39 | B40: 1 | C40: AIN | D40: 0 | E40: SAINT-MARCEL | F40: 1 - AIN | G40: G | H40: 285 | I40: 201 à 400 m | M40: 1001 à 1200 m | N40: 1.09 | W40: 38 | X40: OERMINGEN | AB40: =IF(X40="","",SUMPRODUCT((X$3:X$897<=X40)-(ISBLANK(X$3:X$897)))) -> 702 | AC40: BINDERNHEIM
A41: 40 | B41: 1 | C41: AIN | D41: 0 | E41: SAINT-JEAN-DE-NIOST | F41: 1 - AIN | G41: G | H41: 216 | I41: 201 à 400 m | M41: 1201 à 1400 m | N41: 1.11 | W41: 39 | X41: SCHIRRHOFFEN | AB41: =IF(X41="","",SUMPRODUCT((X$3:X$897<=X41)-(ISBLANK(X$3:X$897)))) -> 790 | AC41: BIRKENWALD
A42: 41 | B42: 1 | C42: AIN | D42: 0 | E42: SAINT-DIDIER-DE-FORMANS | F42: 1 - AIN | G42: G | H42: 221 | I42: 201 à 400 m | M42: 1401 à 1600 m | N42: 1.13 | W42: 40 | X42: MACKENHEIM | AB42: =IF(X42="","",SUMPRODUCT((X$3:X$897<=X42)-(ISBLANK(X$3:X$897)))) -> 631 | AC42: BISCHHEIM
A43: 42 | B43: 1 | C43: AIN | D43: 0 | E43: SAINT-JEAN-LE-VIEUX | F43: 1 - AIN | G43: G | H43: 292 | I43: 201 à 400 m | M43: 1601 à 1800 m | N43: 1.15 | W43: 41 | X43: WEISLINGEN | AB43: =IF(X43="","",SUMPRODUCT((X$3:X$897<=X43)-(ISBLANK(X$3:X$897)))) -> 859 | AC43: BISCHHOLTZ
A44: 43 | B44: 1 | C44: AIN | D44: 0 | E44: ECHENEVEX | F44: 1 - AIN | G44: G | H44: 985 | I44: 801 à 1000 m | M44: 1801 à 2000 m | N44: 1.17 | W44: 42 | X44: FURDENHEIM | AB44: =IF(X44="","",SUMPRODUCT((X$3:X$897<=X44)-(ISBLANK(X$3:X$897)))) -> 511 | AC44: BISCHOFFSHEIM
A45: 44 | B45: 1 | C45: AIN | D45: 0 | E45: CHEZERY-FORENS | F45: 1 - AIN | G45: G | H45: 996 | I45: 801 à 1000 m | M45: 2001 à 2200m | N45: 1.19 | W45: 43 | X45: SCHAFFHOUSE-PRES-SELTZ | AB45: =IF(X45="","",SUMPRODUCT((X$3:X$897<=X45)-(ISBLANK(X$3:X$897)))) -> 779 | AC45: BISCHWILLER
A46: 45 | B46: 1 | C46: AIN | D46: 0 | E46: SAINT-NIZIER-LE-DESERT | F46: 1 - AIN | G46: G | H46: 281 | I46: 201 à 400 m | M46: 2201 à 2400m | N46: 1.21 | W46: 44 | X46: SARRE-UNION | AB46: =IF(X46="","",SUMPRODUCT((X$3:X$897<=X46)-(ISBLANK(X$3:X$897)))) -> 774 | AC46: BISSERT
A47: 46 | B47: 1 | C47: AIN | D47: 0 | E47: BRENS | F47: 1 - AIN | G47: G | H47: 252 | I47: 201 à 400 m | M47: 2401 à 2600m | N47: 1.23 | W47: 45 | X47: PREUSCHDORF | AB47: =IF(X47="","",SUMPRODUCT((X$3:X$897<=X47)-(ISBLANK(X$3:X$897)))) -> 723 | AC47: BITSCHHOFFEN
A48: 47 | B48: 1 | C48: AIN | D48: 0 | E48: ARANDAS | F48: 1 - AIN | G48: G | H48: 749 | I48: 601 à 800 m | W48: 46 | X48: OBERROEDERN | AB48: =IF(X48="","",SUMPRODUCT((X$3:X$897<=X48)-(ISBLANK(X$3:X$897)))) -> 697 | AC48: BLAESHEIM
A49: 48 | B49: 1 | C49: AIN | D49: 0 | E49: SAINT-ALBAN | F49: 1 - AIN | G49: G | H49: 521 | I49: 401 à 600 m | W49: 47 | X49: LA BROQUE | AB49: =IF(X49="","",SUMPRODUCT((X$3:X$897<=X49)-(ISBLANK(X$3:X$897)))) -> 604 | AC49: BLANCHERUPT
A50: 49 | B50: 1 | C50: AIN | D50: 0 | E50: BOULIGNEUX | F50: 1 - AIN | G50: G | H50: 282 | I50: 201 à 400 m | W50: 48 | X50: MULHAUSEN | AB50: =IF(X50="","",SUMPRODUCT((X$3:X$897<=X50)-(ISBLANK(X$3:X$897)))) -> 659 | AC50: BLIENSCHWILLER
A51: 50 | B51: 1 | C51: AIN | D51: 0 | E51: CURTAFOND | F51: 1 - AIN | G51: G | H51: 216 | I51: 201 à 400 m | W51: 49 | X51: HEILIGENSTEIN | AB51: =IF(X51="","",SUMPRODUCT((X$3:X$897<=X51)-(ISBLANK(X$3:X$897)))) -> 546 | AC51: BOERSCH
A52: 51 | B52: 1 | C52: AIN | D52: 0 | E52: ARBIGNIEU | F52: 1 - AIN | G52: G | H52: 289 | I52: 201 à 400 m | W52: 50 | X52: GOUGENHEIM | AB52: =IF(X52="","",SUMPRODUCT((X$3:X$897<=X52)-(ISBLANK(X$3:X$897)))) -> 523 | AC52: BOESENBIESEN
A53: 52 | B53: 1 | C53: AIN | D53: 0 | E53: DOUVRES | F53: 1 - AIN | G53: G | H53: 325 | I53: 201 à 400 m | W53: 51 | X53: WALBOURG | AB53: =IF(X53="","",SUMPRODUCT((X$3:X$897<=X53)-(ISBLANK(X$3:X$897)))) -> 850 | AC53: BOLSENHEIM
A54: 53 | B54: 1 | C54: AIN | D54: 0 | E54: CORCELLES | F54: 1 - AIN | G54: G | H54: 898 | I54: 801 à 1000 m | W54: 52 | X54: MUTZIG | AB54: =IF(X54="","",SUMPRODUCT((X$3:X$897<=X54)-(ISBLANK(X$3:X$897)))) -> 665 | AC54: BOOFZHEIM
A55: 54 | B55: 1 | C55: AIN | D55: 0 | E55: CHATILLON-SUR-CHALARONNE | F55: 1 - AIN | G55: G | H55: 246 | I55: 201 à 400 m | W55: 53 | X55: ITTENHEIM | AB55: =IF(X55="","",SUMPRODUCT((X$3:X$897<=X55)-(ISBLANK(X$3:X$897)))) -> 578 | AC55: BOOTZHEIM
A56: 55 | B56: 1 | C56: AIN | D56: 0 | E56: JOURNANS | F56: 1 - AIN | G56: G | H56: 356 | I56: 201 à 400 m | W56: 54 | X56: BRUMATH | AB56: =IF(X56="","",SUMPRODUCT((X$3:X$897<=X56)-(ISBLANK(X$3:X$897)))) -> 430 | AC56: BOSSELSHAUSEN
A57: 56 | B57: 1 | C57: AIN | D57: 0 | E57: MERIGNAT | F57: 1 - AIN | G57: G | H57: 452 | I57: 401 à 600 m | W57: 55 | X57: BITSCHHOFFEN | AB57: =IF(X57="","",SUMPRODUCT((X$3:X$897<=X57)-(ISBLANK(X$3:X$897)))) -> 413 | AC57: BOSSENDORF
A58: 57 | B58: 1 | C58: AIN | D58: 0 | E58: CONFRANCON | F58: 1 - AIN | G58: G | H58: 209 | I58: 201 à 400 m | W58: 56 | X58: ZEHNACKER | AB58: =IF(X58="","",SUMPRODUCT((X$3:X$897<=X58)-(ISBLANK(X$3:X$897)))) -> 890 | AC58: BOURG-BRUCHE
A59: 58 | B59: 1 | C59: AIN | D59: 0 | E59: DAGNEUX | F59: 1 - AIN | G59: G | H59: 220 | I59: 201 à 400 m | W59: 57 | X59: KOGENHEIM | AB59: =IF(X59="","",SUMPRODUCT((X$3:X$897<=X59)-(ISBLANK(X$3:X$897)))) -> 596 | AC59: BOURGHEIM
A60: 59 | B60: 1 | C60: AIN | D60: 0 | E60: SAINT-MAURICE-DE-REMENS | F60: 1 - AIN | G60: G | H60: 224 | I60: 201 à 400 m | W60: 58 | X60: OBERNAI | AB60: =IF(X60="","",SUMPRODUCT((X$3:X$897<=X60)-(ISBLANK(X$3:X$897)))) -> 696 | AC60: BOUXWILLER
A61: 60 | B61: 1 | C61: AIN | D61: 0 | E61: OZAN | F61: 1 - AIN | G61: G | H61: 187 | I61: 0 à 200 m | W61: 59 | X61: HOLTZHEIM | AB61: =IF(X61="","",SUMPRODUCT((X$3:X$897<=X61)-(ISBLANK(X$3:X$897)))) -> 566 | AC61: BREITENAU
A62: 61 | B62: 1 | C62: AIN | D62: 0 | E62: PREMILLIEU | F62: 1 - AIN | G62: G | H62: 885 | I62: 801 à 1000 m | W62: 60 | X62: MARMOUTIER | AB62: =IF(X62="","",SUMPRODUCT((X$3:X$897<=X62)-(ISBLANK(X$3:X$897)))) -> 637 | AC62: BREITENBACH
A63: 62 | B63: 1 | C63: AIN | D63: 0 | E63: SAINT-JULIEN-SUR-REYSSOUZE | F63: 1 - AIN | G63: G | H63: 196 | I63: 0 à 200 m | W63: 61 | X63: BELMONT | AB63: =IF(X63="","",SUMPRODUCT((X$3:X$897<=X63)-(ISBLANK(X$3:X$897)))) -> 392 | AC63: BREUSCHWICKERSHEIM
A64: 63 | B64: 1 | C64: AIN | D64: 0 | E64: COLOMIEU | F64: 1 - AIN | G64: G | H64: 362 | I64: 201 à 400 m | W64: 62 | X64: GOTTESHEIM | AB64: =IF(X64="","",SUMPRODUCT((X$3:X$897<=X64)-(ISBLANK(X$3:X$897)))) -> 522 | AC64: BRUMATH
A65: 64 | B65: 1 | C65: AIN | D65: 0 | E65: SAINT-JEAN-SUR-VEYLE | F65: 1 - AIN | G65: G | H65: 193 | I65: 0 à 200 m | W65: 63 | X65: UTTWILLER | AB65: =IF(X65="","",SUMPRODUCT((X$3:X$897<=X65)-(ISBLANK(X$3:X$897)))) -> 843 | AC65: BUHL
A66: 65 | B66: 1 | C66: AIN | D66: 0 | E66: SAINT-TRIVIER-DE-COURTES | F66: 1 - AIN | G66: G | H66: 206 | I66: 201 à 400 m | W66: 64 | X66: SCHILTIGHEIM | AB66: =IF(X66="","",SUMPRODUCT((X$3:X$897<=X66)-(ISBLANK(X$3:X$897)))) -> 787 | AC66: BURBACH
A67: 66 | B67: 1 | C67: AIN | D67: 0 | E67: MEXIMIEUX | F67: =B67&" - "&C67 -> 1 - AIN | G67: G | H67: 241 | I67: =IF(AND(H67>=0,H67<=200),$M$19, IF(AND(H67>=201,H67<=400),$M$20, IF(AND(H67>=401,H67<=600),$M$21, IF(AND(H67>=601,H67<=800),$M$22, IF(AND(H67>=801,H67<=1000),$M$23, IF(AND(H67>=1001,H67<=1200),$M$24, IF(AND(H67>=1201,H67<=1400),$M$25, IF(AND(H67>=1401,H67<=1600),$M$26, IF(AND(H67>=1601,H67<=1800),$M$27, IF(AND(H67>=1801,H67<=2000),$M$28, IF(AND(H67>=2001,H67<=2200),$M$29, IF(AND(H67>=2201,H67<=2400),$M$30, IF(AND(H67>=2401,H67<=2600),$M$31,"erreur"))))))))))))) -> 201 à 400 m | W67: 65 | X67: =IFERROR(VLOOKUP(W67,$D$2:$F$36613,2,FALSE),"") -> BIETLENHEIM | AB67: =IF(X67="","",SUMPRODUCT((X$3:X$897<=X67)-(ISBLANK(X$3:X$897)))) -> 404 | AC67: BUST
A68: 67 | B68: 1 | C68: AIN | D68: =IF($L$2=F68,1+D67,0) -> 0 | E68: ARBIGNY | F68: 1 - AIN | G68: G | H68: 185 | I68: 0 à 200 m | W68: 66 | X68: WASSELONNE | AB68: =IF(X68="","",SUMPRODUCT((X$3:X$897<=X68)-(ISBLANK(X$3:X$897)))) -> 857 | AC68: =IF(ISNA(MATCH(MIN(AB$3:AB$897)+ROW()-ROW(AC$3),AB$3:AB$897,0)),"",INDEX(X$3:X$897,MATCH(MIN(AB$3:AB$897)+ROW()-ROW(AC$3),AB$3:AB$897,0))) -> BUSWILLER
A69: 68 | B69: 1 | C69: AIN | D69: 0 | E69: REYRIEUX | F69: 1 - AIN | G69: G | H69: 237 | I69: 201 à 400 m | W69: 67 | X69: OBERHOFFEN-SUR-MODER | AB69: =IF(X69="","",SUMPRODUCT((X$3:X$897<=X69)-(ISBLANK(X$3:X$897)))) -> 693 | AC69: BUTTEN
A70: 69 | B70: 1 | C70: AIN | D70: 0 | E70: CESSY | F70: 1 - AIN | G70: G | H70: 525 | I70: 401 à 600 m | W70: 68 | X70: MACKWILLER | AB70: =IF(X70="","",SUMPRODUCT((X$3:X$897<=X70)-(ISBLANK(X$3:X$897)))) -> 632 | AC70: CHATENOIS
A71: 70 | B71: 1 | C71: AIN | D71: 0 | E71: MIRIBEL | F71: 1 - AIN | G71: G | H71: 260 | I71: 201 à 400 m | W71: 69 | X71: BLIENSCHWILLER | AB71: =IF(X71="","",SUMPRODUCT((X$3:X$897<=X71)-(ISBLANK(X$3:X$897)))) -> 416 | AC71: CLEEBOURG
A72: 71 | B72: 1 | C72: AIN | D72: 0 | E72: VIEU-D'IZENAVE | F72: 1 - AIN | G72: G | H72: 747 | I72: 601 à 800 m | W72: 70 | X72: DAUBENSAND | AB72: =IF(X72="","",SUMPRODUCT((X$3:X$897<=X72)-(ISBLANK(X$3:X$897)))) -> 449 | AC72: CLIMBACH
A73: 72 | B73: 1 | C73: AIN | D73: 0 | E73: HOSTIAZ | F73: 1 - AIN | G73: G | H73: 900 | I73: 801 à 1000 m | W73: 71 | X73: AVOLSHEIM | AB73: =IF(X73="","",SUMPRODUCT((X$3:X$897<=X73)-(ISBLANK(X$3:X$897)))) -> 382 | AC73: COLROY-LA-ROCHE
A74: 73 | B74: 1 | C74: AIN | D74: 0 | E74: JASSERON | F74: 1 - AIN | G74: G | H74: 297 | I74: 201 à 400 m | W74: 72 | X74: DRUSENHEIM | AB74: =IF(X74="","",SUMPRODUCT((X$3:X$897<=X74)-(ISBLANK(X$3:X$897)))) -> 469 | AC74: COSSWILLER
A75: 74 | B75: 1 | C75: AIN | D75: 0 | E75: APREMONT | F75: 1 - AIN | G75: G | H75: 927 | I75: 801 à 1000 m | W75: 73 | X75: UHLWILLER | AB75: =IF(X75="","",SUMPRODUCT((X$3:X$897<=X75)-(ISBLANK(X$3:X$897)))) -> 837 | AC75: CRASTATT
A76: 75 | B76: 1 | C76: AIN | D76: 0 | E76: SAINT-MARTIN-DU-FRENE | F76: 1 - AIN | G76: G | H76: 688 | I76: 601 à 800 m | W76: 74 | X76: SAULXURES | AB76: =IF(X76="","",SUMPRODUCT((X$3:X$897<=X76)-(ISBLANK(X$3:X$897)))) -> 776 | AC76: CROETTWILLER
A77: 76 | B77: 1 | C77: AIN | D77: 0 | E77: DRUILLAT | F77: 1 - AIN | G77: G | H77: 280 | I77: 201 à 400 m | W77: 75 | X77: OSTHOUSE | AB77: =IF(X77="","",SUMPRODUCT((X$3:X$897<=X77)-(ISBLANK(X$3:X$897)))) -> 710 | AC77: DACHSTEIN
A78: 77 | B78: 1 | C78: AIN | D78: 0 | E78: CROTTET | F78: 1 - AIN | G78: G | H78: 183 | I78: 0 à 200 m | W78: 76 | X78: BURBACH | AB78: =IF(X78="","",SUMPRODUCT((X$3:X$897<=X78)-(ISBLANK(X$3:X$897)))) -> 432 | AC78: DAHLENHEIM
A79: 78 | B79: 1 | C79: AIN | D79: 0 | E79: TOSSIAT | F79: 1 - AIN | G79: G | H79: 269 | I79: 201 à 400 m | W79: 77 | X79: BUST | AB79: =IF(X79="","",SUMPRODUCT((X$3:X$897<=X79)-(ISBLANK(X$3:X$897)))) -> 433 | AC79: DALHUNDEN
A80: 79 | B80: 1 | C80: AIN | D80: 0 | E80: LA CHAPELLE-DU-CHATELARD | F80: 1 - AIN | G80: G | H80: 266 | I80: 201 à 400 m | W80: 78 | X80: ROTHAU | AB80: =IF(X80="","",SUMPRODUCT((X$3:X$897<=X80)-(ISBLANK(X$3:X$897)))) -> 755 | AC80: DAMBACH
A81: 80 | B81: 1 | C81: AIN | D81: 0 | E81: BELLIGNAT | F81: 1 - AIN | G81: G | H81: 662 | I81: 601 à 800 m | W81: 79 | X81: GOERLINGEN | AB81: =IF(X81="","",SUMPRODUCT((X$3:X$897<=X81)-(ISBLANK(X$3:X$897)))) -> 519 | AC81: DAMBACH-LA-VILLE
A82: 81 | B82: 1 | C82: AIN | D82: 0 | E82: SAINT-BENOIT | F82: 1 - AIN | G82: G | H82: 284 | I82: 201 à 400 m | W82: 80 | X82: NIEDERMODERN | AB82: =IF(X82="","",SUMPRODUCT((X$3:X$897<=X82)-(ISBLANK(X$3:X$897)))) -> 678 | AC82: DANGOLSHEIM
A83: 82 | B83: 1 | C83: AIN | D83: 0 | E83: BELIGNEUX | F83: 1 - AIN | G83: G | H83: 223 | I83: 201 à 400 m | W83: 81 | X83: DALHUNDEN | AB83: =IF(X83="","",SUMPRODUCT((X$3:X$897<=X83)-(ISBLANK(X$3:X$897)))) -> 445 | AC83: DAUBENSAND
A84: 83 | B84: 1 | C84: AIN | D84: 0 | E84: BOYEUX-SAINT-JEROME | F84: 1 - AIN | G84: G | H84: 577 | I84: 401 à 600 m | W84: 82 | X84: OBERHOFFEN-LES-WISSEMBOURG | AB84: =IF(X84="","",SUMPRODUCT((X$3:X$897<=X84)-(ISBLANK(X$3:X$897)))) -> 692 | AC84: DAUENDORF
A85: 84 | B85: 1 | C85: AIN | D85: 0 | E85: SERRIERES-SUR-AIN | F85: 1 - AIN | G85: G | H85: 385 | I85: 201 à 400 m | W85: 83 | X85: REXINGEN | AB85: =IF(X85="","",SUMPRODUCT((X$3:X$897<=X85)-(ISBLANK(X$3:X$897)))) -> 738 | AC85: DEHLINGEN
A86: 85 | B86: 1 | C86: AIN | D86: 0 | E86: ILLIAT | F86: 1 - AIN | G86: G | H86: 227 | I86: 201 à 400 m | W86: 84 | X86: ERSTEIN | AB86: =IF(X86="","",SUMPRODUCT((X$3:X$897<=X86)-(ISBLANK(X$3:X$897)))) -> 491 | AC86: DETTWILLER
A87: 86 | B87: 1 | C87: AIN | D87: 0 | E87: SAINT-MARTIN-LE-CHATEL | F87: 1 - AIN | G87: G | H87: 214 | I87: 201 à 400 m | W87: 85 | X87: BALDENHEIM | AB87: =IF(X87="","",SUMPRODUCT((X$3:X$897<=X87)-(ISBLANK(X$3:X$897)))) -> 385 | AC87: DIEBOLSHEIM
A88: 87 | B88: 1 | C88: AIN | D88: 0 | E88: VANDEINS | F88: 1 - AIN | G88: G | H88: 220 | I88: 201 à 400 m | W88: 86 | X88: OBERDORF-SPACHBACH | AB88: =IF(X88="","",SUMPRODUCT((X$3:X$897<=X88)-(ISBLANK(X$3:X$897)))) -> 689 | AC88: DIEDENDORF
A89: 88 | B89: 1 | C89: AIN | D89: 0 | E89: LEAZ | F89: 1 - AIN | G89: G | H89: 635 | I89: 601 à 800 m | W89: 87 | X89: HANDSCHUHEIM | AB89: =IF(X89="","",SUMPRODUCT((X$3:X$897<=X89)-(ISBLANK(X$3:X$897)))) -> 538 | AC89: DIEFFENBACH-AU-VAL
A90: 89 | B90: 1 | C90: AIN | D90: 0 | E90: TALISSIEU | F90: 1 - AIN | G90: G | H90: 267 | I90: 201 à 400 m | W90: 88 | X90: KESSELDORF | AB90: =IF(X90="","",SUMPRODUCT((X$3:X$897<=X90)-(ISBLANK(X$3:X$897)))) -> 586 | AC90: DIEFFENBACH-LES-WOERTH
A91: 90 | B91: 1 | C91: AIN | D91: 0 | E91: OYONNAX | F91: 1 - AIN | G91: G | H91: 667 | I91: 601 à 800 m | W91: 89 | X91: RINGELDORF | AB91: =IF(X91="","",SUMPRODUCT((X$3:X$897<=X91)-(ISBLANK(X$3:X$897)))) -> 743 | AC91: DIEFFENTHAL
A92: 91 | B92: 1 | C92: AIN | D92: 0 | E92: L'ABERGEMENT-DE-VAREY | F92: 1 - AIN | G92: G | H92: 483 | I92: 401 à 600 m | W92: 90 | X92: OBERLAUTERBACH | AB92: =IF(X92="","",SUMPRODUCT((X$3:X$897<=X92)-(ISBLANK(X$3:X$897)))) -> 694 | AC92: DIEMERINGEN
A93: 92 | B93: 1 | C93: AIN | D93: 0 | E93: ORNEX | F93: 1 - AIN | G93: G | H93: 469 | I93: 401 à 600 m | W93: 91 | X93: SALENTHAL | AB93: =IF(X93="","",SUMPRODUCT((X$3:X$897<=X93)-(ISBLANK(X$3:X$897)))) -> 771 | AC93: DIMBSTHAL
A94: 93 | B94: 1 | C94: AIN | D94: 0 | E94: GROSLEE | F94: 1 - AIN | G94: G | H94: 424 | I94: 401 à 600 m | W94: 92 | X94: NORDHEIM | AB94: =IF(X94="","",SUMPRODUCT((X$3:X$897<=X94)-(ISBLANK(X$3:X$897)))) -> 684 | AC94: DINGSHEIM
A95: 94 | B95: 1 | C95: AIN | D95: 0 | E95: CHATEAU-GAILLARD | F95: 1 - AIN | G95: G | H95: 234 | I95: 201 à 400 m | W95: 93 | X95: BOOTZHEIM | AB95: =IF(X95="","",SUMPRODUCT((X$3:X$897<=X95)-(ISBLANK(X$3:X$897)))) -> 421 | AC95: DINSHEIM-SUR-BRUCHE
A96: 95 | B96: 1 | C96: AIN | D96: 0 | E96: SULIGNAT | F96: 1 - AIN | G96: G | H96: 247 | I96: 201 à 400 m | W96: 94 | X96: THANVILLE | AB96: =IF(X96="","",SUMPRODUCT((X$3:X$897<=X96)-(ISBLANK(X$3:X$897)))) -> 830 | AC96: DOMFESSEL
A97: 96 | B97: 1 | C97: AIN | D97: 0 | E97: TORCIEU | F97: 1 - AIN | G97: G | H97: 439 | I97: 401 à 600 m | W97: 95 | X97: SCHWENHEIM | AB97: =IF(X97="","",SUMPRODUCT((X$3:X$897<=X97)-(ISBLANK(X$3:X$897)))) -> 798 | AC97: DONNENHEIM
A98: 97 | B98: 1 | C98: AIN | D98: 0 | E98: MONTREVEL-EN-BRESSE | F98: 1 - AIN | G98: G | H98: 206 | I98: 201 à 400 m | W98: 96 | X98: HOFFEN | AB98: =IF(X98="","",SUMPRODUCT((X$3:X$897<=X98)-(ISBLANK(X$3:X$897)))) -> 562 | AC98: DORLISHEIM
A99: 98 | B99: 1 | C99: AIN | D99: 0 | E99: THEZILLIEU | F99: 1 - AIN | G99: G | H99: 897 | I99: 801 à 1000 m | W99: 97 | X99: HATTEN | AB99: =IF(X99="","",SUMPRODUCT((X$3:X$897<=X99)-(ISBLANK(X$3:X$897)))) -> 541 | AC99: DOSSENHEIM-KOCHERSBERG
A100: 99 | B100: 1 | C100: AIN | D100: 0 | E100: BIRIEUX | F100: 1 - AIN | G100: G | H100: 281 | I100: 201 à 400 m | W100: 98 | X100: VOELLERDINGEN | AB100: =IF(X100="","",SUMPRODUCT((X$3:X$897<=X100)-(ISBLANK(X$3:X$897)))) -> 847 | AC100: DOSSENHEIM-SUR-ZINSEL
A101: 100 | B101: 1 | C101: AIN | D101: 0 | E101: CHEVRY | F101: 1 - AIN | G101: G | H101: 496 | I101: 401 à 600 m | W101: 99 | X101: UBERACH | AB101: =IF(X101="","",SUMPRODUCT((X$3:X$897<=X101)-(ISBLANK(X$3:X$897)))) -> 836 | AC101: DRACHENBRONN-BIRLENBACH
A102: 101 | B102: 1 | C102: AIN | D102: 0 | E102: TREVOUX | F102: 1 - AIN | G102: G | H102: 188 | I102: 0 à 200 m | W102: 100 | X102: STRASBOURG | AB102: =IF(X102="","",SUMPRODUCT((X$3:X$897<=X102)-(ISBLANK(X$3:X$897)))) -> 822 | AC102: DRULINGEN
A103: 102 | B103: 1 | C103: AIN | D103: 0 | E103: GUEREINS | F103: 1 - AIN | G103: G | H103: 192 | I103: 0 à 200 m | W103: 101 | X103: KINTZHEIM | AB103: =IF(X103="","",SUMPRODUCT((X$3:X$897<=X103)-(ISBLANK(X$3:X$897)))) -> 590 | AC103: DRUSENHEIM
A104: 103 | B104: 1 | C104: AIN | D104: 0 | E104: TOUSSIEUX | F104: 1 - AIN | G104: G | H104: 255 | I104: 201 à 400 m | W104: 102 | X104: SUNDHOUSE | AB104: =IF(X104="","",SUMPRODUCT((X$3:X$897<=X104)-(ISBLANK(X$3:X$897)))) -> 826 | AC104: DUNTZENHEIM
A105: 104 | B105: 1 | C105: AIN | D105: 0 | E105: SURJOUX | F105: 1 - AIN | G105: G | H105: 397 | I105: 201 à 400 m | W105: 103 | X105: NEUWILLER-LES-SAVERNE | AB105: =IF(X105="","",SUMPRODUCT((X$3:X$897<=X105)-(ISBLANK(X$3:X$897)))) -> 673 | AC105: DUPPIGHEIM
A106: 105 | B106: 1 | C106: AIN | D106: 0 | E106: CHAZEY-SUR-AIN | F106: 1 - AIN | G106: G | H106: 223 | I106: 201 à 400 m | W106: 104 | X106: DUNTZENHEIM | AB106: =IF(X106="","",SUMPRODUCT((X$3:X$897<=X106)-(ISBLANK(X$3:X$897)))) -> 470 | AC106: DURNINGEN
A107: 106 | B107: 1 | C107: AIN | D107: 0 | E107: L'ABERGEMENT-CLEMENCIAT | F107: 1 - AIN | G107: G | H107: 242 | I107: 201 à 400 m | W107: 105 | X107: HAEGEN | AB107: =IF(X107="","",SUMPRODUCT((X$3:X$897<=X107)-(ISBLANK(X$3:X$897)))) -> 536 | AC107: DURRENBACH
A108: 107 | B108: 1 | C108: AIN | D108: 0 | E108: SOUCLIN | F108: 1 - AIN | G108: G | H108: 716 | I108: 601 à 800 m | W108: 106 | X108: SALMBACH | AB108: =IF(X108="","",SUMPRODUCT((X$3:X$897<=X108)-(ISBLANK(X$3:X$897)))) -> 772 | AC108: DURSTEL
A109: 108 | B109: 1 | C109: AIN | D109: 0 | E109: DOMMARTIN | F109: 1 - AIN | G109: G | H109: 200 | I109: 0 à 200 m | W109: 107 | X109: FROESCHWILLER | AB109: =IF(X109="","",SUMPRODUCT((X$3:X$897<=X109)-(ISBLANK(X$3:X$897)))) -> 508 | AC109: DUTTLENHEIM
A110: 109 | B110: 1 | C110: AIN | D110: 0 | E110: CORMARANCHE-EN-BUGEY | F110: 1 - AIN | G110: G | H110: 926 | I110: 801 à 1000 m | W110: 108 | X110: PFULGRIESHEIM | AB110: =IF(X110="","",SUMPRODUCT((X$3:X$897<=X110)-(ISBLANK(X$3:X$897)))) -> 720 | AC110: EBERBACH-SELTZ
A111: 110 | B111: 1 | C111: AIN | D111: 0 | E111: PONCIN | F111: 1 - AIN | G111: G | H111: 340 | I111: 201 à 400 m | W111: 109 | X111: SURBOURG | AB111: =IF(X111="","",SUMPRODUCT((X$3:X$897<=X111)-(ISBLANK(X$3:X$897)))) -> 827 | AC111: EBERSHEIM
A112: 111 | B112: 1 | C112: AIN | D112: 0 | E112: BRENOD | F112: 1 - AIN | G112: G | H112: 925 | I112: 801 à 1000 m | W112: 110 | X112: ENGWILLER | AB112: =IF(X112="","",SUMPRODUCT((X$3:X$897<=X112)-(ISBLANK(X$3:X$897)))) -> 484 | AC112: EBERSMUNSTER
A113: 112 | B113: 1 | C113: AIN | D113: 0 | E113: VIRIEU-LE-PETIT | F113: 1 - AIN | G113: G | H113: 893 | I113: 801 à 1000 m | W113: 111 | X113: LANGENSOULTZBACH | AB113: =IF(X113="","",SUMPRODUCT((X$3:X$897<=X113)-(ISBLANK(X$3:X$897)))) -> 613 | AC113: ECKARTSWILLER
A114: 113 | B114: 1 | C114: AIN | D114: 0 | E114: VESCOURS | F114: 1 - AIN | G114: G | H114: 207 | I114: 201 à 400 m | W114: 112 | X114: LAUTERBOURG | AB114: =IF(X114="","",SUMPRODUCT((X$3:X$897<=X114)-(ISBLANK(X$3:X$897)))) -> 615 | AC114: ECKBOLSHEIM
A115: 114 | B115: 1 | C115: AIN | D115: 0 | E115: TREFFORT-CUISIAT | F115: 1 - AIN | G115: G | H115: 317 | I115: 201 à 400 m | W115: 113 | X115: BREITENAU | AB115: =IF(X115="","",SUMPRODUCT((X$3:X$897<=X115)-(ISBLANK(X$3:X$897)))) -> 427 | AC115: ECKWERSHEIM
A116: 115 | B116: 1 | C116: AIN | D116: 0 | E116: CHAVEYRIAT | F116: 1 - AIN | G116: G | H116: 228 | I116: 201 à 400 m | W116: 114 | X116: NIEDERSOULTZBACH | AB116: =IF(X116="","",SUMPRODUCT((X$3:X$897<=X116)-(ISBLANK(X$3:X$897)))) -> 682 | AC116: EICHHOFFEN
A117: 116 | B117: 1 | C117: AIN | D117: 0 | E117: VILLENEUVE | F117: 1 - AIN | G117: G | H117: 265 | I117: 201 à 400 m | W117: 115 | X117: ROMANSWILLER | AB117: =IF(X117="","",SUMPRODUCT((X$3:X$897<=X117)-(ISBLANK(X$3:X$897)))) -> 749 | AC117: ELSENHEIM
A118: 117 | B118: 1 | C118: AIN | D118: 0 | E118: SIMANDRE-SUR-SURAN | F118: 1 - AIN | G118: G | H118: 371 | I118: 201 à 400 m | W118: 116 | X118: SERMERSHEIM | AB118: =IF(X118="","",SUMPRODUCT((X$3:X$897<=X118)-(ISBLANK(X$3:X$897)))) -> 804 | AC118: ENGWILLER
A119: 118 | B119: 1 | C119: AIN | D119: 0 | E119: CERDON | F119: 1 - AIN | G119: G | H119: 552 | I119: 401 à 600 m | W119: 117 | X119: SAVERNE | AB119: =IF(X119="","",SUMPRODUCT((X$3:X$897<=X119)-(ISBLANK(X$3:X$897)))) -> 777 | AC119: ENTZHEIM
A120: 119 | B120: 1 | C120: AIN | D120: 0 | E120: LURCY | F120: 1 - AIN | G120: G | H120: 201 | I120: 201 à 400 m | W120: 118 | X120: OTTWILLER | AB120: =IF(X120="","",SUMPRODUCT((X$3:X$897<=X120)-(ISBLANK(X$3:X$897)))) -> 715 | AC120: EPFIG
A121: 120 | B121: 1 | C121: AIN | D121: 0 | E121: SAINT-ANDRE-DE-BAGE | F121: 1 - AIN | G121: G | H121: 204 | I121: 201 à 400 m | W121: 119 | X121: RUSS | AB121: =IF(X121="","",SUMPRODUCT((X$3:X$897<=X121)-(ISBLANK(X$3:X$897)))) -> 760 | AC121: ERCKARTSWILLER
A122: 121 | B122: 1 | C122: AIN | D122: 0 | E122: CHEVROUX | F122: 1 - AIN | G122: G | H122: 196 | I122: 0 à 200 m | W122: 120 | X122: NIEDERNAI | AB122: =IF(X122="","",SUMPRODUCT((X$3:X$897<=X122)-(ISBLANK(X$3:X$897)))) -> 679 | AC122: ERGERSHEIM
A123: 122 | B123: 1 | C123: AIN | D123: 0 | E123: CEIGNES | F123: 1 - AIN | G123: G | H123: 684 | I123: 601 à 800 m | W123: 121 | X123: ROPPENHEIM | AB123: =IF(X123="","",SUMPRODUCT((X$3:X$897<=X123)-(ISBLANK(X$3:X$897)))) -> 750 | AC123: ERNOLSHEIM-BRUCHE
A124: 123 | B124: 1 | C124: AIN | D124: 0 | E124: MANTENAY-MONTLIN | F124: 1 - AIN | G124: G | H124: 206 | I124: 201 à 400 m | W124: 122 | X124: BLAESHEIM | AB124: =IF(X124="","",SUMPRODUCT((X$3:X$897<=X124)-(ISBLANK(X$3:X$897)))) -> 414 | AC124: ERNOLSHEIM-LES-SAVERNE
A125: 124 | B125: 1 | C125: AIN | D125: 0 | E125: MONTHIEUX | F125: 1 - AIN | G125: G | H125: 290 | I125: 201 à 400 m | W125: 123 | X125: LITTENHEIM | AB125: =IF(X125="","",SUMPRODUCT((X$3:X$897<=X125)-(ISBLANK(X$3:X$897)))) -> 623 | AC125: ERSTEIN
A126: 125 | B126: 1 | C126: AIN | D126: 0 | E126: SAINT-ANDRE-SUR-VIEUX-JONC | F126: 1 - AIN | G126: G | H126: 253 | I126: 201 à 400 m | W126: 124 | X126: WALTENHEIM-SUR-ZORN | AB126: =IF(X126="","",SUMPRODUCT((X$3:X$897<=X126)-(ISBLANK(X$3:X$897)))) -> 854 | AC126: ESCHAU
A127: 126 | B127: 1 | C127: AIN | D127: 0 | E127: VAUX-EN-BUGEY | F127: 1 - AIN | G127: G | H127: 390 | I127: 201 à 400 m | W127: 125 | X127: NIEDERHASLACH | AB127: =IF(X127="","",SUMPRODUCT((X$3:X$897<=X127)-(ISBLANK(X$3:X$897)))) -> 675 | AC127: ESCHBACH
A128: 127 | B128: 1 | C128: AIN | D128: 0 | E128: ARTEMARE | F128: 1 - AIN | G128: G | H128: 267 | I128: 201 à 400 m | W128: 126 | X128: ROTTELSHEIM | AB128: =IF(X128="","",SUMPRODUCT((X$3:X$897<=X128)-(ISBLANK(X$3:X$897)))) -> 758 | AC128: ESCHBOURG
A129: 128 | B129: 1 | C129: AIN | D129: 0 | E129: MIONNAY | F129: 1 - AIN | G129: G | H129: 289 | I129: 201 à 400 m | W129: 127 | X129: ZITTERSHEIM | AB129: =IF(X129="","",SUMPRODUCT((X$3:X$897<=X129)-(ISBLANK(X$3:X$897)))) -> 894 | AC129: ESCHWILLER
A130: 129 | B130: 1 | C130: AIN | D130: 0 | E130: FLAXIEU | F130: 1 - AIN | G130: G | H130: 252 | I130: 201 à 400 m | W130: 128 | X130: FOUCHY | AB130: =IF(X130="","",SUMPRODUCT((X$3:X$897<=X130)-(ISBLANK(X$3:X$897)))) -> 504 | AC130: ETTENDORF
A131: 130 | B131: 1 | C131: AIN | D131: 0 | E131: SAINT-NIZIER-LE-BOUCHOUX | F131: =B131&" - "&C131 -> 1 - AIN | G131: G | H131: 208 | I131: =IF(AND(H131>=0,H131<=200),$M$19, IF(AND(H131>=201,H131<=400),$M$20, IF(AND(H131>=401,H131<=600),$M$21, IF(AND(H131>=601,H131<=800),$M$22, IF(AND(H131>=801,H131<=1000),$M$23, IF(AND(H131>=1001,H131<=1200),$M$24, IF(AND(H131>=1201,H131<=1400),$M$25, IF(AND(H131>=1401,H131<=1600),$M$26, IF(AND(H131>=1601,H131<=1800),$M$27, IF(AND(H131>=1801,H131<=2000),$M$28, IF(AND(H131>=2001,H131<=2200),$M$29, IF(AND(H131>=2201,H131<=2400),$M$30, IF(AND(H131>=2401,H131<=2600),$M$31,"erreur"))))))))))))) -> 201 à 400 m | W131: 129 | X131: =IFERROR(VLOOKUP(W131,$D$2:$F$36613,2,FALSE),"") -> FEGERSHEIM | AB131: =IF(X131="","",SUMPRODUCT((X$3:X$897<=X131)-(ISBLANK(X$3:X$897)))) -> 498 | AC131: EYWILLER
A132: 131 | B132: 1 | C132: AIN | D132: =IF($L$2=F132,1+D131,0) -> 0 | E132: INJOUX-GENISSIAT | F132: 1 - AIN | G132: G | H132: 791 | I132: 601 à 800 m | W132: 130 | X132: WEITERSWILLER | AB132: =IF(X132="","",SUMPRODUCT((X$3:X$897<=X132)-(ISBLANK(X$3:X$897)))) -> 861 | AC132: =IF(ISNA(MATCH(MIN(AB$3:AB$897)+ROW()-ROW(AC$3),AB$3:AB$897,0)),"",INDEX(X$3:X$897,MATCH(MIN(AB$3:AB$897)+ROW()-ROW(AC$3),AB$3:AB$897,0))) -> FEGERSHEIM
A133: 132 | B133: 1 | C133: AIN | D133: 0 | E133: AMBERIEU-EN-BUGEY | F133: 1 - AIN | G133: G | H133: 379 | I133: 201 à 400 m | W133: 131 | X133: MORSBRONN-LES-BAINS | AB133: =IF(X133="","",SUMPRODUCT((X$3:X$897<=X133)-(ISBLANK(X$3:X$897)))) -> 655 | AC133: FESSENHEIM-LE-BAS
A134: 133 | B134: 1 | C134: AIN | D134: 0 | E134: SERRIERES-DE-BRIORD | F134: 1 - AIN | G134: G | H134: 250 | I134: 201 à 400 m | W134: 132 | X134: GRESSWILLER | AB134: =IF(X134="","",SUMPRODUCT((X$3:X$897<=X134)-(ISBLANK(X$3:X$897)))) -> 528 | AC134: FLEXBOURG
A135: 134 | B135: 1 | C135: AIN | D135: 0 | E135: MARLIEUX | F135: 1 - AIN | G135: G | H135: 273 | I135: 201 à 400 m | W135: 133 | X135: NOTHALTEN | AB135: =IF(X135="","",SUMPRODUCT((X$3:X$897<=X135)-(ISBLANK(X$3:X$897)))) -> 686 | AC135: FORSTFELD
A136: 135 | B136: 1 | C136: AIN | D136: 0 | E136: MONTREAL-LA-CLUSE | F136: 1 - AIN | G136: G | H136: 661 | I136: 601 à 800 m | W136: 134 | X136: SOLBACH | AB136: =IF(X136="","",SUMPRODUCT((X$3:X$897<=X136)-(ISBLANK(X$3:X$897)))) -> 810 | AC136: FORSTHEIM
A137: 136 | B137: 1 | C137: AIN | D137: 0 | E137: VERNOUX | F137: 1 - AIN | G137: G | H137: 203 | I137: 201 à 400 m | W137: 135 | X137: COLROY-LA-ROCHE | AB137: =IF(X137="","",SUMPRODUCT((X$3:X$897<=X137)-(ISBLANK(X$3:X$897)))) -> 439 | AC137: FORT-LOUIS
A138: 137 | B138: 1 | C138: AIN | D138: 0 | E138: JAYAT | F138: 1 - AIN | G138: G | H138: 199 | I138: 0 à 200 m | W138: 136 | X138: SESSENHEIM | AB138: =IF(X138="","",SUMPRODUCT((X$3:X$897<=X138)-(ISBLANK(X$3:X$897)))) -> 805 | AC138: FOUCHY
A139: 138 | B139: 1 | C139: AIN | D139: 0 | E139: VALEINS | F139: 1 - AIN | G139: G | H139: 253 | I139: 201 à 400 m | W139: 137 | X139: LUPSTEIN | AB139: =IF(X139="","",SUMPRODUCT((X$3:X$897<=X139)-(ISBLANK(X$3:X$897)))) -> 629 | AC139: FOUDAY
A140: 139 | B140: 1 | C140: AIN | D140: 0 | E140: BAGE-LE-CHATEL | F140: 1 - AIN | G140: G | H140: 202 | I140: 201 à 400 m | W140: 138 | X140: MORSCHWILLER | AB140: =IF(X140="","",SUMPRODUCT((X$3:X$897<=X140)-(ISBLANK(X$3:X$897)))) -> 656 | AC140: FRIEDOLSHEIM
A141: 140 | B141: 1 | C141: AIN | D141: 0 | E141: BALAN | F141: 1 - AIN | G141: G | H141: 194 | I141: 0 à 200 m | W141: 139 | X141: PFALZWEYER | AB141: =IF(X141="","",SUMPRODUCT((X$3:X$897<=X141)-(ISBLANK(X$3:X$897)))) -> 718 | AC141: FRIESENHEIM
A142: 141 | B142: 1 | C142: AIN | D142: 0 | E142: AMBUTRIX | F142: 1 - AIN | G142: G | H142: 274 | I142: 201 à 400 m | W142: 140 | X142: RICHTOLSHEIM | AB142: =IF(X142="","",SUMPRODUCT((X$3:X$897<=X142)-(ISBLANK(X$3:X$897)))) -> 740 | AC142: FROESCHWILLER
A143: 142 | B143: 1 | C143: AIN | D143: 0 | E143: VIRIEU-LE-GRAND | F143: 1 - AIN | G143: G | H143: 518 | I143: 401 à 600 m | W143: 141 | X143: MUTZENHOUSE | AB143: =IF(X143="","",SUMPRODUCT((X$3:X$897<=X143)-(ISBLANK(X$3:X$897)))) -> 664 | AC143: FROHMUHL
A144: 143 | B144: 1 | C144: AIN | D144: 0 | E144: BEAUPONT | F144: 1 - AIN | G144: G | H144: 205 | I144: 201 à 400 m | W144: 142 | X144: BERNARDVILLE | AB144: =IF(X144="","",SUMPRODUCT((X$3:X$897<=X144)-(ISBLANK(X$3:X$897)))) -> 397 | AC144: FURCHHAUSEN
A145: 144 | B145: 1 | C145: AIN | D145: 0 | E145: ANDERT-ET-CONDON | F145: 1 - AIN | G145: G | H145: 294 | I145: 201 à 400 m | W145: 143 | X145: NIEDERSCHAEFFOLSHEIM | AB145: =IF(X145="","",SUMPRODUCT((X$3:X$897<=X145)-(ISBLANK(X$3:X$897)))) -> 681 | AC145: FURDENHEIM
A146: 145 | B146: 1 | C146: AIN | D146: 0 | E146: BUELLAS | F146: 1 - AIN | G146: G | H146: 225 | I146: 201 à 400 m | W146: 144 | X146: ROHRWILLER | AB146: =IF(X146="","",SUMPRODUCT((X$3:X$897<=X146)-(ISBLANK(X$3:X$897)))) -> 748 | AC146: GAMBSHEIM
A147: 146 | B147: 1 | C147: AIN | D147: 0 | E147: MURS-ET-GELIGNIEUX | F147: 1 - AIN | G147: G | H147: 258 | I147: 201 à 400 m | W147: 145 | X147: WINGEN | AB147: =IF(X147="","",SUMPRODUCT((X$3:X$897<=X147)-(ISBLANK(X$3:X$897)))) -> 873 | AC147: GEISPOLSHEIM
A148: 147 | B148: 1 | C148: AIN | D148: 0 | E148: LHUIS | F148: 1 - AIN | G148: G | H148: 471 | I148: 401 à 600 m | W148: 146 | X148: ASCHBACH | AB148: =IF(X148="","",SUMPRODUCT((X$3:X$897<=X148)-(ISBLANK(X$3:X$897)))) -> 379 | AC148: GEISWILLER
A149: 148 | B149: 1 | C149: AIN | D149: 0 | E149: SAINT-ANDRE-LE-BOUCHOUX | F149: 1 - AIN | G149: G | H149: 268 | I149: 201 à 400 m | W149: 147 | X149: TRIMBACH | AB149: =IF(X149="","",SUMPRODUCT((X$3:X$897<=X149)-(ISBLANK(X$3:X$897)))) -> 834 | AC149: GERSTHEIM
A150: 149 | B150: 1 | C150: AIN | D150: 0 | E150: SAINT-PAUL-DE-VARAX | F150: 1 - AIN | G150: G | H150: 268 | I150: 201 à 400 m | W150: 148 | X150: HUNSPACH | AB150: =IF(X150="","",SUMPRODUCT((X$3:X$897<=X150)-(ISBLANK(X$3:X$897)))) -> 567 | AC150: GERTWILLER
A151: 150 | B151: 1 | C151: AIN | D151: 0 | E151: FERNEY-VOLTAIRE | F151: 1 - AIN | G151: G | H151: 422 | I151: 401 à 600 m | W151: 149 | X151: NIEDERROEDERN | AB151: =IF(X151="","",SUMPRODUCT((X$3:X$897<=X151)-(ISBLANK(X$3:X$897)))) -> 680 | AC151: GEUDERTHEIM
A152: 151 | B152: 1 | C152: AIN | D152: 0 | E152: SAINT-SORLIN-EN-BUGEY | F152: 1 - AIN | G152: G | H152: 376 | I152: 201 à 400 m | W152: 150 | X152: SCHLEITHAL | AB152: =IF(X152="","",SUMPRODUCT((X$3:X$897<=X152)-(ISBLANK(X$3:X$897)))) -> 791 | AC152: GINGSHEIM
A153: 152 | B153: 1 | C153: AIN | D153: 0 | E153: AMBERIEUX-EN-DOMBES | F153: 1 - AIN | G153: G | H153: 290 | I153: 201 à 400 m | W153: 151 | X153: KEFFENACH | AB153: =IF(X153="","",SUMPRODUCT((X$3:X$897<=X153)-(ISBLANK(X$3:X$897)))) -> 583 | AC153: GOERLINGEN
A154: 153 | B154: 1 | C154: AIN | D154: 0 | E154: SEILLONNAZ | F154: 1 - AIN | G154: G | H154: 530 | I154: 401 à 600 m | W154: 152 | X154: DIEDENDORF | AB154: =IF(X154="","",SUMPRODUCT((X$3:X$897<=X154)-(ISBLANK(X$3:X$897)))) -> 454 | AC154: GOERSDORF
A155: 154 | B155: 1 | C155: AIN | D155: 0 | E155: PARVES | F155: 1 - AIN | G155: G | H155: 486 | I155: 401 à 600 m | W155: 153 | X155: REIPERTSWILLER | AB155: =IF(X155="","",SUMPRODUCT((X$3:X$897<=X155)-(ISBLANK(X$3:X$897)))) -> 735 | AC155: GOTTENHOUSE
A156: 155 | B156: 1 | C156: AIN | D156: 0 | E156: PONT-DE-VAUX | F156: 1 - AIN | G156: G | H156: 175 | I156: 0 à 200 m | W156: 154 | X156: LEMBACH | AB156: =IF(X156="","",SUMPRODUCT((X$3:X$897<=X156)-(ISBLANK(X$3:X$897)))) -> 617 | AC156: GOTTESHEIM
A157: 156 | B157: 1 | C157: AIN | D157: 0 | E157: MEILLONNAS | F157: 1 - AIN | G157: G | H157: 289 | I157: 201 à 400 m | W157: 155 | X157: HANGENBIETEN | AB157: =IF(X157="","",SUMPRODUCT((X$3:X$897<=X157)-(ISBLANK(X$3:X$897)))) -> 539 | AC157: GOUGENHEIM
A158: 157 | B158: 1 | C158: AIN | D158: 0 | E158: SAINT-ETIENNE-SUR-REYSSOUZE | F158: 1 - AIN | G158: G | H158: 190 | I158: 0 à 200 m | W158: 156 | X158: BOOFZHEIM | AB158: =IF(X158="","",SUMPRODUCT((X$3:X$897<=X158)-(ISBLANK(X$3:X$897)))) -> 420 | AC158: GOXWILLER
A159: 158 | B159: 1 | C159: AIN | D159: 0 | E159: ROSSILLON | F159: 1 - AIN | G159: G | H159: 639 | I159: 601 à 800 m | W159: 157 | X159: WINTZENBACH | AB159: =IF(X159="","",SUMPRODUCT((X$3:X$897<=X159)-(ISBLANK(X$3:X$897)))) -> 877 | AC159: GRANDFONTAINE
A160: 159 | B160: 1 | C160: AIN | D160: 0 | E160: CORBONOD | F160: 1 - AIN | G160: G | H160: 781 | I160: 601 à 800 m | W160: 158 | X160: BILWISHEIM | AB160: =IF(X160="","",SUMPRODUCT((X$3:X$897<=X160)-(ISBLANK(X$3:X$897)))) -> 405 | AC160: GRASSENDORF
A161: 160 | B161: 1 | C161: AIN | D161: 0 | E161: PORT | F161: 1 - AIN | G161: G | H161: 636 | I161: 601 à 800 m | W161: 159 | X161: MEISTRATZHEIM | AB161: =IF(X161="","",SUMPRODUCT((X$3:X$897<=X161)-(ISBLANK(X$3:X$897)))) -> 639 | AC161: GRENDELBRUCH
A162: 161 | B162: 1 | C162: AIN | D162: 0 | E162: BAGE-LA-VILLE | F162: 1 - AIN | G162: G | H162: 201 | I162: 201 à 400 m | W162: 160 | X162: OLWISHEIM | AB162: =IF(X162="","",SUMPRODUCT((X$3:X$897<=X162)-(ISBLANK(X$3:X$897)))) -> 707 | AC162: GRESSWILLER
A163: 162 | B163: 1 | C163: AIN | D163: 0 | E163: CRANS | F163: 1 - AIN | G163: G | H163: 296 | I163: 201 à 400 m | W163: 161 | X163: ENTZHEIM | AB163: =IF(X163="","",SUMPRODUCT((X$3:X$897<=X163)-(ISBLANK(X$3:X$897)))) -> 485 | AC163: GRIES
A164: 163 | B164: 1 | C164: AIN | D164: 0 | E164: BLYES | F164: 1 - AIN | G164: G | H164: 212 | I164: 201 à 400 m | W164: 162 | X164: SAINT-NABOR | AB164: =IF(X164="","",SUMPRODUCT((X$3:X$897<=X164)-(ISBLANK(X$3:X$897)))) -> 768 | AC164: GRIESHEIM-PRES-MOLSHEIM
A165: 164 | B165: 1 | C165: AIN | D165: 0 | E165: JASSANS-RIOTTIER | F165: 1 - AIN | G165: G | H165: 202 | I165: 201 à 400 m | W165: 163 | X165: DIEFFENTHAL | AB165: =IF(X165="","",SUMPRODUCT((X$3:X$897<=X165)-(ISBLANK(X$3:X$897)))) -> 457 | AC165: GRIESHEIM-SUR-SOUFFEL
A166: 165 | B166: 1 | C166: AIN | D166: 0 | E166: BOISSEY | F166: 1 - AIN | G166: G | H166: 198 | I166: 0 à 200 m | W166: 164 | X166: GRENDELBRUCH | AB166: =IF(X166="","",SUMPRODUCT((X$3:X$897<=X166)-(ISBLANK(X$3:X$897)))) -> 527 | AC166: GUMBRECHTSHOFFEN
A167: 166 | B167: 1 | C167: AIN | D167: 0 | E167: SAINT-GENIS-POUILLY | F167: 1 - AIN | G167: G | H167: 452 | I167: 401 à 600 m | W167: 165 | X167: SAINT-MAURICE | AB167: =IF(X167="","",SUMPRODUCT((X$3:X$897<=X167)-(ISBLANK(X$3:X$897)))) -> 767 | AC167: GUNDERSHOFFEN
A168: 167 | B168: 1 | C168: AIN | D168: 0 | E168: TRAMOYES | F168: 1 - AIN | G168: G | H168: 285 | I168: 201 à 400 m | W168: 166 | X168: LUTZELHOUSE | AB168: =IF(X168="","",SUMPRODUCT((X$3:X$897<=X168)-(ISBLANK(X$3:X$897)))) -> 630 | AC168: GUNGWILLER
A169: 168 | B169: 1 | C169: AIN | D169: 0 | E169: SAINT-BOIS | F169: 1 - AIN | G169: G | H169: 416 | I169: 401 à 600 m | W169: 167 | X169: MUNCHHAUSEN | AB169: =IF(X169="","",SUMPRODUCT((X$3:X$897<=X169)-(ISBLANK(X$3:X$897)))) -> 660 | AC169: GUNSTETT
A170: 169 | B170: 1 | C170: AIN | D170: 0 | E170: LEYSSARD | F170: 1 - AIN | G170: G | H170: 619 | I170: 601 à 800 m | W170: 168 | X170: BOURG-BRUCHE | AB170: =IF(X170="","",SUMPRODUCT((X$3:X$897<=X170)-(ISBLANK(X$3:X$897)))) -> 424 | AC170: HAEGEN
A171: 170 | B171: 1 | C171: AIN | D171: 0 | E171: SAINTE-JULIE | F171: 1 - AIN | G171: G | H171: 224 | I171: 201 à 400 m | W171: 169 | X171: BREITENBACH | AB171: =IF(X171="","",SUMPRODUCT((X$3:X$897<=X171)-(ISBLANK(X$3:X$897)))) -> 428 | AC171: HAGUENAU
A172: 171 | B172: 1 | C172: AIN | D172: 0 | E172: PIZAY | F172: 1 - AIN | G172: G | H172: 279 | I172: 201 à 400 m | W172: 170 | X172: WINTZENHEIM-KOCHERSBERG | AB172: =IF(X172="","",SUMPRODUCT((X$3:X$897<=X172)-(ISBLANK(X$3:X$897)))) -> 878 | AC172: HANDSCHUHEIM
A173: 172 | B173: 1 | C173: AIN | D173: 0 | E173: SAINT-ANDRE-D'HUIRIAT | F173: 1 - AIN | G173: G | H173: 207 | I173: 201 à 400 m | W173: 171 | X173: RAUWILLER | AB173: =IF(X173="","",SUMPRODUCT((X$3:X$897<=X173)-(ISBLANK(X$3:X$897)))) -> 730 | AC173: HANGENBIETEN
A174: 173 | B174: 1 | C174: AIN | D174: 0 | E174: OUTRIAZ | F174: 1 - AIN | G174: G | H174: 806 | I174: 801 à 1000 m | W174: 172 | X174: DOMFESSEL | AB174: =IF(X174="","",SUMPRODUCT((X$3:X$897<=X174)-(ISBLANK(X$3:X$897)))) -> 462 | AC174: HARSKIRCHEN
A175: 174 | B175: 1 | C175: AIN | D175: 0 | E175: BOZ | F175: 1 - AIN | G175: G | H175: 186 | I175: 0 à 200 m | W175: 173 | X175: KOLBSHEIM | AB175: =IF(X175="","",SUMPRODUCT((X$3:X$897<=X175)-(ISBLANK(X$3:X$897)))) -> 597 | AC175: HATTEN
A176: 175 | B176: 1 | C176: AIN | D176: 0 | E176: HOTONNES | F176: 1 - AIN | G176: G | H176: 1036 | I176: 1001 à 1200 m | W176: 174 | X176: INNENHEIM | AB176: =IF(X176="","",SUMPRODUCT((X$3:X$897<=X176)-(ISBLANK(X$3:X$897)))) -> 576 | AC176: HATTMATT
A177: 176 | B177: 1 | C177: AIN | D177: 0 | E177: SAINT-SULPICE | F177: 1 - AIN | G177: G | H177: 207 | I177: 201 à 400 m | W177: 175 | X177: BLANCHERUPT | AB177: =IF(X177="","",SUMPRODUCT((X$3:X$897<=X177)-(ISBLANK(X$3:X$897)))) -> 415 | AC177: HEGENEY
A178: 177 | B178: 1 | C178: AIN | D178: 0 | E178: SAINT-DENIS-EN-BUGEY | F178: 1 - AIN | G178: G | H178: 250 | I178: 201 à 400 m | W178: 176 | X178: WITTERNHEIM | AB178: =IF(X178="","",SUMPRODUCT((X$3:X$897<=X178)-(ISBLANK(X$3:X$897)))) -> 881 | AC178: HEIDOLSHEIM
A179: 178 | B179: 1 | C179: AIN | D179: 0 | E179: BELLEYDOUX | F179: 1 - AIN | G179: G | H179: 953 | I179: 801 à 1000 m | W179: 177 | X179: CLEEBOURG | AB179: =IF(X179="","",SUMPRODUCT((X$3:X$897<=X179)-(ISBLANK(X$3:X$897)))) -> 437 | AC179: HEILIGENBERG
A180: 179 | B180: 1 | C180: AIN | D180: 0 | E180: MONTAGNIEU | F180: 1 - AIN | G180: G | H180: 379 | I180: 201 à 400 m | W180: 178 | X180: DRULINGEN | AB180: =IF(X180="","",SUMPRODUCT((X$3:X$897<=X180)-(ISBLANK(X$3:X$897)))) -> 468 | AC180: HEILIGENSTEIN
A181: 180 | B181: 1 | C181: AIN | D181: 0 | E181: SAINT-DIDIER-D'AUSSIAT | F181: 1 - AIN | G181: G | H181: 211 | I181: 201 à 400 m | W181: 179 | X181: GUNSTETT | AB181: =IF(X181="","",SUMPRODUCT((X$3:X$897<=X181)-(ISBLANK(X$3:X$897)))) -> 535 | AC181: HENGWILLER
A182: 181 | B182: 1 | C182: AIN | D182: 0 | E182: BEY | F182: 1 - AIN | G182: G | H182: 199 | I182: 0 à 200 m | W182: 180 | X182: HUTTENHEIM | AB182: =IF(X182="","",SUMPRODUCT((X$3:X$897<=X182)-(ISBLANK(X$3:X$897)))) -> 570 | AC182: HERBITZHEIM
A183: 182 | B183: 1 | C183: AIN | D183: 0 | E183: LOYETTES | F183: 1 - AIN | G183: G | H183: 197 | I183: 0 à 200 m | W183: 181 | X183: DUPPIGHEIM | AB183: =IF(X183="","",SUMPRODUCT((X$3:X$897<=X183)-(ISBLANK(X$3:X$897)))) -> 471 | AC183: HERBSHEIM
A184: 183 | B184: 1 | C184: AIN | D184: 0 | E184: POLLIEU | F184: 1 - AIN | G184: G | H184: 278 | I184: 201 à 400 m | W184: 182 | X184: FRIESENHEIM | AB184: =IF(X184="","",SUMPRODUCT((X$3:X$897<=X184)-(ISBLANK(X$3:X$897)))) -> 507 | AC184: HERRLISHEIM
A185: 184 | B185: 1 | C185: AIN | D185: 0 | E185: CHATENAY | F185: 1 - AIN | G185: G | H185: 291 | I185: 201 à 400 m | W185: 183 | X185: ERNOLSHEIM-LES-SAVERNE | AB185: =IF(X185="","",SUMPRODUCT((X$3:X$897<=X185)-(ISBLANK(X$3:X$897)))) -> 490 | AC185: HESSENHEIM
A186: 185 | B186: 1 | C186: AIN | D186: 0 | E186: LA TRANCLIERE | F186: 1 - AIN | G186: G | H186: 273 | I186: 201 à 400 m | W186: 184 | X186: SEEBACH | AB186: =IF(X186="","",SUMPRODUCT((X$3:X$897<=X186)-(ISBLANK(X$3:X$897)))) -> 801 | AC186: HILSENHEIM
A187: 186 | B187: 1 | C187: AIN | D187: 0 | E187: SAINT-JEAN-DE-THURIGNEUX | F187: 1 - AIN | G187: G | H187: 288 | I187: 201 à 400 m | W187: 185 | X187: MAISONSGOUTTE | AB187: =IF(X187="","",SUMPRODUCT((X$3:X$897<=X187)-(ISBLANK(X$3:X$897)))) -> 634 | AC187: HINDISHEIM
A188: 187 | B188: 1 | C188: AIN | D188: 0 | E188: SAINT-REMY | F188: 1 - AIN | G188: G | H188: 237 | I188: 201 à 400 m | W188: 186 | X188: SOULTZ-LES-BAINS | AB188: =IF(X188="","",SUMPRODUCT((X$3:X$897<=X188)-(ISBLANK(X$3:X$897)))) -> 813 | AC188: HINSBOURG
A189: 188 | B189: 1 | C189: AIN | D189: 0 | E189: CONDAMINE | F189: 1 - AIN | G189: G | H189: 640 | I189: 601 à 800 m | W189: 187 | X189: SAINT-PIERRE-BOIS | AB189: =IF(X189="","",SUMPRODUCT((X$3:X$897<=X189)-(ISBLANK(X$3:X$897)))) -> 770 | AC189: HINSINGEN
A190: 189 | B190: 1 | C190: AIN | D190: 0 | E190: LALLEYRIAT | F190: 1 - AIN | G190: G | H190: 901 | I190: 801 à 1000 m | W190: 188 | X190: FESSENHEIM-LE-BAS | AB190: =IF(X190="","",SUMPRODUCT((X$3:X$897<=X190)-(ISBLANK(X$3:X$897)))) -> 499 | AC190: HIPSHEIM
A191: 190 | B191: 1 | C191: AIN | D191: 0 | E191: SERVAS | F191: 1 - AIN | G191: G | H191: 262 | I191: 201 à 400 m | W191: 189 | X191: ESCHAU | AB191: =IF(X191="","",SUMPRODUCT((X$3:X$897<=X191)-(ISBLANK(X$3:X$897)))) -> 492 | AC191: HIRSCHLAND
A192: 191 | B192: 1 | C192: AIN | D192: 0 | E192: DOMPIERRE-SUR-VEYLE | F192: 1 - AIN | G192: G | H192: 284 | I192: 201 à 400 m | W192: 190 | X192: DRACHENBRONN-BIRLENBACH | AB192: =IF(X192="","",SUMPRODUCT((X$3:X$897<=X192)-(ISBLANK(X$3:X$897)))) -> 467 | AC192: HOCHFELDEN
A193: 192 | B193: 1 | C193: AIN | D193: 0 | E193: PREVESSIN-MOENS | F193: 1 - AIN | G193: G | H193: 458 | I193: 401 à 600 m | W193: 191 | X193: DIMBSTHAL | AB193: =IF(X193="","",SUMPRODUCT((X$3:X$897<=X193)-(ISBLANK(X$3:X$897)))) -> 459 | AC193: HOCHSTETT
A194: 193 | B194: 1 | C194: AIN | D194: 0 | E194: DROM | F194: 1 - AIN | G194: G | H194: 360 | I194: 201 à 400 m | W194: 192 | X194: LOHR | AB194: =IF(X194="","",SUMPRODUCT((X$3:X$897<=X194)-(ISBLANK(X$3:X$897)))) -> 627 | AC194: HOENHEIM
A195: 194 | B195: 1 | C195: AIN | D195: 0 | E195: BELMONT-LUTHEZIEU | F195: =B195&" - "&C195 -> 1 - AIN | G195: G | H195: 630 | I195: =IF(AND(H195>=0,H195<=200),$M$19, IF(AND(H195>=201,H195<=400),$M$20, IF(AND(H195>=401,H195<=600),$M$21, IF(AND(H195>=601,H195<=800),$M$22, IF(AND(H195>=801,H195<=1000),$M$23, IF(AND(H195>=1001,H195<=1200),$M$24, IF(AND(H195>=1201,H195<=1400),$M$25, IF(AND(H195>=1401,H195<=1600),$M$26, IF(AND(H195>=1601,H195<=1800),$M$27, IF(AND(H195>=1801,H195<=2000),$M$28, IF(AND(H195>=2001,H195<=2200),$M$29, IF(AND(H195>=2201,H195<=2400),$M$30, IF(AND(H195>=2401,H195<=2600),$M$31,"erreur"))))))))))))) -> 601 à 800 m | W195: 193 | X195: =IFERROR(VLOOKUP(W195,$D$2:$F$36613,2,FALSE),"") -> SCHALKENDORF | AB195: =IF(X195="","",SUMPRODUCT((X$3:X$897<=X195)-(ISBLANK(X$3:X$897)))) -> 781 | AC195: HOERDT
A196: 195 | B196: 1 | C196: AIN | D196: =IF($L$2=F196,1+D195,0) -> 0 | E196: SAINT-GENIS-SUR-MENTHON | F196: 1 - AIN | G196: G | H196: 203 | I196: 201 à 400 m | W196: 194 | X196: DIEFFENBACH-LES-WOERTH | AB196: =IF(X196="","",SUMPRODUCT((X$3:X$897<=X196)-(ISBLANK(X$3:X$897)))) -> 456 | AC196: =IF(ISNA(MATCH(MIN(AB$3:AB$897)+ROW()-ROW(AC$3),AB$3:AB$897,0)),"",INDEX(X$3:X$897,MATCH(MIN(AB$3:AB$897)+ROW()-ROW(AC$3),AB$3:AB$897,0))) -> HOFFEN
A197: 196 | B197: 1 | C197: AIN | D197: 0 | E197: DOMSURE | F197: 1 - AIN | G197: G | H197: 211 | I197: 201 à 400 m | W197: 195 | X197: MEMMELSHOFFEN | AB197: =IF(X197="","",SUMPRODUCT((X$3:X$897<=X197)-(ISBLANK(X$3:X$897)))) -> 641 | AC197: HOHATZENHEIM
A198: 197 | B198: 1 | C198: AIN | D198: 0 | E198: BILLIAT | F198: 1 - AIN | G198: G | H198: 774 | I198: 601 à 800 m | W198: 196 | X198: LOCHWILLER | AB198: =IF(X198="","",SUMPRODUCT((X$3:X$897<=X198)-(ISBLANK(X$3:X$897)))) -> 626 | AC198: HOHENGOEFT
A199: 198 | B199: 1 | C199: AIN | D199: 0 | E199: NEUVILLE-SUR-AIN | F199: 1 - AIN | G199: G | H199: 295 | I199: 201 à 400 m | W199: 197 | X199: FURCHHAUSEN | AB199: =IF(X199="","",SUMPRODUCT((X$3:X$897<=X199)-(ISBLANK(X$3:X$897)))) -> 510 | AC199: HOHFRANKENHEIM
A200: 199 | B200: 1 | C200: AIN | D200: 0 | E200: LEYMENT | F200: 1 - AIN | G200: G | H200: 247 | I200: 201 à 400 m | W200: 198 | X200: FORSTHEIM | AB200: =IF(X200="","",SUMPRODUCT((X$3:X$897<=X200)-(ISBLANK(X$3:X$897)))) -> 502 | AC200: HOLTZHEIM
... 4300 more rows

Sheet calculs réno (hidden)
B2: Index | C2: n° départ. | D2: Département | G2: Hiver | H2: Eté | I2: N° MINI | J2: N° MAXI | K2: T° EXT mini | L2: T° EXT mini | M2: Iles | N2: côte < 25 km | O2: Alt. entre 0 et 200 m | P2: Alt. entre 201 et 400 m | Q2: Alt. entre 401 et 500 m | R2: Alt. entre 501 et 600 m | S2: Alt. entre 601 et 700 m | T2: Alt. entre 701 et 800 m | U2: Alt. entre 801 et 900 m | V2: Alt. entre 901 et 1000 m | W2: Alt. entre 1001 et 1100 m | X2: Alt. entre 1101 et 1200 m | Y2: Alt. entre 1201 et 1300 m | Z2: Alt. entre 1301 et 1400 m | AA2: Alt. entre 1401 et 1500 m | AB2: Nréf (h) | AC2: Dhréf (degrés-heures) | AD2: Précision de la situation | AF2: Préf 1 (W/m²) | AG2: Préf 2 (W/m²) | AH2: Pref moyen | AI2: C3 (h/m) | AJ2: C4 (h/km) | AK2: CESI | AL2: CESI | AM2: CESI | AN2: Zone climatique
B3: 1 | C3: 2 | D3: 3 | E3: 4 | G3: 5 | H3: 6 | I3: 7 | J3: 8 | K3: 9 | L3: 10 | M3: 11 | N3: 12 | O3: 13 | P3: 14 | Q3: 15 | R3: 16 | S3: 17 | T3: 18 | U3: 19 | V3: 20 | W3: 21 | X3: 22 | Y3: 23 | Z3: 24 | AA3: 25 | AB3: 26 | AC3: 27 | AD3: 28 | AE3: 29 | AF3: 30 | AG3: 31 | AH3: 32 | AI3: 33 | AJ3: 34 | AK3: 35 | AL3: 36 | AM3: 37 | AN3: 38 | AS3: =OErtliNERGY!B24 -> 169
B4: 2 | C4: 1 | D4: Ain | E4: =C4&" - "&D4 -> 1 - Ain | F4: 2 | G4: H1 | H4: Ec | I4: 2 | J4: =MATCH(L4,M4:AA4,0)-1 -> 12 | K4: =MAX(M4:AA4) -> -10 | L4: =MIN(M4:AA4) -> -20 | M4: - | N4: - | O4: -10 | P4: -11 | Q4: -12 | R4: -13 | S4: -14 | T4: -15 | U4: -16 | V4: -17 | W4: -18 | X4: -19 | Y4: -20 | Z4: - | AA4: - | AB4: 4900 | AC4: 63000 | AF4: 80 | AH4: =IF(AG4=0,AF4,(AF4+AG4)/2) -> 80 | AI4: 1.5 | AK4: I2 | AL4: 1450 | AM4: 1 | AN4: H1c | AQ4: 1 | AR4: Entre 0 et 200 m
B5: 3 | C5: 2 | D5: Aisne | E5: 2 - Aisne | F5: 3 | G5: H1 | H5: Ea | I5: 2 | J5: 3 | K5: -7 | L5: -8 | M5: - | N5: - | O5: -7 | P5: -8 | Q5: - | R5: - | S5: - | T5: - | U5: - | V5: - | W5: - | X5: - | Y5: - | Z5: - | AA5: - | AB5: 5800 | AC5: 65400 | AF5: 73 | AH5: 73 | AK5: I1 | AL5: 1250 | AM5: 1 | AN5: H1a | AQ5: 2 | AR5: Entre 201 et 400 m
B6: 4 | C6: 3 | D6: Allier | E6: 3 - Allier | F6: 4 | G6: H1 | H6: Ec | I6: 2 | J6: 14 | K6: -8 | L6: -20 | M6: - | N6: - | O6: -8 | P6: -9 | Q6: -10 | R6: -11 | S6: -12 | T6: -13 | U6: -14 | V6: -15 | W6: -16 | X6: -17 | Y6: -18 | Z6: -19 | AA6: -20 | AB6: 5100 | AC6: 60200 | AF6: 79 | AH6: 79 | AI6: 1.5 | AK6: I2 | AL6: 1450 | AM6: 1 | AN6: H1c | AQ6: 3 | AR6: Entre 401 et 500 m
B7: 5 | C7: 4 | D7: Alpes de haute provence | E7: 4 - Alpes de haute provence | F7: 5 | G7: H2 | H7: Ed | I7: 2 | J7: 14 | K7: -8 | L7: -20 | M7: - | N7: - | O7: -8 | P7: -9 | Q7: -10 | R7: -11 | S7: -12 | T7: -13 | U7: -14 | V7: -15 | W7: -16 | X7: -17 | Y7: -18 | Z7: -19 | AA7: -20 | AB7: 4100 | AC7: 53100 | AF7: 132 | AH7: 132 | AI7: 1.5 | AK7: I4 | AL7: 2200 | AM7: 1.2 | AN7: H2d | AQ7: 4 | AR7: Entre 501 et 600 m
B8: 6 | C8: 5 | D8: Hautes-Alpes | E8: 5 - Hautes-Alpes | F8: 6 | G8: H1 | H8: Ed | I8: 2 | J8: 12 | K8: -10 | L8: -20 | M8: - | N8: - | O8: -10 | P8: -11 | Q8: -12 | R8: -13 | S8: -14 | T8: -15 | U8: -16 | V8: -17 | W8: -18 | X8: -19 | Y8: -20 | Z8: - | AA8: - | AB8: 4200 | AC8: 63000 | AD8: Ouest | AE8: Est | AF8: 125 | AG8: 135 | AH8: 130 | AI8: 1.5 | AK8: I3 | AL8: 1800 | AM8: 1.3 | AN8: H1c | AQ8: 5 | AR8: Entre 601 et 700 m
B9: 7 | C9: 6 | D9: Alpes maritimes | E9: 6 - Alpes maritimes | F9: 7 | G9: H3 | H9: Ed | I9: 0 | J9: 14 | K9: 0 | L9: -12 | M9: 0 | N9: -2 | O9: -5 | P9: -6 | Q9: -7 | R9: -7 | S9: -8 | T9: -8 | U9: -9 | V9: -9 | W9: -10 | X9: -10 | Y9: -11 | Z9: -11 | AA9: -12 | AB9: 3900 | AC9: 36000 | AF9: 135 | AH9: 135 | AI9: 1.8 | AJ9: 5 | AK9: I4 | AL9: 2200 | AM9: 1.1 | AN9: H3 | AQ9: 6 | AR9: Entre 701 et 800 m
B10: 8 | C10: 7 | D10: Ardèche | E10: 7 - Ardèche | F10: 8 | G10: H2 | H10: Ed | I10: 2 | J10: 10 | K10: -6 | L10: -14 | M10: - | N10: - | O10: -6 | P10: -7 | Q10: -8 | R10: -9 | S10: -10 | T10: -11 | U10: -12 | V10: -13 | W10: -14 | X10: - | Y10: - | Z10: - | AA10: - | AB10: 4900 | AC10: 55500 | AD10: Nord | AE10: Sud | AF10: 95 | AG10: 110 | AH10: 102.5 | AI10: 1.5 | AK10: I3 | AL10: 1800 | AM10: 1 | AN10: H2d | AQ10: 7 | AR10: Entre 801 et 900 m
B11: 9 | C11: 8 | D11: Ardennes | E11: 8 - Ardennes | F11: 9 | G11: H1 | H11: Eb | I11: 2 | J11: 4 | K11: -10 | L11: -12 | M11: - | N11: - | O11: -10 | P11: -11 | Q11: -12 | R11: - | S11: - | T11: - | U11: - | V11: - | W11: - | X11: - | Y11: - | Z11: - | AA11: - | AB11: 5600 | AC11: 70500 | AF11: 71 | AH11: 71 | AK11: I1 | AL11: 1250 | AM11: 1 | AN11: H1b | AQ11: 8 | AR11: Entre 901 et 1000 m
B12: 10 | C12: 9 | D12: Ariège | E12: 9 - Ariège | F12: 10 | G12: H2 | H12: Ec | I12: 2 | J12: 14 | K12: -5 | L12: -12 | M12: - | N12: - | O12: -5 | P12: -6 | Q12: -7 | R12: -7 | S12: -8 | T12: -8 | U12: -9 | V12: -9 | W12: -10 | X12: -10 | Y12: -11 | Z12: -11 | AA12: -12 | AB12: 4400 | AC12: 54500 | AF12: 110 | AH12: 110 | AI12: 1.5 | AK12: I3 | AL12: 1800 | AM12: 1 | AN12: H2c | AQ12: 9 | AR12: Entre 1001 et 1100 m
B13: 11 | C13: 10 | D13: Aube | E13: 10 - Aube | F13: 11 | G13: H1 | H13: Eb | I13: 2 | J13: 3 | K13: -10 | L13: -11 | M13: - | N13: - | O13: -10 | P13: -11 | Q13: - | R13: - | S13: - | T13: - | U13: - | V13: - | W13: - | X13: - | Y13: - | Z13: - | AA13: - | AB13: 5500 | AC13: 62900 | AF13: 74 | AH13: 74 | AK13: I1 | AL13: 1250 | AM13: 1 | AN13: H1b | AQ13: 10 | AR13: Entre 1101 et 1200 m
B14: 12 | C14: 11 | D14: Aude | E14: 11 - Aude | F14: 12 | G14: H3 | H14: Ed | I14: 0 | J14: 14 | K14: -2 | L14: -12 | M14: -2 | N14: -4 | O14: -5 | P14: -6 | Q14: -7 | R14: -7 | S14: -8 | T14: -8 | U14: -9 | V14: -9 | W14: -10 | X14: -10 | Y14: -11 | Z14: -11 | AA14: -12 | AB14: 4000 | AC14: 46300 | AD14: >30km de la mer | AE14: <30km de la mer | AF14: 101 | AG14: 127 | AH14: 114 | AI14: 1.8 | AJ14: 5 | AK14: I4 | AL14: 2200 | AM14: 1 | AN14: H3 | AQ14: 11 | AR14: Entre 1201 et 1300 m
B15: 13 | C15: 12 | D15: Aveyron | E15: 12 - Aveyron | F15: 13 | G15: H2 | H15: Ec | I15: 2 | J15: 13 | K15: -8 | L15: -19 | M15: - | N15: - | O15: -8 | P15: -9 | Q15: -10 | R15: -11 | S15: -12 | T15: -13 | U15: -14 | V15: -15 | W15: -16 | X15: -17 | Y15: -18 | Z15: -19 | AA15: - | AB15: 4400 | AC15: 52100 | AD15: Nord | AE15: Sud | AF15: 90 | AG15: 103 | AH15: 96.5 | AI15: 1.5 | AK15: I3 | AL15: 1800 | AM15: 1 | AN15: H2c | AQ15: 12 | AR15: Entre 1301 et 1400 m
B16: 14 | C16: 13 | D16: Bouches-du-Rhône | E16: 13 - Bouches-du-Rhône | F16: 14 | G16: H3 | H16: Ed | I16: 0 | J16: 14 | K16: -3 | L16: -12 | M16: -3 | N16: -5 | O16: -5 | P16: -6 | Q16: -7 | R16: -7 | S16: -8 | T16: -8 | U16: -9 | V16: -9 | W16: -10 | X16: -10 | Y16: -11 | Z16: -11 | AA16: -12 | AB16: 4000 | AC16: 36000 | AF16: 132 | AH16: 132 | AI16: 1.8 | AJ16: 5 | AK16: I4 | AL16: 2200 | AM16: 1 | AN16: H3 | AQ16: 13 | AR16: Entre 1401 et 1500 m
B17: 15 | C17: 14 | D17: Calvados | E17: 14 - Calvados | F17: 15 | G17: H1 | H17: Ea | I17: 0 | J17: 3 | K17: -5 | L17: -8 | M17: -5 | N17: -7 | O17: -7 | P17: -8 | Q17: - | R17: - | S17: - | T17: - | U17: - | V17: - | W17: - | X17: - | Y17: - | Z17: - | AA17: - | AB17: 5700 | AC17: 57900 | AF17: 79 | AH17: 79 | AJ17: 5 | AK17: I1 | AL17: 1250 | AM17: 1 | AN17: H1a
B18: 16 | C18: 15 | D18: Cantal | E18: 15 - Cantal | F18: 16 | G18: H1 | H18: Ec | I18: 0 | J18: 13 | K18: -8 | L18: -19 | M18: - | N18: - | O18: -8 | P18: -9 | Q18: -10 | R18: -11 | S18: -12 | T18: -13 | U18: -14 | V18: -15 | W18: -16 | X18: -17 | Y18: -18 | Z18: -19 | AA18: - | AB18: 5000 | AC18: 57600 | AF18: 87 | AH18: 87 | AI18: 1.5 | AK18: I2 | AL18: 1450 | AM18: 1.1 | AN18: H1c
B19: 17 | C19: 16 | D19: Charente | E19: 16 - Charente | F19: 17 | G19: H2 | H19: Ec | I19: 0 | J19: 3 | K19: -5 | L19: -6 | M19: - | N19: - | O19: -5 | P19: -6 | Q19: - | R19: - | S19: - | T19: - | U19: - | V19: - | W19: - | X19: - | Y19: - | Z19: - | AA19: - | AB19: 5000 | AC19: 49800 | AF19: 87 | AH19: 87 | AK19: I2 | AL19: 1450 | AM19: 1 | AN19: H2b
B20: 18 | C20: 17 | D20: Charente-Maritime | E20: 17 - Charente-Maritime | F20: 18 | G20: H2 | H20: Ec | I20: 2 | J20: 2 | K20: -2 | L20: -5 | M20: -2 | N20: -4 | O20: -5 | P20: - | Q20: - | R20: - | S20: - | T20: - | U20: - | V20: - | W20: - | X20: - | Y20: - | Z20: - | AA20: - | AB20: 5000 | AC20: 44300 | AF20: 88 | AH20: 88 | AJ20: 5 | AK20: I3 | AL20: 1800 | AM20: 1.1 | AN20: H2b
B21: 19 | C21: 18 | D21: Cher | E21: 18 - Cher | F21: 19 | G21: H2 | H21: Eb | I21: 0 | J21: 4 | K21: -7 | L21: -9 | M21: - | N21: - | O21: -7 | P21: -8 | Q21: -9 | R21: - | S21: - | T21: - | U21: - | V21: - | W21: - | X21: - | Y21: - | Z21: - | AA21: - | AB21: 5300 | AC21: 58000 | AF21: 79 | AH21: 79 | AK21: I2 | AL21: 1450 | AM21: 1 | AN21: H2b
B22: 20 | C22: 19 | D22: Corrèze | E22: 19 - Corrèze | F22: 20 | G22: H1 | H22: Ec | I22: 0 | J22: 13 | K22: -8 | L22: -19 | M22: - | N22: - | O22: -8 | P22: -9 | Q22: -10 | R22: -11 | S22: -12 | T22: -13 | U22: -14 | V22: -15 | W22: -16 | X22: -17 | Y22: -18 | Z22: -19 | AA22: - | AB22: 5000 | AC22: 54000 | AF22: 85 | AH22: 85 | AI22: 1.5 | AK22: I2 | AL22: 1450 | AM22: 1.2 | AN22: H1c
B23: 21 | C23: 2A | D23: Corse-du-Sud | E23: 2A - Corse-du-Sud | F23: 21 | G23: H3 | H23: Ed | I23: 1 | J23: 7 | K23: -2 | L23: -6 | M23: - | N23: -2 | O23: -2 | P23: -3 | Q23: -4 | R23: -4 | S23: -5 | T23: -6 | U23: -6 | V23: -6 | W23: -6 | X23: -6 | Y23: -6 | Z23: -6 | AA23: -6 | AB23: 4200 | AC23: 34000 | AF23: 126 | AH23: 126 | AI23: 1.8 | AJ23: 5 | AK23: I4 | AL23: 2200 | AM23: 1.1 | AN23: H3
B24: 22 | C24: 2B | D24: Haute-Corse | E24: 2B - Haute-Corse | F24: 22 | G24: H3 | H24: Ed | I24: 1 | J24: 7 | K24: -2 | L24: -6 | M24: - | N24: -2 | O24: -2 | P24: -3 | Q24: -4 | R24: -4 | S24: -5 | T24: -6 | U24: -6 | V24: -6 | W24: -6 | X24: -6 | Y24: -6 | Z24: -6 | AA24: -6 | AB24: 4000 | AC24: 32000 | AF24: 126 | AH24: 126 | AI24: 1.8 | AJ24: 5 | AK24: I4 | AL24: 2200 | AM24: 1.1 | AN24: H3
B25: 23 | C25: 21 | D25: Côte-d'Or | E25: 21 - Côte-d'Or | F25: 23 | G25: H1 | H25: Ec | I25: 2 | J25: 6 | K25: -10 | L25: -14 | M25: - | N25: - | O25: -10 | P25: -11 | Q25: -12 | R25: -13 | S25: -14 | T25: - | U25: - | V25: - | W25: - | X25: - | Y25: - | Z25: - | AA25: - | AB25: 4900 | AC25: 63000 | AF25: 73 | AH25: 73 | AI25: 1.5 | AK25: I2 | AL25: 1450 | AM25: 1 | AN25: H1c
B26: 24 | C26: 22 | D26: Côtes-d'Armor | E26: 22 - Côtes-d'Armor | F26: 24 | G26: H2 | H26: Ea | I26: 0 | J26: 3 | K26: -2 | L26: -5 | M26: -2 | N26: -4 | O26: -4 | P26: -5 | Q26: - | R26: - | S26: - | T26: - | U26: - | V26: - | W26: - | X26: - | Y26: - | Z26: - | AA26: - | AB26: 5400 | AC26: 48600 | AF26: 79 | AH26: 79 | AJ26: 5 | AK26: I1 | AL26: 1250 | AM26: 1 | AN26: H2a
B27: 25 | C27: 23 | D27: Creuse | E27: 23 - Creuse | F27: 25 | G27: H1 | H27: Ec | I27: 2 | J27: 13 | K27: -8 | L27: -19 | M27: - | N27: - | O27: -8 | P27: -9 | Q27: -10 | R27: -11 | S27: -12 | T27: -13 | U27: -14 | V27: -15 | W27: -16 | X27: -17 | Y27: -18 | Z27: -19 | AA27: - | AB27: 5200 | AC27: 65000 | AF27: 84 | AH27: 84 | AI27: 1.5 | AK27: I2 | AL27: 1450 | AM27: 1.1 | AN27: H1c
B28: 26 | C28: 24 | D28: Dordogne | E28: 24 - Dordogne | F28: 26 | G28: H2 | H28: Ec | I28: 2 | J28: 4 | K28: -5 | L28: -7 | M28: - | N28: - | O28: -5 | P28: -6 | Q28: -7 | R28: - | S28: - | T28: - | U28: - | V28: - | W28: - | X28: - | Y28: - | Z28: - | AA28: - | AB28: 5000 | AC28: 49900 | AF28: 87 | AH28: 87 | AK28: I2 | AL28: 1450 | AM28: 1 | AN28: H2c
B29: 27 | C29: 25 | D29: Doubs | E29: 25 - Doubs | F29: 27 | G29: H1 | H29: Ec | I29: 2 | J29: 10 | K29: -12 | L29: -20 | M29: - | N29: - | O29: -12 | P29: -13 | Q29: -14 | R29: -15 | S29: -16 | T29: -17 | U29: -18 | V29: -19 | W29: -20 | X29: - | Y29: - | Z29: - | AA29: - | AB29: 5000 | AC29: 65300 | AF29: 71 | AH29: 71 | AI29: 1.5 | AK29: I2 | AL29: 1450 | AM29: 1 | AN29: H1c
B30: 28 | C30: 26 | D30: Drôme | E30: 26 - Drôme | F30: 28 | G30: H2 | H30: Ed | I30: 2 | J30: 10 | K30: -6 | L30: -14 | M30: - | N30: - | O30: -6 | P30: -7 | Q30: -8 | R30: -9 | S30: -10 | T30: -11 | U30: -12 | V30: -13 | W30: -14 | X30: - | Y30: - | Z30: - | AA30: - | AB30: 4800 | AC30: 50900 | AD30: Nord | AE30: Sud | AF30: 100 | AG30: 120 | AH30: 110 | AI30: 1.5 | AK30: I3 | AL30: 1800 | AM30: 1 | AN30: H2d
B31: 29 | C31: 27 | D31: Eure | E31: 27 - Eure | F31: 29 | G31: H1 | H31: Ea | I31: 2 | J31: 3 | K31: -7 | L31: -8 | M31: - | N31: - | O31: -7 | P31: -8 | Q31: - | R31: - | S31: - | T31: - | U31: - | V31: - | W31: - | X31: - | Y31: - | Z31: - | AA31: - | AB31: 5500 | AC31: 60000 | AF31: 78 | AH31: 78 | AJ31: 5 | AK31: I1 | AL31: 1250 | AM31: 1 | AN31: H1a
B32: 30 | C32: 28 | D32: Eure-et-Loire | E32: 28 - Eure-et-Loire | F32: 30 | G32: H1 | H32: Eb | I32: 2 | J32: 3 | K32: -7 | L32: -8 | M32: - | N32: - | O32: -7 | P32: -8 | Q32: - | R32: - | S32: - | T32: - | U32: - | V32: - | W32: - | X32: - | Y32: - | Z32: - | AA32: - | AB32: 5600 | AC32: 60504 | AF32: 78 | AH32: 78 | AK32: I2 | AL32: 1450 | AM32: 1 | AN32: H1a
B33: 31 | C33: 29 | D33: Finistère | E33: 29 - Finistère | F33: 31 | G33: H2 | H33: Ea | I33: 0 | J33: 3 | K33: -2 | L33: -5 | M33: -2 | N33: -4 | O33: -4 | P33: -5 | Q33: - | R33: - | S33: - | T33: - | U33: - | V33: - | W33: - | X33: - | Y33: - | Z33: - | AA33: - | AB33: 5800 | AC33: 44900 | AF33: 79 | AH33: 79 | AJ33: 5 | AK33: I1 | AL33: 1250 | AM33: 1 | AN33: H2a
B34: 32 | C34: 30 | D34: Gard | E34: 30 - Gard | F34: 32 | G34: H3 | H34: Ed | I34: 0 | J34: 14 | K34: -3 | L34: -12 | M34: -3 | N34: -3 | O34: -5 | P34: -6 | Q34: -7 | R34: -7 | S34: -8 | T34: -8 | U34: -9 | V34: -9 | W34: -10 | X34: -10 | Y34: -11 | Z34: -11 | AA34: -12 | AB34: 4000 | AC34: 42300 | AD34: Nord | AE34: Sud | AF34: 120 | AG34: 127 | AH34: 123.5 | AI34: 1.8 | AJ34: 5 | AK34: I4 | AL34: 2200 | AM34: 1 | AN34: H3
B35: 33 | C35: 31 | D35: Haute-Garonne | E35: 31 - Haute-Garonne | F35: 33 | G35: H2 | H35: Ec | I35: 2 | J35: 14 | K35: -5 | L35: -12 | M35: - | N35: - | O35: -5 | P35: -6 | Q35: -7 | R35: -7 | S35: -8 | T35: -8 | U35: -9 | V35: -9 | W35: -10 | X35: -10 | Y35: -11 | Z35: -11 | AA35: -12 | AB35: 4500 | AC35: 48300 | AF35: 98 | AH35: 98 | AI35: 1.5 | AK35: I3 | AL35: 1800 | AM35: 1 | AN35: H2c
B36: 34 | C36: 32 | D36: Gers | E36: =C36&" - "&D36 -> 32 - Gers | F36: 34 | G36: H2 | H36: Ec | I36: 2 | J36: =MATCH(L36,M36:AA36,0)-1 -> 3 | K36: =MAX(M36:AA36) -> -5 | L36: =MIN(M36:AA36) -> -6 | M36: - | N36: - | O36: -5 | P36: -6 | Q36: - | R36: - | S36: - | T36: - | U36: - | V36: - | W36: - | X36: - | Y36: - | Z36: - | AA36: - | AB36: 4800 | AC36: 48000 | AF36: 92 | AH36: =IF(AG36=0,AF36,(AF36+AG36)/2) -> 92 | AK36: I3 | AL36: 1800 | AM36: 1 | AN36: H2c
B37: 35 | C37: 33 | D37: Gironde | E37: 33 - Gironde | F37: 35 | G37: H2 | H37: Ec | I37: 0 | J37: 2 | K37: -2 | L37: -5 | M37: -2 | N37: -4 | O37: -5 | P37: - | Q37: - | R37: - | S37: - | T37: - | U37: - | V37: - | W37: - | X37: - | Y37: - | Z37: - | AA37: - | AB37: 4500 | AC37: 44400 | AF37: 91 | AH37: 91 | AJ37: 5 | AK37: I3 | AL37: 1800 | AM37: 1 | AN37: H2c
B38: 36 | C38: 34 | D38: Hérault | E38: 34 - Hérault | F38: 36 | G38: H3 | H38: Ed | I38: 0 | J38: 14 | K38: -3 | L38: -12 | M38: -3 | N38: -3 | O38: -5 | P38: -6 | Q38: -7 | R38: -7 | S38: -8 | T38: -8 | U38: -9 | V38: -9 | W38: -10 | X38: -10 | Y38: -11 | Z38: -11 | AA38: -12 | AB38: 4100 | AC38: 36500 | AD38: >30km de la mer | AE38: <30km de la mer | AF38: 110 | AG38: 127 | AH38: 118.5 | AI38: 1.8 | AJ38: 5 | AK38: I4 | AL38: 2200 | AM38: 1 | AN38: H3
B39: 37 | C39: 35 | D39: Ile-et-Vilaine | E39: 35 - Ile-et-Vilaine | F39: 37 | G39: H2 | H39: Ea | I39: 0 | J39: 1 | K39: -2 | L39: -4 | M39: -2 | N39: -4 | O39: -4 | P39: - | Q39: - | R39: - | S39: - | T39: - | U39: - | V39: - | W39: - | X39: - | Y39: - | Z39: - | AA39: - | AB39: 5300 | AC39: 53000 | AF39: 79 | AH39: 79 | AJ39: 5 | AK39: I2 | AL39: 1450 | AM39: 1 | AN39: H2a
B40: 38 | C40: 36 | D40: Indre | E40: 36 - Indre | F40: 38 | G40: H2 | H40: Eb | I40: 2 | J40: 4 | K40: -7 | L40: -9 | M40: - | N40: - | O40: -7 | P40: -8 | Q40: -9 | R40: - | S40: - | T40: - | U40: - | V40: - | W40: - | X40: - | Y40: - | Z40: - | AA40: - | AB40: 5300 | AC40: 59000 | AF40: 84 | AH40: 84 | AK40: I2 | AL40: 1450 | AM40: 1 | AN40: H2b
B41: 39 | C41: 37 | D41: Indre-et-Loire | E41: 37 - Indre-et-Loire | F41: 39 | G41: H2 | H41: Eb | I41: 2 | J41: 2 | K41: -7 | L41: -7 | M41: - | N41: - | O41: -7 | P41: - | Q41: - | R41: - | S41: - | T41: - | U41: - | V41: - | W41: - | X41: - | Y41: - | Z41: - | AA41: - | AB41: 5300 | AC41: 57000 | AF41: 85 | AH41: 85 | AK41: I2 | AL41: 1450 | AM41: 1 | AN41: H2b
B42: 40 | C42: 38 | D42: Isère | E42: 38 - Isère | F42: 40 | G42: H1 | H42: Ec | I42: 2 | J42: 12 | K42: -10 | L42: -20 | M42: - | N42: - | O42: -10 | P42: -11 | Q42: -12 | R42: -13 | S42: -14 | T42: -15 | U42: -16 | V42: -17 | W42: -18 | X42: -19 | Y42: -20 | Z42: - | AA42: - | AB42: 4800 | AC42: 62700 | AD42: Nord | AE42: Sud | AF42: 90 | AG42: 115 | AH42: 102.5 | AI42: 1.5 | AK42: I3 | AL42: 1800 | AM42: 1.1 | AN42: H1c
B43: 41 | C43: 39 | D43: Jura | E43: 39 - Jura | F43: 41 | G43: H1 | H43: Ec | I43: 2 | J43: 12 | K43: -10 | L43: -20 | M43: - | N43: - | O43: -10 | P43: -11 | Q43: -12 | R43: -13 | S43: -14 | T43: -15 | U43: -16 | V43: -17 | W43: -18 | X43: -19 | Y43: -20 | Z43: - | AA43: - | AB43: 4900 | AC43: 65000 | AF43: 74 | AH43: 74 | AI43: 1.5 | AK43: I2 | AL43: 1450 | AM43: 1 | AN43: H1c
B44: 42 | C44: 40 | D44: Landes | E44: 40 - Landes | F44: 42 | G44: H2 | H44: Ec | I44: 0 | J44: 3 | K44: -2 | L44: -6 | M44: -2 | N44: -4 | O44: -5 | P44: -6 | Q44: - | R44: - | S44: - | T44: - | U44: - | V44: - | W44: - | X44: - | Y44: - | Z44: - | AA44: - | AB44: 4400 | AC44: 42000 | AF44: 94 | AH44: 94 | AJ44: 5 | AK44: I3 | AL44: 1800 | AM44: 1 | AN44: H2c
B45: 43 | C45: 41 | D45: Loir-et-Cher | E45: 41 - Loir-et-Cher | F45: 43 | G45: H2 | H45: Eb | I45: 2 | J45: 3 | K45: -7 | L45: -8 | M45: - | N45: - | O45: -7 | P45: -8 | Q45: - | R45: - | S45: - | T45: - | U45: - | V45: - | W45: - | X45: - | Y45: - | Z45: - | AA45: - | AB45: 5400 | AC45: 59000 | AF45: 82 | AH45: 82 | AK45: I2 | AL45: 1450 | AM45: 1 | AN45: H2b
B46: 44 | C46: 42 | D46: Loire | E46: 42 - Loire | F46: 44 | G46: H1 | H46: Ec | I46: 2 | J46: 12 | K46: -10 | L46: -20 | M46: - | N46: - | O46: -10 | P46: -11 | Q46: -12 | R46: -13 | S46: -14 | T46: -15 | U46: -16 | V46: -17 | W46: -18 | X46: -19 | Y46: -20 | Z46: - | AA46: - | AB46: 4900 | AC46: 63300 | AF46: 83 | AH46: 83 | AI46: 1.5 | AK46: I2 | AL46: 1450 | AM46: 1 | AN46: H1c
B47: 45 | C47: 43 | D47: Haute-Loire | E47: 43 - Haute-Loire | F47: 45 | G47: H1 | H47: Ec | I47: 2 | J47: 13 | K47: -8 | L47: -19 | M47: - | N47: - | O47: -8 | P47: -9 | Q47: -10 | R47: -11 | S47: -12 | T47: -13 | U47: -14 | V47: -15 | W47: -16 | X47: -17 | Y47: -18 | Z47: -19 | AA47: - | AB47: 5000 | AC47: 61000 | AF47: 92 | AH47: 92 | AI47: 1.5 | AK47: I2 | AL47: 1450 | AM47: 1.1 | AN47: H1c
B48: 46 | C48: 44 | D48: Loire Atlantique | E48: 44 - Loire Atlantique | F48: 46 | G48: H2 | H48: Eb | I48: 0 | J48: 2 | K48: -2 | L48: -5 | M48: -2 | N48: -4 | O48: -5 | P48: - | Q48: - | R48: - | S48: - | T48: - | U48: - | V48: - | W48: - | X48: - | Y48: - | Z48: - | AA48: - | AB48: 4900 | AC48: 49700 | AF48: 82 | AH48: 82 | AJ48: 5 | AK48: I2 | AL48: 1450 | AM48: 1 | AN48: H2b
B49: 47 | C49: 45 | D49: Loiret | E49: 45 - Loiret | F49: 47 | G49: H1 | H49: Eb | I49: 2 | J49: 3 | K49: -7 | L49: -8 | M49: - | N49: - | O49: -7 | P49: -8 | Q49: - | R49: - | S49: - | T49: - | U49: - | V49: - | W49: - | X49: - | Y49: - | Z49: - | AA49: - | AB49: 5400 | AC49: 61000 | AF49: 78 | AH49: 78 | AK49: I2 | AL49: 1450 | AM49: 1 | AN49: H1b
B50: 48 | C50: 46 | D50: Lot | E50: 46 - Lot | F50: 48 | G50: H2 | H50: Ec | I50: 2 | J50: 10 | K50: -6 | L50: -14 | M50: - | N50: - | O50: -6 | P50: -7 | Q50: -8 | R50: -9 | S50: -10 | T50: -11 | U50: -12 | V50: -13 | W50: -14 | X50: - | Y50: - | Z50: - | AA50: - | AB50: 4600 | AC50: 51100 | AF50: 88 | AH50: 88 | AI50: 1.5 | AK50: I3 | AL50: 1800 | AM50: 1 | AN50: H2c
B51: 49 | C51: 47 | D51: Lot-et-Garonne | E51: 47 - Lot-et-Garonne | F51: 49 | G51: H2 | H51: Ec | I51: 2 | J51: 3 | K51: -5 | L51: -6 | M51: - | N51: - | O51: -5 | P51: -6 | Q51: - | R51: - | S51: - | T51: - | U51: - | V51: - | W51: - | X51: - | Y51: - | Z51: - | AA51: - | AB51: 5000 | AC51: 49800 | AF51: 87 | AH51: 87 | AK51: I3 | AL51: 1800 | AM51: 1 | AN51: H2c
B52: 50 | C52: 48 | D52: Lozère | E52: 48 - Lozère | F52: 50 | G52: H2 | H52: Ed | I52: 2 | J52: 13 | K52: -8 | L52: -19 | M52: - | N52: - | O52: -8 | P52: -9 | Q52: -10 | R52: -11 | S52: -12 | T52: -13 | U52: -14 | V52: -15 | W52: -16 | X52: -17 | Y52: -18 | Z52: -19 | AA52: - | AB52: 4600 | AC52: 64800 | AF52: 100 | AH52: 100 | AI52: 1.5 | AK52: I3 | AL52: 1800 | AM52: 1 | AN52: H2d
B53: 51 | C53: 49 | D53: Maine-et-Loire | E53: 49 - Maine-et-Loire | F53: 51 | G53: H2 | H53: Eb | I53: 2 | J53: 3 | K53: -7 | L53: -8 | M53: - | N53: - | O53: -7 | P53: -8 | Q53: - | R53: - | S53: - | T53: - | U53: - | V53: - | W53: - | X53: - | Y53: - | Z53: - | AA53: - | AB53: 5200 | AC53: 55000 | AF53: 83 | AH53: 83 | AK53: I2 | AL53: 1450 | AM53: 1 | AN53: H2b
B54: 52 | C54: 50 | D54: Manche | E54: 50 - Manche | F54: 52 | G54: H2 | H54: Ea | I54: 0 | J54: 3 | K54: -2 | L54: -5 | M54: -2 | N54: -2 | O54: -4 | P54: -5 | Q54: - | R54: - | S54: - | T54: - | U54: - | V54: - | W54: - | X54: - | Y54: - | Z54: - | AA54: - | AB54: 5700 | AC54: 49700 | AF54: 76 | AH54: 76 | AJ54: 4 | AK54: I1 | AL54: 1250 | AM54: 1 | AN54: H2a
B55: 53 | C55: 51 | D55: Marne | E55: 51 - Marne | F55: 53 | G55: H1 | H55: Eb | I55: 2 | J55: 3 | K55: -10 | L55: -11 | M55: - | N55: - | O55: -10 | P55: -11 | Q55: - | R55: - | S55: - | T55: - | U55: - | V55: - | W55: - | X55: - | Y55: - | Z55: - | AA55: - | AB55: 5600 | AC55: 65000 | AF55: 74 | AH55: 74 | AK55: I1 | AL55: 1250 | AM55: 1 | AN55: H1b
B56: 54 | C56: 52 | D56: Haute-Marne | E56: 52 - Haute-Marne | F56: 54 | G56: H1 | H56: Eb | I56: 2 | J56: 5 | K56: -12 | L56: -15 | M56: - | N56: - | O56: -12 | P56: -13 | Q56: -14 | R56: -15 | S56: - | T56: - | U56: - | V56: - | W56: - | X56: - | Y56: - | Z56: - | AA56: - | AB56: 5200 | AC56: 62700 | AF56: 73 | AH56: 73 | AI56: 1.5 | AK56: I1 | AL56: 1250 | AM56: 1 | AN56: H1b
B57: 55 | C57: 53 | D57: Mayenne | E57: 53 - Mayenne | F57: 55 | G57: H2 | H57: Eb | I57: 2 | J57: 3 | K57: -7 | L57: -8 | M57: - | N57: - | O57: -7 | P57: -8 | Q57: - | R57: - | S57: - | T57: - | U57: - | V57: - | W57: - | X57: - | Y57: - | Z57: - | AA57: - | AB57: 5200 | AC57: 55200 | AF57: 81 | AH57: 81 | AK57: I2 | AL57: 1450 | AM57: 1 | AN57: H2b
B58: 56 | C58: 54 | D58: Meurthe-et-Moselle | E58: 54 - Meurthe-et-Moselle | F58: 56 | G58: H1 | H58: Eb | I58: 2 | J58: 8 | K58: -15 | L58: -20 | M58: - | N58: - | O58: -15 | P58: -15 | Q58: -16 | R58: -17 | S58: -18 | T58: -19 | U58: -20 | V58: - | W58: - | X58: - | Y58: - | Z58: - | AA58: - | AB58: 5800 | AC58: 66500 | AF58: 69 | AH58: 69 | AK58: I1 | AL58: 1250 | AM58: 1 | AN58: H1b
B59: 57 | C59: 55 | D59: Meuse | E59: 55 - Meuse | F59: 57 | G59: H1 | H59: Eb | I59: 2 | J59: 4 | K59: -12 | L59: -14 | M59: - | N59: - | O59: -12 | P59: -13 | Q59: -14 | R59: - | S59: - | T59: - | U59: - | V59: - | W59: - | X59: - | Y59: - | Z59: - | AA59: - | AB59: 5600 | AC59: 71200 | AF59: 71 | AH59: 71 | AK59: I1 | AL59: 1250 | AM59: 1 | AN59: H1b
B60: 58 | C60: 56 | D60: Morbihan | E60: 56 - Morbihan | F60: 58 | G60: H2 | H60: Ea | I60: 0 | J60: 3 | K60: -2 | L60: -5 | M60: -2 | N60: -4 | O60: -4 | P60: -5 | Q60: - | R60: - | S60: - | T60: - | U60: - | V60: - | W60: - | X60: - | Y60: - | Z60: - | AA60: - | AB60: 5100 | AC60: 48000 | AF60: 79 | AH60: 79 | AJ60: 5 | AK60: I2 | AL60: 1450 | AM60: 1 | AN60: H2a
B61: 59 | C61: 57 | D61: Moselle | E61: 57 - Moselle | F61: 59 | G61: H1 | H61: Eb | I61: 2 | J61: 8 | K61: -15 | L61: -20 | M61: - | N61: - | O61: -15 | P61: -15 | Q61: -16 | R61: -17 | S61: -18 | T61: -19 | U61: -20 | V61: - | W61: - | X61: - | Y61: - | Z61: - | AA61: - | AB61: 5600 | AC61: 68000 | AF61: 69 | AH61: 69 | AK61: I1 | AL61: 1250 | AM61: 1 | AN61: H1b
B62: 60 | C62: 58 | D62: Nièvre | E62: 58 - Nièvre | F62: 60 | G62: H1 | H62: Eb | I62: 2 | J62: 12 | K62: -10 | L62: -20 | M62: - | N62: - | O62: -10 | P62: -11 | Q62: -12 | R62: -13 | S62: -14 | T62: -15 | U62: -16 | V62: -17 | W62: -18 | X62: -19 | Y62: -20 | Z62: - | AA62: - | AB62: 5200 | AC62: 60800 | AF62: 76 | AH62: 76 | AI62: 1.5 | AK62: I2 | AL62: 1450 | AM62: 1 | AN62: H1b
B63: 61 | C63: 59 | D63: Nord | E63: 59 - Nord | F63: 61 | G63: H1 | H63: Ea | I63: 0 | J63: 3 | K63: -7 | L63: -10 | M63: -7 | N63: -9 | O63: -9 | P63: -10 | Q63: - | R63: - | S63: - | T63: - | U63: - | V63: - | W63: - | X63: - | Y63: - | Z63: - | AA63: - | AB63: 5500 | AC63: 60000 | AF63: 69 | AH63: 69 | AJ63: 5 | AK63: I1 | AL63: 1250 | AM63: 1 | AN63: H1a
B64: 62 | C64: 60 | D64: Oise | E64: 60 - Oise | F64: 62 | G64: H1 | H64: Ea | I64: 2 | J64: 3 | K64: -7 | L64: -8 | M64: - | N64: - | O64: -7 | P64: -8 | Q64: - | R64: - | S64: - | T64: - | U64: - | V64: - | W64: - | X64: - | Y64: - | Z64: - | AA64: - | AB64: 5700 | AC64: 61200 | AF64: 75 | AH64: 75 | AK64: I1 | AL64: 1250 | AM64: 1 | AN64: H1a
B65: 63 | C65: 61 | D65: Orne | E65: 61 - Orne | F65: 63 | G65: H1 | H65: Ea | I65: 2 | J65: 4 | K65: -7 | L65: -9 | M65: - | N65: - | O65: -7 | P65: -8 | Q65: -9 | R65: - | S65: - | T65: - | U65: - | V65: - | W65: - | X65: - | Y65: - | Z65: - | AA65: - | AB65: 5600 | AC65: 60900 | AF65: 79 | AH65: 79 | AK65: I1 | AL65: 1250 | AM65: 1 | AN65: H1a
B66: 64 | C66: 62 | D66: Pas-de-Calais | E66: 62 - Pas-de-Calais | F66: 64 | G66: H1 | H66: Ea | I66: 0 | J66: 3 | K66: -7 | L66: -10 | M66: -7 | N66: -9 | O66: -9 | P66: -10 | Q66: - | R66: - | S66: - | T66: - | U66: - | V66: - | W66: - | X66: - | Y66: - | Z66: - | AA66: - | AB66: 5500 | AC66: 60400 | AF66: 69 | AH66: 69 | AJ66: 5 | AK66: I1 | AL66: 1250 | AM66: 1 | AN66: H1a
B67: 65 | C67: 63 | D67: Puy-de-Dôme | E67: 63 - Puy-de-Dôme | F67: 65 | G67: H1 | H67: Ec | I67: 2 | J67: 13 | K67: -8 | L67: -19 | M67: - | N67: - | O67: -8 | P67: -9 | Q67: -10 | R67: -11 | S67: -12 | T67: -13 | U67: -14 | V67: -15 | W67: -16 | X67: -17 | Y67: -18 | Z67: -19 | AA67: - | AB67: 4800 | AC67: 60000 | AF67: 83 | AH67: 83 | AI67: 1.5 | AK67: I2 | AL67: 1450 | AM67: 1.1 | AN67: H1c
B68: 66 | C68: 64 | D68: Pyrénées Atlantiques | E68: =C68&" - "&D68 -> 64 - Pyrénées Atlantiques | F68: 66 | G68: H2 | H68: Ec | I68: 0 | J68: =MATCH(L68,M68:AA68,0)-1 -> 14 | K68: =MAX(M68:AA68) -> -3 | L68: =MIN(M68:AA68) -> -12 | M68: -3 | N68: -4 | O68: -5 | P68: -6 | Q68: -7 | R68: -7 | S68: -8 | T68: -8 | U68: -9 | V68: -9 | W68: -10 | X68: -10 | Y68: -11 | Z68: -11 | AA68: -12 | AB68: 4200 | AC68: 38400 | AF68: 98 | AH68: =IF(AG68=0,AF68,(AF68+AG68)/2) -> 98 | AI68: 1.8 | AJ68: 5 | AK68: I3 | AL68: 1800 | AM68: 1.1 | AN68: H2c
B69: 67 | C69: 65 | D69: Hautes-Pyrénées | E69: 65 - Hautes-Pyrénées | F69: 67 | G69: H2 | H69: Ec | I69: 2 | J69: 14 | K69: -5 | L69: -12 | M69: - | N69: - | O69: -5 | P69: -6 | Q69: -7 | R69: -7 | S69: -8 | T69: -8 | U69: -9 | V69: -9 | W69: -10 | X69: -10 | Y69: -11 | Z69: -11 | AA69: -12 | AB69: 4600 | AC69: 52500 | AF69: 98 | AH69: 98 | AI69: 1.5 | AK69: I3 | AL69: 1800 | AM69: 1 | AN69: H2c
B70: 68 | C70: 66 | D70: Pyrénées-orientales | E70: 66 - Pyrénées-orientales | F70: 68 | G70: H3 | H70: Ed | I70: 0 | J70: 14 | K70: -2 | L70: -12 | M70: -2 | N70: -4 | O70: -5 | P70: -6 | Q70: -7 | R70: -7 | S70: -8 | T70: -8 | U70: -9 | V70: -9 | W70: -10 | X70: -10 | Y70: -11 | Z70: -11 | AA70: -12 | AB70: 3700 | AC70: 36000 | AD70: >30km de la mer | AE70: <30km de la mer | AF70: 140 | AG70: 127 | AH70: 133.5 | AI70: 1.8 | AJ70: 5 | AK70: I4 | AL70: 2200 | AM70: 1.1 | AN70: H3
B71: 69 | C71: 67 | D71: Bas-Rhin | E71: 67 - Bas-Rhin | F71: 69 | G71: H1 | H71: Eb | I71: 2 | J71: 8 | K71: -15 | L71: -20 | M71: - | N71: - | O71: -15 | P71: -15 | Q71: -16 | R71: -17 | S71: -18 | T71: -19 | U71: -20 | V71: - | W71: - | X71: - | Y71: - | Z71: - | AA71: - | AB71: 5200 | AC71: 64800 | AF71: 66 | AH71: 66 | AI71: 1.5 | AK71: I1 | AL71: 1250 | AM71: 1 | AN71: H1b
B72: 70 | C72: 68 | D72: Haut-Rhin | E72: 68 - Haut-Rhin | F72: 70 | G72: H1 | H72: Eb | I72: 2 | J72: 8 | K72: -15 | L72: -20 | M72: - | N72: - | O72: -15 | P72: -15 | Q72: -16 | R72: -17 | S72: -18 | T72: -19 | U72: -20 | V72: - | W72: - | X72: - | Y72: - | Z72: - | AA72: - | AB72: 5300 | AC72: 64000 | AF72: 69 | AH72: 69 | AI72: 1.5 | AK72: I1 | AL72: 1250 | AM72: 1 | AN72: H1b
B73: 71 | C73: 69 | D73: Rhône | E73: 69 - Rhône | F73: 71 | G73: H1 | H73: Ec | I73: 2 | J73: 12 | K73: -10 | L73: -20 | M73: - | N73: - | O73: -10 | P73: -11 | Q73: -12 | R73: -13 | S73: -14 | T73: -15 | U73: -16 | V73: -17 | W73: -18 | X73: -19 | Y73: -20 | Z73: - | AA73: - | AB73: 4900 | AC73: 58800 | AF73: 80 | AH73: 80 | AI73: 1.5 | AK73: I2 | AL73: 1450 | AM73: 1 | AN73: H1c
B74: 72 | C74: 70 | D74: Haute-Saône | E74: 70 - Haute-Saône | F74: 72 | G74: H1 | H74: Eb | I74: 2 | J74: 12 | K74: -10 | L74: -20 | M74: - | N74: - | O74: -10 | P74: -11 | Q74: -12 | R74: -13 | S74: -14 | T74: -15 | U74: -16 | V74: -17 | W74: -18 | X74: -19 | Y74: -20 | Z74: - | AA74: - | AB74: 5300 | AC74: 65000 | AF74: 71 | AH74: 71 | AI74: 1.5 | AK74: I1 | AL74: 1250 | AM74: 1 | AN74: H1b
B75: 73 | C75: 71 | D75: Saône-et-Loire | E75: 71 - Saône-et-Loire | F75: 73 | G75: H1 | H75: Ec | I75: 2 | J75: 12 | K75: -10 | L75: -20 | M75: - | N75: - | O75: -10 | P75: -11 | Q75: -12 | R75: -13 | S75: -14 | T75: -15 | U75: -16 | V75: -17 | W75: -18 | X75: -19 | Y75: -20 | Z75: - | AA75: - | AB75: 5200 | AC75: 62400 | AF75: 74 | AH75: 74 | AI75: 1.5 | AK75: I2 | AL75: 1450 | AM75: 1 | AN75: H1c
B76: 74 | C76: 72 | D76: Sarthe | E76: 72 - Sarthe | F76: 74 | G76: H2 | H76: Eb | I76: 2 | J76: 3 | K76: -7 | L76: -8 | M76: - | N76: - | O76: -7 | P76: -8 | Q76: - | R76: - | S76: - | T76: - | U76: - | V76: - | W76: - | X76: - | Y76: - | Z76: - | AA76: - | AB76: 5300 | AC76: 57000 | AF76: 82 | AH76: 82 | AK76: I2 | AL76: 1450 | AM76: 1 | AN76: H2b
B77: 75 | C77: 73 | D77: Savoie | E77: 73 - Savoie | F77: 75 | G77: H1 | H77: Ec | I77: 2 | J77: 12 | K77: -10 | L77: -20 | M77: - | N77: - | O77: -10 | P77: -11 | Q77: -12 | R77: -13 | S77: -14 | T77: -15 | U77: -16 | V77: -17 | W77: -18 | X77: -19 | Y77: -20 | Z77: - | AA77: - | AB77: 4600 | AC77: 67100 | AF77: 100 | AH77: 100 | AI77: 1.5 | AK77: I2 | AL77: 1450 | AM77: 1.1 | AN77: H1c
B78: 76 | C78: 74 | D78: Haute-Savoie | E78: 74 - Haute-Savoie | F78: 76 | G78: H1 | H78: Ec | I78: 2 | J78: 12 | K78: -10 | L78: -20 | M78: - | N78: - | O78: -10 | P78: -11 | Q78: -12 | R78: -13 | S78: -14 | T78: -15 | U78: -16 | V78: -17 | W78: -18 | X78: -19 | Y78: -20 | Z78: - | AA78: - | AB78: 4900 | AC78: 64100 | AF78: 80 | AH78: 80 | AI78: 1.5 | AK78: I2 | AL78: 1450 | AM78: 1 | AN78: H1c
B79: 77 | C79: 75 | D79: Paris | E79: 75 - Paris | F79: 77 | G79: H1 | H79: Eb | I79: 2 | J79: 2 | K79: -5 | L79: -5 | M79: - | N79: - | O79: -5 | P79: - | Q79: - | R79: - | S79: - | T79: - | U79: - | V79: - | W79: - | X79: - | Y79: - | Z79: - | AA79: - | AB79: 5100 | AC79: 55000 | AF79: 66 | AH79: 66 | AK79: I1 | AL79: 1250 | AM79: 1 | AN79: H1a
B80: 78 | C80: 76 | D80: Seine-Maritime | E80: 76 - Seine-Maritime | F80: 78 | G80: H1 | H80: Ea | I80: 0 | J80: 3 | K80: -5 | L80: -8 | M80: -5 | N80: -7 | O80: -7 | P80: -8 | Q80: - | R80: - | S80: - | T80: - | U80: - | V80: - | W80: - | X80: - | Y80: - | Z80: - | AA80: - | AB80: 5500 | AC80: 58000 | AF80: 76 | AH80: 76 | AJ80: 5 | AK80: I1 | AL80: 1250 | AM80: 1 | AN80: H1a
B81: 79 | C81: 77 | D81: Seine-et-Marne | E81: 77 - Seine-et-Marne | F81: 79 | G81: H1 | H81: Eb | I81: 2 | J81: 3 | K81: -7 | L81: -8 | M81: - | N81: - | O81: -7 | P81: -8 | Q81: - | R81: - | S81: - | T81: - | U81: - | V81: - | W81: - | X81: - | Y81: - | Z81: - | AA81: - | AB81: 5500 | AC81: 60000 | AF81: 72 | AH81: 72 | AK81: I1 | AL81: 1250 | AM81: 1 | AN81: H1a
B82: 80 | C82: 78 | D82: Yvelines | E82: 78 - Yvelines | F82: 80 | G82: H1 | H82: Eb | I82: 2 | J82: 2 | K82: -7 | L82: -7 | M82: - | N82: - | O82: -7 | P82: - | Q82: - | R82: - | S82: - | T82: - | U82: - | V82: - | W82: - | X82: - | Y82: - | Z82: - | AA82: - | AB82: 5800 | AC82: 63100 | AF82: 72 | AH82: 72 | AK82: I1 | AL82: 1250 | AM82: 1 | AN82: H1a
B83: 81 | C83: 79 | D83: Deux-Sèvres | E83: 79 - Deux-Sèvres | F83: 81 | G83: H2 | H83: Eb | I83: 2 | J83: 3 | K83: -7 | L83: -8 | M83: - | N83: - | O83: -7 | P83: -8 | Q83: - | R83: - | S83: - | T83: - | U83: - | V83: - | W83: - | X83: - | Y83: - | Z83: - | AA83: - | AB83: 5300 | AC83: 50400 | AF83: 85 | AH83: 85 | AK83: I2 | AL83: 1450 | AM83: 1 | AN83: H2b
B84: 82 | C84: 80 | D84: Somme | E84: 80 - Somme | F84: 82 | G84: H1 | H84: Ea | I84: 0 | J84: 3 | K84: -7 | L84: -10 | M84: -7 | N84: -8 | O84: -9 | P84: -10 | Q84: - | R84: - | S84: - | T84: - | U84: - | V84: - | W84: - | X84: - | Y84: - | Z84: - | AA84: - | AB84: 5800 | AC84: 62500 | AF84: 73 | AH84: 73 | AJ84: 5 | AK84: I1 | AL84: 1250 | AM84: 1 | AN84: H1a
B85: 83 | C85: 81 | D85: Tarn | E85: 81 - Tarn | F85: 83 | G85: H2 | H85: Ec | I85: 2 | J85: 14 | K85: -5 | L85: -12 | M85: - | N85: - | O85: -5 | P85: -6 | Q85: -7 | R85: -7 | S85: -8 | T85: -8 | U85: -9 | V85: -9 | W85: -10 | X85: -10 | Y85: -11 | Z85: -11 | AA85: -12 | AB85: 4400 | AC85: 40000 | AF85: 100 | AH85: 100 | AI85: 1.5 | AK85: I3 | AL85: 1800 | AM85: 1 | AN85: H2c
B86: 84 | C86: 82 | D86: Tarn-et-Garonne | E86: 82 - Tarn-et-Garonne | F86: 84 | G86: H2 | H86: Ec | I86: 1 | J86: 3 | K86: -5 | L86: -6 | M86: - | N86: - | O86: -5 | P86: -6 | Q86: - | R86: - | S86: - | T86: - | U86: - | V86: - | W86: - | X86: - | Z86: - | AA86: - | AB86: 4800 | AC86: 49200 | AF86: 90 | AH86: 90 | AK86: I3 | AL86: 1800 | AM86: 1 | AN86: H2c
B87: 85 | C87: 83 | D87: Var | E87: 83 - Var | F87: 85 | G87: H3 | H87: Ed | I87: 1 | J87: 14 | K87: 0 | L87: -12 | M87: 0 | N87: -2 | O87: -5 | P87: -6 | Q87: -7 | R87: -7 | S87: -8 | T87: -8 | U87: -9 | V87: -9 | W87: -10 | X87: -10 | Y87: -11 | Z87: -11 | AA87: -12 | AB87: 3900 | AC87: 36000 | AF87: 132 | AH87: 132 | AI87: 1.8 | AJ87: 5 | AK87: I4 | AL87: 2200 | AM87: 1.1 | AN87: H3
B88: 86 | C88: 84 | D88: Vaucluse | E88: 84 - Vaucluse | F88: 86 | G88: H2 | H88: Ed | I88: 2 | J88: 10 | K88: -6 | L88: -14 | M88: - | N88: - | O88: -6 | P88: -7 | Q88: -8 | R88: -9 | S88: -10 | T88: -11 | U88: -12 | V88: -13 | W88: -14 | X88: - | Y88: - | Z88: - | AA88: - | AB88: 4600 | AC88: 44000 | AF88: 126 | AH88: 126 | AI88: 1.5 | AK88: I4 | AL88: 2200 | AM88: 1.1 | AN88: H2d
B89: 87 | C89: 85 | D89: Vendée | E89: 85 - Vendée | F89: 87 | G89: H2 | H89: Eb | I89: 0 | J89: 3 | K89: -2 | L89: -6 | M89: -2 | N89: -4 | O89: -5 | P89: -6 | Q89: - | R89: - | S89: - | T89: - | U89: - | V89: - | W89: - | X89: - | Y89: - | Z89: - | AA89: - | AB89: 5200 | AC89: 50000 | AF89: 85 | AH89: 85 | AJ89: 5 | AK89: I3 | AL89: 1800 | AM89: 1 | AN89: H2b
B90: 88 | C90: 86 | D90: Vienne | E90: 86 - Vienne | F90: 88 | G90: H2 | H90: Eb | I90: 2 | J90: 3 | K90: -7 | L90: -8 | M90: - | N90: - | O90: -7 | P90: -8 | Q90: - | R90: - | S90: - | T90: - | U90: - | V90: - | W90: - | X90: - | Y90: - | Z90: - | AA90: - | AB90: 5300 | AC90: 56000 | AF90: 86 | AH90: 86 | AK90: I2 | AL90: 1450 | AM90: 1 | AN90: H2b
B91: 89 | C91: 87 | D91: Haute-Vienne | E91: 87 - Haute-Vienne | F91: 89 | G91: H1 | H91: Ec | I91: 2 | J91: 13 | K91: -8 | L91: -19 | M91: - | N91: - | O91: -8 | P91: -9 | Q91: -10 | R91: -11 | S91: -12 | T91: -13 | U91: -14 | V91: -15 | W91: -16 | X91: -17 | Y91: -18 | Z91: -19 | AA91: - | AB91: 5200 | AC91: 60400 | AF91: 86 | AH91: 86 | AI91: 1.5 | AK91: I2 | AL91: 1450 | AM91: 1.1 | AN91: H1c
B92: 90 | C92: 88 | D92: Vosges | E92: 88 - Vosges | F92: 90 | G92: H1 | H92: Eb | I92: 2 | J92: 8 | K92: -15 | L92: -20 | M92: - | N92: - | O92: -15 | P92: -15 | Q92: -16 | R92: -17 | S92: -18 | T92: -19 | U92: -20 | V92: - | W92: - | X92: - | Y92: - | Z92: - | AA92: - | AB92: 5300 | AC92: 65000 | AF92: 71 | AH92: 71 | AI92: 1.5 | AK92: I1 | AL92: 1250 | AM92: 1 | AN92: H1b
B93: 91 | C93: 89 | D93: Yonne | E93: 89 - Yonne | F93: 91 | G93: H1 | H93: Eb | I93: 2 | J93: 6 | K93: -10 | L93: -14 | M93: - | N93: - | O93: -10 | P93: -11 | Q93: -12 | R93: -13 | S93: -14 | T93: - | U93: - | V93: - | W93: - | X93: - | Y93: - | Z93: - | AA93: - | AB93: 5400 | AC93: 60700 | AF93: 76 | AH93: 76 | AK93: I2 | AL93: 1450 | AM93: 1 | AN93: H1b
B94: 92 | C94: 90 | D94: Territoire-de-Belfort | E94: 90 - Territoire-de-Belfort | F94: 92 | G94: H1 | H94: Eb | I94: 2 | J94: 8 | K94: -15 | L94: -20 | M94: - | N94: - | O94: -15 | P94: -15 | Q94: -16 | R94: -17 | S94: -18 | T94: -19 | U94: -20 | V94: - | W94: - | X94: - | Y94: - | Z94: - | AA94: - | AB94: 5300 | AC94: 67000 | AF94: 70 | AH94: 70 | AI94: 1.5 | AK94: I1 | AL94: 1250 | AM94: 1 | AN94: H1b
B95: 93 | C95: 91 | D95: Essone | E95: 91 - Essone | F95: 93 | G95: H1 | H95: Eb | I95: 2 | J95: 2 | K95: -7 | L95: -7 | M95: - | N95: - | O95: -7 | P95: - | Q95: - | R95: - | S95: - | T95: - | U95: - | V95: - | W95: - | X95: - | Y95: - | Z95: - | AA95: - | AB95: 5500 | AC95: 61000 | AF95: 72 | AH95: 72 | AK95: I1 | AL95: 1250 | AM95: 1 | AN95: H1a
B96: 94 | C96: 92 | D96: Hauts-de-Seine | E96: 92 - Hauts-de-Seine | F96: 94 | G96: H1 | H96: Eb | I96: 2 | J96: 2 | K96: -7 | L96: -7 | M96: - | N96: - | O96: -7 | P96: - | Q96: - | R96: - | S96: - | T96: - | U96: - | V96: - | W96: - | X96: - | Y96: - | Z96: - | AA96: - | AB96: 5300 | AC96: 58000 | AF96: 66 | AH96: 66 | AK96: I1 | AL96: 1250 | AM96: 1 | AN96: H1a
B97: 95 | C97: 93 | D97: Seine-Saint-Denis | E97: 93 - Seine-Saint-Denis | F97: 95 | G97: H1 | H97: Eb | I97: 2 | J97: 2 | K97: -7 | L97: -7 | M97: - | N97: - | O97: -7 | P97: - | Q97: - | R97: - | S97: - | T97: - | U97: - | V97: - | W97: - | X97: - | Y97: - | Z97: - | AA97: - | AB97: 5300 | AC97: 58000 | AF97: 66 | AH97: 66 | AK97: I1 | AL97: 1250 | AM97: 1 | AN97: H1a
B98: 96 | C98: 94 | D98: Val-de-Marne | E98: 94 - Val-de-Marne | F98: 96 | G98: H1 | H98: Eb | I98: 2 | J98: 2 | K98: -7 | L98: -7 | M98: - | N98: - | O98: -7 | P98: - | Q98: - | R98: - | S98: - | T98: - | U98: - | V98: - | W98: - | X98: - | Y98: - | Z98: - | AA98: - | AB98: 5300 | AC98: 58000 | AF98: 66 | AH98: 66 | AK98: I1 | AL98: 1250 | AM98: 1 | AN98: H1a
B99: 97 | C99: 95 | D99: Val-d'Oise | E99: 95 - Val-d'Oise | F99: 97 | G99: H1 | H99: Eb | I99: 2 | J99: 2 | K99: -7 | L99: -7 | M99: - | N99: - | O99: -7 | P99: - | Q99: - | R99: - | S99: - | T99: - | U99: - | V99: - | W99: - | X99: - | Y99: - | Z99: - | AA99: - | AB99: 5500 | AC99: 61000 | AF99: 72 | AH99: 72 | AK99: I1 | AL99: 1250 | AM99: 1 | AN99: H1a
B103: Type de chaudière actuelle | C103: Rendement | D103: Cout annuel | E103: =OErtliNERGY!D34 -> Rendement annuel = 80% | G103: Conso ecs | H103: L/j à 50°C | I103: =OErtliNERGY!D45 -> Normale (50 l/j à 55°C) | L103: Type ECS | M103: Rendement | N103: Coût | O103: =OErtliNERGY!F34 -> Idem chauffage | T103: Energie chauffage | U103: Coût | V103: =OErtliNERGY!B34 -> Gaz naturel | W103: N°
A104: 1 | B104: =IF(OR($V$103=$T$107,$V$103=$T$108),"","Rendement annuel = 70%") -> Rendement annuel = 70% | C104: 0.7 | E104: =VLOOKUP(E103,B104:C109,2,FALSE) -> 0.8 | F104: 1 | G104: Econome (35 l/j à 55°C) | H104: 35 | I104: =IF(I103=G104,1,IF(I103=G105,2,IF(I103=G106,3,IF(I103=#REF!,4,IF(I103=#REF!,5))))) -> 2 | K104: 1 | L104: Chaudière fioul | M104: =E183 -> 0.8 | N104: =C121/M104*'Coûts Energies'!D40/100 -> 0 | O104: =IF(OErtliNERGY!F34='calculs réno'!D160,VLOOKUP('calculs réno'!V103,'calculs réno'!T104:W107,4,FALSE),4) -> 2 | S104: 1 | T104: Fioul | U104: =C119/E183*'Coûts Energies'!D40/100 -> 0 | V104: =IF(V103=T104,1,IF(V103=T105,2,IF(V103=T106,3,IF(V103=T107,4,IF(V103=L115,5))))) -> 2 | W104: 1
A105: 2 | B105: =IF(OR($V$103=$T$107,$V$103=$T$108),"","Rendement annuel = 80%") -> Rendement annuel = 80% | C105: 0.8 | F105: 2 | G105: Normale (50 l/j à 55°C) | H105: 50 | K105: 2 | L105: Chaudière gaz | M105: =E183 -> 0.8 | N105: =C121/M104*N121/100/0.9 -> 441.9172083 | S105: 2 | T105: Gaz naturel | U105: =C119/E183*N121/100/0.9 -> 1306.998 | W105: 2
A106: 3 | B106: =IF(OR($V$103=$T$107,$V$103=$T$108),"","Rendement annuel = 90%") -> Rendement annuel = 90% | C106: 0.9 | F106: 3 | G106: Confortable (70 l/j à 55°C) | H106: 70 | K106: 3 | L106: Chaudière propane | M106: =E183 -> 0.8 | N106: =C121/M104*'Coûts Energies'!D48/100 -> 0 | S106: 3 | T106: Propane | U106: =C119/E183*'Coûts Energies'!D48/100 -> 0 | W106: 3
A107: 4 | B107: =IF(OR($V$103=$T$107,$V$103=$T$108),"","Rendement annuel = 93% (Basse température)") -> Rendement annuel = 93% (Basse température) | C107: 0.93 | K107: 4 | L107: Ballon électrique | M107: 1 | N107: =C121/M107*'Coûts Energies'!H15/100 -> 753.73958 | S107: 4 | T107: Chauffage électrique | U107: =C119/E183*(1/3*'Coûts Energies'!H15+2/3*'Coûts Energies'!H14)/100 -> 928.8468 | W107: 4
A108: 5 | B108: =IF(OR($V$103=$T$107,$V$103=$T$108),"","Rendement annuel = 97% (Condensation)") -> Rendement annuel = 97% (Condensation) | C108: 0.97 | S108: 5 | T108: Ancienne PAC | W108: 5
A109: 6 | B109: =IF($V$103=$T$107,"Chauffage électrique",IF($V$103=$T$108,"COP annuel : 2,5","")) ->  | C109: 1 | S109: 6 | T109: Bois bûches | W109: 6
L110: liste étude | S110: 7 | T110: Bois granulés | W110: 7
B111: Calculs besoins | L111: Neuf | M111: =OErtliNERGY!B15 -> Rénovation | O111: Type Solaire | P111: =OErtliNERGY!B70 -> Aucune
B112: Ligne temp | C112: =VLOOKUP(OErtliNERGY!B21,'calculs réno'!E4:F99,2,FALSE) -> 69 | L112: Rénovation | N112: 1 | O112: Aucune | P112: =IF(P111=O112,1,IF(P111=O113,2,IF(P111=O114,3))) -> 1
D113: correction altitude | E113: =VLOOKUP(Communes!$L$5,Communes!$M$35:$N$47,2,FALSE) -> 1 | N113: 2 | O113: CESI
B114: Temp. Ext base | C114: =Communes!L11 -> -15 | D114: Nb heures | N114: 3 | O114: SSC
B115: djh | C115: =VLOOKUP(C112,F4:AM99,24,FALSE)+D115*(OErtliNERGY!F31-19) -> 64800 | D115: =VLOOKUP(C112,F4:AM99,23,FALSE) -> 5200
B116: Coeff G | C116: =OErtliNERGY!B59 -> 0.82 | L116: Abonnement GAZ | R116: Abonnement Elec
B117: Volume | C117: =OErtliNERGY!B31*OErtliNERGY!D31 -> 300 | D117: m3 | E117: T ext base à 0 | L117: Rentabilité B2I/B1 | N117: =IF('Coûts Energies'!D41-'Coûts Energies'!D42=0,'Coûts Energies'!H42-'Coûts Energies'!H41,('Coûts Energies'!H42-'Coûts Energies'!H41)/('Coûts Energies'!D41-'Coûts Energies'!D42)*100) -> 0 | O117: kWh | R117: Tout elec | S117: =IF(C118+6<12,'Coûts Energies'!H28,IF(C118+6<15,'Coûts Energies'!H29,IF(C118+6<18,'Coûts Energies'!H30,IF(C118+6<24,'Coûts Energies'!H31,IF(C118+6<30,'Coûts Energies'!H32,'Coûts Energies'!H33))))) -> 232.56
B118: Déperditions | C118: =ROUND(C116*C117*(OErtliNERGY!F31-C114)/1000,1) -> 8.4 | D118: kW | E118: =VLOOKUP(C112,F4:AA99,10,FALSE) -> -15 | N118: chauff | O118: ecs | P118: tot | R118: PAC Air | S118: ='Coûts Energies'!H28 -> 203.16
B119: Besoins annuels chauffage | C119: =0.7*C116*C117*C115/0.9/1000*(OErtliNERGY!F31-C114)/(19-C114) -> 12398.4 | D119: kWh | L119: Gaz actuel | N119: =IF(V104=2,C119/C132,0) -> 15498 | O119: =IF(O104=2,C121/C132,0) -> 5240.125 | P119: =SUM(N119:O119) -> 20738.125 | Q119: kWh | R119: PAC Sol | S119: =IF(C118/3+6<12,'Coûts Energies'!H28,IF(C118/3+6<15,'Coûts Energies'!H29,IF(C118/3+6<18,'Coûts Energies'!H30,IF(C118/3+6<24,'Coûts Energies'!H31,IF(C118/3+6<30,'Coûts Energies'!H32,'Coûts Energies'!H33))))) -> 203.16
B120: Conso ECS | C120: =VLOOKUP(I104,F104:H106,3,FALSE) -> 50 | D120: l/j | L120: Cout Abonnement | N120: =IF(P119<N117,'Coûts Energies'!H41,'Coûts Energies'!H42) -> 101.76 | O120: €
B121: Besoins annuels ECS | C121: =ROUND(OErtliNERGY!B45*C120*365/1000*1.16*45,0)*1.1 -> 4192.1 | D121: kWh | E121: =IF(OErtliNERGY!F34='calculs réno'!D160,'calculs réno'!C121,0) -> 4192.1 | L121: Cout Energie | N121: =IF(P119<N117,'Coûts Energies'!D41,'Coûts Energies'!D42) -> 7.59 | O121: €
B122: Besoins annuels total | C122: =C121+C119 -> 16590.5 | D122: kWh | R122: Abonnement actuel
L123: Gaz Nouveau Condensation | N123: =C122/C138/0.9 -> 16911.82467 | O123: kWh
B124: Tableau correspondances énergétiques | L124: Cout Abonnement | N124: =IF(N123<N117,'Coûts Energies'!H41,'Coûts Energies'!H42) -> 101.76 | O124: €
B125: 1 litre fioul | C125: 10 | D125: kWh PCI | E125: =C125/0.94 -> 10.63829787 | F125: kWh PCS | G125: =E125*0.3 -> 3.191489362 | H125: kg CO2 | L125: Cout Energie | N125: =IF(N123<N117,'Coûts Energies'!D41,'Coûts Energies'!D42) -> 7.59 | O125: € | P125: =4.15/0.9 -> 4.611111111
B126: 1 m3 gaz naturel | C126: 10 | D126: kWh PCI | E126: =C126/0.9 -> 11.11111111 | F126: kWh PCS | G126: =E126*0.23 -> 2.555555556 | H126: kg CO2 | P126: =4.31/0.9 -> 4.788888889
B127: 1 kg propane | C127: 12.8 | D127: kWh PCI | E127: =C127/0.92 -> 13.91304348 | F127: kWh PCS | L127: Gaz Nouveau | N127: =C122/C139/0.9 -> 19821.3859 | O127: kWh
B128: 1 kg Granulés | C128: 4.8 | D128: kWh PCI | L128: Cout Abonnement | N128: =IF(N127<N117,'Coûts Energies'!H41,'Coûts Energies'!H42) -> 101.76 | O128: €
B129: 1 Stère de bûche | C129: 2000 | D129: kWh PCI | F129: 1 kWh élec | G129: 0.18 | H129: kg CO2 | L129: Cout Energie | N129: =IF(N127<N117,'Coûts Energies'!D41,'Coûts Energies'!D42) -> 7.59 | O129: €
B131: Type d'Installation | C131: Rendement | D131: Surcout abonnement | E131: Coût ECS | F131: Coût chauffage | G131: Coût total | H131: Coût total avec CESI | I131: Coût total avec solaire | K131: Coût ECS graphique | L131: Coût chauffage graph | M131: Somme
B132: =IF(OErtliNERGY!$B$15="NEUF","","Installation actuelle") -> Installation actuelle | C132: =E183 -> 0.8 | D132: =IF(V104=2,N120,IF(V104=4,S117-'Coûts Energies'!D28,0)) -> 101.76 | E132: =VLOOKUP(O104,K104:N107,4,FALSE) -> 441.9172083 | F132: =VLOOKUP(V104,S104:U107,3,FALSE)+D132 -> 1408.758 | G132: =E132+F132 -> 1850.675208 | H132: =E132*(100-OErtliNERGY!$D$70)/100+F132 -> 1585.524883 | I132: =E132*(100-OErtliNERGY!$D$70)/100+(F132-D132)*(100-OErtliNERGY!$F$70)/100+D132 -> 1324.125283 | K132: =IF(B132="","",E132) -> 441.9172083 | L132: =IF(B132="","",F132) -> 1408.758 | M132: =IF(B132="","",K132+L132) -> 1850.675208
B133: Tout électrique | C133: 1 | D133: =S117-'Coûts Energies'!D28 -> 79.92 | E133: =C121/C133*'Coûts Energies'!H16/100 -> 563.41824 | F133: =C119/C133*(1/3*'Coûts Energies'!H16+2/3*'Coûts Energies'!H15)/100+D133 -> 2121.5232 | G133: 2684.94144 | H133: =E133*(100-OErtliNERGY!$D$70)/100+F133 -> 2346.890496 | I133: =E133*(100-OErtliNERGY!$D$70)/100+(F133-D133)*(100-OErtliNERGY!$F$70)/100+D133 -> 1938.569856 | K133: =IF($P$112=1,E133,IF($P$112=2,H133-F133,IF($P$112=3,H133-F133))) -> 563.41824 | L133: =IF($P$112=1,F133,IF($P$112=2,F133,IF($P$112=3,(F133-D133)*(100-OErtliNERGY!$F$70)/100+D133))) -> 2121.5232 | M133: =K133+L133 -> 2684.94144
B134: PAC Air/Eau | C134: 3.5 | D134: =S118-'Coûts Energies'!D28 -> 50.52 | E134: =C121/C133*'Coûts Energies'!H16/100 -> 563.41824 | F134: =C119/C134*(1/3*'Coûts Energies'!H16+2/3*'Coûts Energies'!H15)/100+D134 -> 633.8352 | G134: 1197.25344 | H134: =E134*(100-OErtliNERGY!$D$70)/100+F134 -> 859.202496 | I134: =E134*(100-OErtliNERGY!$D$70)/100+(F134-D134)*(100-OErtliNERGY!$F$70)/100+D134 -> 742.539456 | K134: 563.41824 | L134: =IF($P$112=1,F134,IF($P$112=2,F134,IF($P$112=3,(F134-D134)*(100-OErtliNERGY!$F$70)/100+D134))) -> 633.8352 | M134: 1197.25344
B135: PAC Sol-Eau/Eau | C135: 4 | D135: =S119-'Coûts Energies'!D28 -> 50.52 | E135: =C121/C133*'Coûts Energies'!H16/100 -> 563.41824 | F135: =C119/C135*(1/3*'Coûts Energies'!H16+2/3*'Coûts Energies'!H15)/100+D135 -> 560.9208 | G135: 1124.33904 | H135: =E135*(100-OErtliNERGY!$D$70)/100+F135 -> 786.288096 | I135: =E135*(100-OErtliNERGY!$D$70)/100+(F135-D135)*(100-OErtliNERGY!$F$70)/100+D135 -> 684.207936 | K135: 563.41824 | L135: =IF($P$112=1,F135,IF($P$112=2,F135,IF($P$112=3,(F135-D135)*(100-OErtliNERGY!$F$70)/100+D135))) -> 560.9208 | M135: 1124.33904
B136: Bois bûches | C136: 0.85 | D136: 0 | E136: =C121/C136/C129*'Coûts Energies'!D67 -> 172.6158824 | F136: =C119/C136/C129*'Coûts Energies'!D67+D136 -> 510.5223529 | G136: 683.1382353 | H136: =E136*(100-OErtliNERGY!$D$70)/100+F136 -> 579.5687059 | I136: =E136*(100-OErtliNERGY!$D$70)/100+(F136-D136)*(100-OErtliNERGY!$F$70)/100+D136 -> 477.4642353 | K136: 172.6158824 | L136: =IF($P$112=1,F136,IF($P$112=2,F136,IF($P$112=3,(F136-D136)*(100-OErtliNERGY!$F$70)/100+D136))) -> 510.5223529 | M136: 683.1382353
B137: Bois granulés | C137: 0.85 | D137: 0 | E137: =C121/C137/C128/1000*'Coûts Energies'!H67 -> 286.4601667 | F137: =C119/C137/C128/1000*'Coûts Energies'!H67+D137 -> 847.224 | G137: 1133.684167 | H137: =E137*(100-OErtliNERGY!$D$70)/100+F137 -> 961.8080667 | I137: =E137*(100-OErtliNERGY!$D$70)/100+(F137-D137)*(100-OErtliNERGY!$F$70)/100+D137 -> 792.3632667 | K137: 286.4601667 | L137: =IF($P$112=1,F137,IF($P$112=2,F137,IF($P$112=3,(F137-D137)*(100-OErtliNERGY!$F$70)/100+D137))) -> 847.224 | M137: 1133.684167
B138: Gaz Condensation | C138: 1.09 | D138: =N124 -> 101.76 | E138: =C121/C138*N125/0.9/100 -> 324.3429052 | F138: =C119/C138*N125/0.9/100+D138 -> 1061.024587 | G138: 1385.367492 | H138: =E138*(100-OErtliNERGY!$D$70)/100+F138 -> 1190.761749 | I138: =E138*(100-OErtliNERGY!$D$70)/100+(F138-D138)*(100-OErtliNERGY!$F$70)/100+D138 -> 998.9088318 | K138: 324.3429052 | L138: =IF($P$112=1,F138,IF($P$112=2,F138,IF($P$112=3,(F138-D138)*(100-OErtliNERGY!$F$70)/100+D138))) -> 1061.024587 | M138: 1385.367492
B139: Gaz | C139: 0.93 | D139: =N128 -> 101.76 | E139: =C121/C139*N129/0.9/100 -> 380.1438351 | F139: =C119/C139*N129/0.9/100+D139 -> 1226.059355 | G139: 1606.20319 | H139: =E139*(100-OErtliNERGY!$D$70)/100+F139 -> 1378.116889 | I139: =E139*(100-OErtliNERGY!$D$70)/100+(F139-D139)*(100-OErtliNERGY!$F$70)/100+D139 -> 1153.257018 | K139: 380.1438351 | L139: =IF($P$112=1,F139,IF($P$112=2,F139,IF($P$112=3,(F139-D139)*(100-OErtliNERGY!$F$70)/100+D139))) -> 1226.059355 | M139: 1606.20319
B140: Fioul condensation | C140: 1.04 | D140: 0 | E140: =C121/C140*'Coûts Energies'!D51/100 -> 293.8500865 | F140: =C119/C140*'Coûts Energies'!D51/100+D140 -> 869.0801538 | G140: 1162.93024 | H140: =E140*(100-OErtliNERGY!$D$70)/100+F140 -> 986.6201885 | I140: =E140*(100-OErtliNERGY!$D$70)/100+(F140-D140)*(100-OErtliNERGY!$F$70)/100+D140 -> 812.8041577 | K140: 293.8500865 | L140: =IF($P$112=1,F140,IF($P$112=2,F140,IF($P$112=3,(F140-D140)*(100-OErtliNERGY!$F$70)/100+D140))) -> 869.0801538 | M140: 1162.93024
B141: Fioul | C141: 0.93 | D141: 0 | E141: =C121/C141*'Coûts Energies'!D51/100 -> 328.6065484 | F141: =C119/C141*'Coûts Energies'!D51/100+D141 -> 971.8745806 | G141: 1300.481129 | H141: =E141*(100-OErtliNERGY!$D$70)/100+F141 -> 1103.3172 | I141: =E141*(100-OErtliNERGY!$D$70)/100+(F141-D141)*(100-OErtliNERGY!$F$70)/100+D141 -> 908.9422839 | K141: 328.6065484 | L141: =IF($P$112=1,F141,IF($P$112=2,F141,IF($P$112=3,(F141-D141)*(100-OErtliNERGY!$F$70)/100+D141))) -> 971.8745806 | M141: 1300.481129
B142: Propane condensation | C142: 1.07 | D142: 0 | E142: =C121/C142*'Coûts Energies'!D59/100 -> 574.3568785 | F142: =C119/C142*'Coûts Energies'!D59/100+D142 -> 1698.696673 | G142: 2273.053551 | H142: =E142*(100-OErtliNERGY!$D$70)/100+F142 -> 1928.439424 | I142: =E142*(100-OErtliNERGY!$D$70)/100+(F142-D142)*(100-OErtliNERGY!$F$70)/100+D142 -> 1588.70009 | K142: 574.3568785 | L142: =IF($P$112=1,F142,IF($P$112=2,F142,IF($P$112=3,(F142-D142)*(100-OErtliNERGY!$F$70)/100+D142))) -> 1698.696673 | M142: 2273.053551
B143: Propane | C143: 0.93 | D143: 0 | E143: =C121/C143*'Coûts Energies'!D59/100 -> 660.8192043 | F143: =C119/C143*'Coûts Energies'!D59/100+D143 -> 1954.414452 | G143: 2615.233656 | H143: =E143*(100-OErtliNERGY!$D$70)/100+F143 -> 2218.742133 | I143: =E143*(100-OErtliNERGY!$D$70)/100+(F143-D143)*(100-OErtliNERGY!$F$70)/100+D143 -> 1827.859243 | K143: 660.8192043 | L143: =IF($P$112=1,F143,IF($P$112=2,F143,IF($P$112=3,(F143-D143)*(100-OErtliNERGY!$F$70)/100+D143))) -> 1954.414452 | M143: 2615.233656
D151: Fioul | E151: Litres de fioul | H151: Codes Energie appoint actuelle
D152: Gaz naturel | E152: m3 de gaz naturel | H152: 1 | I152: Bois bûches | J152: Choix | L152: Pour bois bûches
D153: Propane | E153: kg de propane | H153: 2 | I153: Bois granulés | J153: =OErtliNERGY!B40 -> Electrique (clim…) | L153: 0.15 | M153: Cheminée foyer ouvert
D154: Chauffage électrique | E154: kWh électrique | H154: 3 | I154: Electrique (clim…) | L154: 0.75 | M154: Insert fermé
D155: Ancienne PAC | E155: kWh électrique
D156: Bois bûches | E156: stères de bois
D157: Bois granulés | E157: tonnes de granulés | H157: Rendement Energie appoint actuelle
H158: 1 | I158: =IF($J$153=$I$152,$M$153,IF($J$153=$I$154,"","Rendement annuel = 70%")) ->  | J158: =IF(I158=M153,L153,0.7) -> 0.7 | K158: =VLOOKUP(OErtliNERGY!D40,I158:J163,2,FALSE) -> 1
H159: 2 | I159: =IF($J$153=$I$152,$M$154,IF($J$153=$I$154,"","Rendement annuel = 80%")) ->  | J159: =IF(I159=M154,L154,0.8) -> 0.8
D160: Idem chauffage | H160: 3 | I160: =IF(OR($J$153=$I$152,$J$153=$I$154),"","Rendement annuel = 90%") ->  | J160: =IF(I160="","",0.9) -> 
D161: Ballon électrique | I161: =IF(OR($J$153=$I$152,$J$153=$I$154),"","Rendement annuel = 93% (Basse température)") ->  | J161: =IF(I161="","",0.93) -> 
I162: =IF(OR($J$153=$I$152,$J$153=$I$154),"","Rendement annuel = 97% (Condensation)") ->  | J162: =IF(I162="","",0.97) -> 
I163: =IF($J$153=$I$154,"Electrique","") -> Electrique | J163: =IF(I163="","",1) -> 1
I166: =I152 -> Bois bûches | J166: stères de bois
I167: =I153 -> Bois granulés | J167: kg de granulés
I168: Electrique (clim…) | J168: kWh électrique
B171: Conversion consommation actuelle appoint en consommation actuelle
C172: Conso énergie actuelle = | D172: =OErtliNERGY!B51 -> 2000 | E172: =OErtliNERGY!B52 -> m3 de gaz naturel | H172: Litres de fioul | I172: ='Coûts Energies'!D72 -> 10 | J172: kWh PCI
C173: Conso énergie appoint actuelle = | D173: =OErtliNERGY!D51 -> 150 | E173: =OErtliNERGY!D52 -> kWh électrique | H173: m3 de gaz naturel | I173: ='Coûts Energies'!D73 -> 10 | J173: kWh PCI
C174: Facteur de conversion appoint -> élec = | D174: =VLOOKUP($E$173,$H$172:$J$177,2,FALSE) -> 1 | E174: kWh PCI | H174: kg de propane | I174: ='Coûts Energies'!D74 -> 12.8 | J174: kWh PCI
C175: Facteur de conversion élec -> énergie actuelle = | D175: =VLOOKUP($E$172,$H$172:$J$177,2,FALSE) -> 10 | E175: kWh PCI | H175: kg de granulés | I175: ='Coûts Energies'!D75 -> 4.8 | J175: kWh PCI
H176: stères de bois | I176: ='Coûts Energies'!D76 -> 2000 | J176: kWh PCI
C177: Conso d'énergie appoint actuel = | D177: =$D$173*$D$174/$D$175 -> 15 | E177: =$E$172 -> m3 de gaz naturel | H177: kWh électrique | I177: 1 | J177: kWh PCI
C178: Conso d'énergie total = | D178: =$D$172+$D$177 -> 2015 | E178: =$E$172 -> m3 de gaz naturel
H179: stères de bois | I179: ='Coûts Energies'!D76 -> 2000 | J179: kWh PCI
H180: kg de granulés | I180: ='Coûts Energies'!D75 -> 4.8 | J180: kWh PCI
B182: kWh Combustibles
D183: Rendement de l'installation actuelle : | E183: =E104 -> 0.8 | I183: Rendement de l'appoint actuel : | J183: =K158 -> 1
B185: Quantité énergie actuelle | C185: Type de combustible | D185: kWh PCI | E185: Avec rendement | G185: Quantité appoint actuel | H185: Type de combustible | I185: kWh PCI | J185: Avec rendement
B186: =IF(OErtliNERGY!$B$34=D151,OErtliNERGY!$B$51,0) -> 0 | C186: Litres de fioul | D186: =B186*C125 -> 0 | E186: =D186*$E$183 -> 0 | G186: =IF(AND(OErtliNERGY!$B$37="OUI",I152=$J$153),OErtliNERGY!$D$51,0) -> 0 | H186: =J166 -> stères de bois | I186: =G186*I179 -> 0 | J186: =I186*$J$183 -> 0
B187: =IF(OErtliNERGY!$B$34=D152,OErtliNERGY!$B$51,0) -> 2000 | C187: m3 de gaz naturel | D187: =B187*C126 -> 20000 | E187: =D187*$E$183 -> 16000 | G187: =IF(AND(OErtliNERGY!$B$37="OUI",I153=$J$153),OErtliNERGY!$D$51,0) -> 0 | H187: =J167 -> kg de granulés | I187: =G187*I180 -> 0 | J187: =I187*$J$183 -> 0
B188: =IF(OErtliNERGY!$B$34=D153,OErtliNERGY!$B$51,0) -> 0 | C188: kg de propane | D188: 0 | E188: =D188*$E$183 -> 0 | G188: =IF(AND(OErtliNERGY!$B$37="OUI",I154=$J$153),OErtliNERGY!$D$51,0) -> 150 | H188: =J168 -> kWh électrique | I188: =G188 -> 150 | J188: =I188*$J$183 -> 150
B189: =IF(OErtliNERGY!$B$34=D154,OErtliNERGY!$B$51,0) -> 0 | C189: kWh électrique | D189: =B189 -> 0 | E189: =D189 -> 0 | I189: Total : | J189: =SUM(J186:J188) -> 150 | K189: kWh
B190: =IF(OErtliNERGY!$B$34=D155,OErtliNERGY!$B$51,0) -> 0 | C190: kWh électrique | D190: =B190 -> 0 | E190: =D190 -> 0
B191: =IF(OErtliNERGY!$B$34=D156,OErtliNERGY!$B$51,0) -> 0 | C191: stères de bois | D191: =B191*C129 -> 0 | E191: 0
B192: =IF(OErtliNERGY!$B$34=D157,OErtliNERGY!$B$51,0) -> 0 | C192: kg de granulés | D192: =B192*C128*1000 -> 0 | E192: 0
D193: Total : | E193: =SUM(E186:E189) -> 16000 | F193: kWh | G193: Coeff G estimé | H193: =(E195-E121)/(0.75*C117*C115/1000) -> 0.8201577503
G194: Si erreur : | H194: =IF(H193<0,"-",H193) -> 0.8201577503
D195: Total actuel + appoint : | E195: =IF(OErtliNERGY!B37="OUI",E193+J189,E193) -> 16150 | F195: kWh | G195: Arrondi : | H195: =ROUND(H194,2) -> 0.82

Sheet Mise à jour (hidden)
A1: Date : | B1: Auteur : | C1: Modification :
A2: 2021-07-26 | B2: MW | C2: Le tool datait de 2011, donc modif à partir du DIEMANERGY 07/2031 et reprise à l'identique :
C3: Neuf et Réno sur la même feuille
C4: MAJ feuille coût des énergies
C5: Correction certains calculs
C6: Ajout commune et deuxième énergie
C7: MAJ code et mises en forme conditionnelles

Sheet Neuf (hidden)
D2: Bilans de consommation énergétique d'une maison neuve
J5: =OErtliNERGY!J5 -> Version 01/2021
C7: Identification de l'étude | I7: =TODAY() -> 2021-07-29
N10: plus utilisé depuis 2021
C11: Référence
C16: Données géographiques
C19: Département de l'installation | E19: Altitude | G19: Température extérieure de base en °C
C20: 1 - Ain | E20: Entre 0 et 200 m | G20: ='calculs neuf'!C114 -> -10
C22: Données de l'habitation
C25: Surface de la maison en m² | E25: Hauteur sous plafond en m | G25: Niveau d'isolation (U bat ou G)
C26: 150 | E26: 2.5 | G26: Conforme à la RT 2000 (0,9)
C28: Nombre de personnes | E28: Consommation d'eau chaude
C29: 4 | E29: Normale (50 l/j à 55°C)
C31: Température de confort en °C | E31: Déperditions en kW
C32: 20 | E32: ='calculs neuf'!C118 -> 10.1
C34: Besoins ECS en kWh | E34: Besoins chauffage annuels en kWh | G34: Besoins annuels total en kWh
C35: ='calculs neuf'!C121 -> 3811 | E35: ='calculs neuf'!C119 -> 19097 | G35: ='calculs neuf'!C122 -> 22908
C37: Installation solaire
C40: Type d'installation solaire | E40: Taux de couverture ECS en % | G40: Taux de couverture Chauffage en %
C41: Aucune | E41: 60 | G41: 20
C43: Résultats
C46: Estimatif des coûts énergétiques annuels
C48: Type d'Installation | D48: Rendement du générateur sur PCI | E48: Coût ECS en € TTC (HC en élec) | F48: Coût chauffage en € TTC (1/3 HC - 2/3 HP)** | G48: Coût total sans Solaire en € TTC | H48: Coût total avec Chauffe Eau Solaire en € TTC | I48: Coût total avec Solaire combiné en € TTC
C49: Tout électrique | D49: 1 | E49: ='calculs neuf'!E132 -> 685.2178 | F49: ='calculs neuf'!F132 -> 1128.576867 | G49: ='calculs neuf'!G132 -> 1813.794667 | H49: ='calculs neuf'!H132 -> 1402.663987 | I49: ='calculs neuf'!I132 -> 1173.754613
C50: PAC Air / Eau (Ap. Elec.) | D50: COP de 3,5* | E50: ='calculs neuf'!E133 -> 685.2178 | F50: ='calculs neuf'!F133 -> 311.0433905 | G50: ='calculs neuf'!G133 -> 996.2611905 | H50: ='calculs neuf'!H133 -> 585.1305105 | I50: ='calculs neuf'!I133 -> 519.7278324
C51: PAC Sol-Eau / Eau | D51: COP de 4* | E51: ='calculs neuf'!E134 -> 685.2178 | F51: ='calculs neuf'!F134 -> 270.1667167 | G51: ='calculs neuf'!G134 -> 955.3845167 | H51: ='calculs neuf'!H134 -> 544.2538367 | I51: ='calculs neuf'!I134 -> 487.0264933
C52: Bois bûches | D52: 0.85 | E52: ='calculs neuf'!E135 -> 0 | F52: ='calculs neuf'!F135 -> 0 | G52: ='calculs neuf'!G135 -> 0 | H52: ='calculs neuf'!H135 -> 0 | I52: ='calculs neuf'!I135 -> 0
C53: Bois granulés | D53: 0.85 | E53: ='calculs neuf'!E136 -> 0 | F53: ='calculs neuf'!F136 -> 0 | G53: ='calculs neuf'!G136 -> 0 | H53: ='calculs neuf'!H136 -> 0 | I53: ='calculs neuf'!I136 -> 0
C54: Gaz Condensation | D54: 109%* | E54: ='calculs neuf'!E137 -> 13043.64281 | F54: ='calculs neuf'!F137 -> 65763.48453 | G54: ='calculs neuf'!G137 -> 78807.12734 | H54: ='calculs neuf'!H137 -> 70980.94165 | I54: ='calculs neuf'!I137 -> 57908.54875
C55: Gaz | D55: 0.93 | E55: ='calculs neuf'!E138 -> 15287.71039 | F55: ='calculs neuf'!F138 -> 77008.55369 | G55: ='calculs neuf'!G138 -> 92296.26409 | H55: ='calculs neuf'!H138 -> 83123.63785 | I55: ='calculs neuf'!I138 -> 67802.23111
C56: Fioul condensation | D56: 104%* | E56: ='calculs neuf'!E139 -> 0 | F56: ='calculs neuf'!F139 -> 0 | G56: ='calculs neuf'!G139 -> 0 | H56: ='calculs neuf'!H139 -> 0 | I56: ='calculs neuf'!I139 -> 0
C57: Fioul | D57: 0.93 | E57: ='calculs neuf'!E140 -> 0 | F57: ='calculs neuf'!F140 -> 0 | G57: ='calculs neuf'!G140 -> 0 | H57: ='calculs neuf'!H140 -> 0 | I57: ='calculs neuf'!I140 -> 0
C58: Propane condensation | D58: 107%* | E58: ='calculs neuf'!E141 -> 0 | F58: ='calculs neuf'!F141 -> 0 | G58: ='calculs neuf'!G141 -> 0 | H58: ='calculs neuf'!H141 -> 0 | I58: ='calculs neuf'!I141 -> 0
C59: Propane | D59: 0.93 | E59: ='calculs neuf'!E142 -> 0 | F59: ='calculs neuf'!F142 -> 0 | G59: ='calculs neuf'!G142 -> 0 | H59: ='calculs neuf'!H142 -> 0 | I59: ='calculs neuf'!I142 -> 0
C60: *Rendements avec des émetteurs basse température **Abonnement inclus
C91: Les résultats de cette feuille de calcul sont donnés à titre indicatif. La responsabilité de Oertli ne peut en aucun cas être engagée.

Sheet calculs neuf (hidden)
B2: Index | C2: n° départ. | D2: Département | G2: Hiver | H2: Eté | I2: N° MINI | J2: N° MAXI | K2: T° EXT mini | L2: T° EXT mini | M2: Iles | N2: côte < 25 km | O2: Alt. entre 0 et 200 m | P2: Alt. entre 201 et 400 m | Q2: Alt. entre 401 et 500 m | R2: Alt. entre 501 et 600 m | S2: Alt. entre 601 et 700 m | T2: Alt. entre 701 et 800 m | U2: Alt. entre 801 et 900 m | V2: Alt. entre 901 et 1000 m | W2: Alt. entre 1001 et 1100 m | X2: Alt. entre 1101 et 1200 m | Y2: Alt. entre 1201 et 1300 m | Z2: Alt. entre 1301 et 1400 m | AA2: Alt. entre 1401 et 1500 m | AB2: Nréf (h) | AC2: Dhréf (degrés-heures) | AD2: Précision de la situation | AF2: Préf 1 (W/m²) | AG2: Préf 2 (W/m²) | AH2: Pref moyen | AI2: C3 (h/m) | AJ2: C4 (h/km) | AK2: CESI | AL2: CESI | AM2: CESI
B3: 1 | C3: 2 | D3: 3 | E3: 4 | G3: 5 | H3: 6 | I3: 7 | J3: 8 | K3: 9 | L3: 10 | M3: 11 | N3: 12 | O3: 13 | P3: 14 | Q3: 15 | R3: 16 | S3: 17 | T3: 18 | U3: 19 | V3: 20 | W3: 21 | X3: 22 | Y3: 23 | Z3: 24 | AA3: 25 | AB3: 26 | AC3: 27 | AD3: 28 | AE3: 29 | AF3: 30 | AG3: 31 | AH3: 32 | AI3: 33 | AJ3: 34 | AK3: 35 | AL3: 36 | AM3: 37 | AP3: =Neuf!E20 -> Entre 0 et 200 m
B4: 2 | C4: 1 | D4: Ain | E4: =C4&" - "&D4 -> 1 - Ain | F4: 2 | G4: H1 | H4: Ec | I4: 2 | J4: =MATCH(L4,M4:AA4,0)-1 -> 12 | K4: =MAX(M4:AA4) -> -10 | L4: =MIN(M4:AA4) -> -20 | M4: - | N4: - | O4: -10 | P4: -11 | Q4: -12 | R4: -13 | S4: -14 | T4: -15 | U4: -16 | V4: -17 | W4: -18 | X4: -19 | Y4: -20 | Z4: - | AA4: - | AB4: 4900 | AC4: 63000 | AF4: 80 | AH4: =IF(AG4=0,AF4,(AF4+AG4)/2) -> 80 | AI4: 1.5 | AK4: I2 | AL4: 1450 | AM4: 1 | AN4: 1 | AO4: Entre 0 et 200 m | AP4: =IF(AP3=AO4,1,IF(AP3=AO5,2,IF(AP3=AO6,3,IF(AP3=AO7,4,IF(AP3=AO8,5,IF(AP3=AO9,6,IF(AP3=AO10,7))))))) -> 1 | AQ4: =IF(AP3=AO11,8,IF(AP3=AO12,9,IF(AP3=AO13,10,IF(AP3=AO14,11,IF(AP3=AO15,12,IF(AP3=AO16,13)))))) -> FALSE | AR4: =AQ4+AP4 -> 1
B5: 3 | C5: 2 | D5: Aisne | E5: 2 - Aisne | F5: 3 | G5: H1 | H5: Ea | I5: 2 | J5: 3 | K5: =MAX(M5:AA5) -> -7 | L5: =MIN(M5:AA5) -> -8 | M5: - | N5: - | O5: -7 | P5: -8 | Q5: - | R5: - | S5: - | T5: - | U5: - | V5: - | W5: - | X5: - | Y5: - | Z5: - | AA5: - | AB5: 5800 | AC5: 65400 | AF5: 73 | AH5: =IF(AG5=0,AF5,(AF5+AG5)/2) -> 73 | AK5: I1 | AL5: 1250 | AM5: 1 | AN5: 2 | AO5: Entre 201 et 400 m
B6: 4 | C6: 3 | D6: Allier | E6: 3 - Allier | F6: 4 | G6: H1 | H6: Ec | I6: 2 | J6: 14 | K6: -8 | L6: =MIN(M6:AA6) -> -20 | M6: - | N6: - | O6: -8 | P6: -9 | Q6: -10 | R6: -11 | S6: -12 | T6: -13 | U6: -14 | V6: -15 | W6: -16 | X6: -17 | Y6: -18 | Z6: -19 | AA6: -20 | AB6: 5100 | AC6: 60200 | AF6: 79 | AH6: 79 | AI6: 1.5 | AK6: I2 | AL6: 1450 | AM6: 1 | AN6: 3 | AO6: Entre 401 et 500 m
B7: 5 | C7: 4 | D7: Alpes de haute provence | E7: 4 - Alpes de haute provence | F7: 5 | G7: H2 | H7: Ed | I7: 2 | J7: 14 | K7: -8 | L7: =MIN(M7:AA7) -> -20 | M7: - | N7: - | O7: -8 | P7: -9 | Q7: -10 | R7: -11 | S7: -12 | T7: -13 | U7: -14 | V7: -15 | W7: -16 | X7: -17 | Y7: -18 | Z7: -19 | AA7: -20 | AB7: 4100 | AC7: 53100 | AF7: 132 | AH7: 132 | AI7: 1.5 | AK7: I4 | AL7: 2200 | AM7: 1.2 | AN7: 4 | AO7: Entre 501 et 600 m
B8: 6 | C8: 5 | D8: Hautes-Alpes | E8: 5 - Hautes-Alpes | F8: 6 | G8: H1 | H8: Ed | I8: 2 | J8: 12 | K8: -10 | L8: -20 | M8: - | N8: - | O8: -10 | P8: -11 | Q8: -12 | R8: -13 | S8: -14 | T8: -15 | U8: -16 | V8: -17 | W8: -18 | X8: -19 | Y8: -20 | Z8: - | AA8: - | AB8: 4200 | AC8: 63000 | AD8: Ouest | AE8: Est | AF8: 125 | AG8: 135 | AH8: 130 | AI8: 1.5 | AK8: I3 | AL8: 1800 | AM8: 1.3 | AN8: 5 | AO8: Entre 601 et 700 m
B9: 7 | C9: 6 | D9: Alpes maritimes | E9: 6 - Alpes maritimes | F9: 7 | G9: H3 | H9: Ed | I9: 0 | J9: 14 | K9: 0 | L9: -12 | M9: 0 | N9: -2 | O9: -5 | P9: -6 | Q9: -7 | R9: -7 | S9: -8 | T9: -8 | U9: -9 | V9: -9 | W9: -10 | X9: -10 | Y9: -11 | Z9: -11 | AA9: -12 | AB9: 3900 | AC9: 36000 | AF9: 135 | AH9: 135 | AI9: 1.8 | AJ9: 5 | AK9: I4 | AL9: 2200 | AM9: 1.1 | AN9: 6 | AO9: Entre 701 et 800 m
B10: 8 | C10: 7 | D10: Ardèche | E10: 7 - Ardèche | F10: 8 | G10: H2 | H10: Ed | I10: 2 | J10: 10 | K10: -6 | L10: -14 | M10: - | N10: - | O10: -6 | P10: -7 | Q10: -8 | R10: -9 | S10: -10 | T10: -11 | U10: -12 | V10: -13 | W10: -14 | X10: - | Y10: - | Z10: - | AA10: - | AB10: 4900 | AC10: 55500 | AD10: Nord | AE10: Sud | AF10: 95 | AG10: 110 | AH10: 102.5 | AI10: 1.5 | AK10: I3 | AL10: 1800 | AM10: 1 | AN10: 7 | AO10: Entre 801 et 900 m
B11: 9 | C11: 8 | D11: Ardennes | E11: 8 - Ardennes | F11: 9 | G11: H1 | H11: Eb | I11: 2 | J11: 4 | K11: -10 | L11: -12 | M11: - | N11: - | O11: -10 | P11: -11 | Q11: -12 | R11: - | S11: - | T11: - | U11: - | V11: - | W11: - | X11: - | Y11: - | Z11: - | AA11: - | AB11: 5600 | AC11: 70500 | AF11: 71 | AH11: 71 | AK11: I1 | AL11: 1250 | AM11: 1 | AN11: 8 | AO11: Entre 901 et 1000 m
B12: 10 | C12: 9 | D12: Ariège | E12: 9 - Ariège | F12: 10 | G12: H2 | H12: Ec | I12: 2 | J12: 14 | K12: -5 | L12: -12 | M12: - | N12: - | O12: -5 | P12: -6 | Q12: -7 | R12: -7 | S12: -8 | T12: -8 | U12: -9 | V12: -9 | W12: -10 | X12: -10 | Y12: -11 | Z12: -11 | AA12: -12 | AB12: 4400 | AC12: 54500 | AF12: 110 | AH12: 110 | AI12: 1.5 | AK12: I3 | AL12: 1800 | AM12: 1 | AN12: 9 | AO12: Entre 1001 et 1100 m
B13: 11 | C13: 10 | D13: Aube | E13: 10 - Aube | F13: 11 | G13: H1 | H13: Eb | I13: 2 | J13: 3 | K13: -10 | L13: -11 | M13: - | N13: - | O13: -10 | P13: -11 | Q13: - | R13: - | S13: - | T13: - | U13: - | V13: - | W13: - | X13: - | Y13: - | Z13: - | AA13: - | AB13: 5500 | AC13: 62900 | AF13: 74 | AH13: 74 | AK13: I1 | AL13: 1250 | AM13: 1 | AN13: 10 | AO13: Entre 1101 et 1200 m
B14: 12 | C14: 11 | D14: Aude | E14: 11 - Aude | F14: 12 | G14: H3 | H14: Ed | I14: 0 | J14: 14 | K14: -2 | L14: -12 | M14: -2 | N14: -4 | O14: -5 | P14: -6 | Q14: -7 | R14: -7 | S14: -8 | T14: -8 | U14: -9 | V14: -9 | W14: -10 | X14: -10 | Y14: -11 | Z14: -11 | AA14: -12 | AB14: 4000 | AC14: 46300 | AD14: >30km de la mer | AE14: <30km de la mer | AF14: 101 | AG14: 127 | AH14: 114 | AI14: 1.8 | AJ14: 5 | AK14: I4 | AL14: 2200 | AM14: 1 | AN14: 11 | AO14: Entre 1201 et 1300 m
B15: 13 | C15: 12 | D15: Aveyron | E15: 12 - Aveyron | F15: 13 | G15: H2 | H15: Ec | I15: 2 | J15: 13 | K15: -8 | L15: -19 | M15: - | N15: - | O15: -8 | P15: -9 | Q15: -10 | R15: -11 | S15: -12 | T15: -13 | U15: -14 | V15: -15 | W15: -16 | X15: -17 | Y15: -18 | Z15: -19 | AA15: - | AB15: 4400 | AC15: 52100 | AD15: Nord | AE15: Sud | AF15: 90 | AG15: 103 | AH15: 96.5 | AI15: 1.5 | AK15: I3 | AL15: 1800 | AM15: 1 | AN15: 12 | AO15: Entre 1301 et 1400 m
B16: 14 | C16: 13 | D16: Bouches-du-Rhône | E16: 13 - Bouches-du-Rhône | F16: 14 | G16: H3 | H16: Ed | I16: 0 | J16: 14 | K16: -3 | L16: -12 | M16: -3 | N16: -5 | O16: -5 | P16: -6 | Q16: -7 | R16: -7 | S16: -8 | T16: -8 | U16: -9 | V16: -9 | W16: -10 | X16: -10 | Y16: -11 | Z16: -11 | AA16: -12 | AB16: 4000 | AC16: 36000 | AF16: 132 | AH16: 132 | AI16: 1.8 | AJ16: 5 | AK16: I4 | AL16: 2200 | AM16: 1 | AN16: 13 | AO16: Entre 1401 et 1500 m
B17: 15 | C17: 14 | D17: Calvados | E17: 14 - Calvados | F17: 15 | G17: H1 | H17: Ea | I17: 0 | J17: 3 | K17: -5 | L17: -8 | M17: -5 | N17: -7 | O17: -7 | P17: -8 | Q17: - | R17: - | S17: - | T17: - | U17: - | V17: - | W17: - | X17: - | Y17: - | Z17: - | AA17: - | AB17: 5700 | AC17: 57900 | AF17: 79 | AH17: 79 | AJ17: 5 | AK17: I1 | AL17: 1250 | AM17: 1
B18: 16 | C18: 15 | D18: Cantal | E18: 15 - Cantal | F18: 16 | G18: H1 | H18: Ec | I18: 0 | J18: 13 | K18: -8 | L18: -19 | M18: - | N18: - | O18: -8 | P18: -9 | Q18: -10 | R18: -11 | S18: -12 | T18: -13 | U18: -14 | V18: -15 | W18: -16 | X18: -17 | Y18: -18 | Z18: -19 | AA18: - | AB18: 5000 | AC18: 57600 | AF18: 87 | AH18: 87 | AI18: 1.5 | AK18: I2 | AL18: 1450 | AM18: 1.1
B19: 17 | C19: 16 | D19: Charente | E19: 16 - Charente | F19: 17 | G19: H2 | H19: Ec | I19: 0 | J19: 3 | K19: -5 | L19: -6 | M19: - | N19: - | O19: -5 | P19: -6 | Q19: - | R19: - | S19: - | T19: - | U19: - | V19: - | W19: - | X19: - | Y19: - | Z19: - | AA19: - | AB19: 5000 | AC19: 49800 | AF19: 87 | AH19: 87 | AK19: I2 | AL19: 1450 | AM19: 1
B20: 18 | C20: 17 | D20: Charente-Maritime | E20: 17 - Charente-Maritime | F20: 18 | G20: H2 | H20: Ec | I20: 2 | J20: 2 | K20: -2 | L20: -5 | M20: -2 | N20: -4 | O20: -5 | P20: - | Q20: - | R20: - | S20: - | T20: - | U20: - | V20: - | W20: - | X20: - | Y20: - | Z20: - | AA20: - | AB20: 5000 | AC20: 44300 | AF20: 88 | AH20: 88 | AJ20: 5 | AK20: I3 | AL20: 1800 | AM20: 1.1
B21: 19 | C21: 18 | D21: Cher | E21: 18 - Cher | F21: 19 | G21: H2 | H21: Eb | I21: 0 | J21: 4 | K21: -7 | L21: -9 | M21: - | N21: - | O21: -7 | P21: -8 | Q21: -9 | R21: - | S21: - | T21: - | U21: - | V21: - | W21: - | X21: - | Y21: - | Z21: - | AA21: - | AB21: 5300 | AC21: 58000 | AF21: 79 | AH21: 79 | AK21: I2 | AL21: 1450 | AM21: 1
B22: 20 | C22: 19 | D22: Corrèze | E22: 19 - Corrèze | F22: 20 | G22: H1 | H22: Ec | I22: 0 | J22: 13 | K22: -8 | L22: -19 | M22: - | N22: - | O22: -8 | P22: -9 | Q22: -10 | R22: -11 | S22: -12 | T22: -13 | U22: -14 | V22: -15 | W22: -16 | X22: -17 | Y22: -18 | Z22: -19 | AA22: - | AB22: 5000 | AC22: 54000 | AF22: 85 | AH22: 85 | AI22: 1.5 | AK22: I2 | AL22: 1450 | AM22: 1.2
B23: 21 | C23: 2A | D23: Corse-du-Sud | E23: 2A - Corse-du-Sud | F23: 21 | G23: H3 | H23: Ed | I23: 1 | J23: 7 | K23: -2 | L23: -6 | M23: - | N23: -2 | O23: -2 | P23: -3 | Q23: -4 | R23: -4 | S23: -5 | T23: -6 | U23: -6 | V23: -6 | W23: -6 | X23: -6 | Y23: -6 | Z23: -6 | AA23: -6 | AB23: 4200 | AC23: 34000 | AF23: 126 | AH23: 126 | AI23: 1.8 | AJ23: 5 | AK23: I4 | AL23: 2200 | AM23: 1.1
B24: 22 | C24: 2B | D24: Haute-Corse | E24: 2B - Haute-Corse | F24: 22 | G24: H3 | H24: Ed | I24: 1 | J24: 7 | K24: -2 | L24: -6 | M24: - | N24: -2 | O24: -2 | P24: -3 | Q24: -4 | R24: -4 | S24: -5 | T24: -6 | U24: -6 | V24: -6 | W24: -6 | X24: -6 | Y24: -6 | Z24: -6 | AA24: -6 | AB24: 4000 | AC24: 32000 | AF24: 126 | AH24: 126 | AI24: 1.8 | AJ24: 5 | AK24: I4 | AL24: 2200 | AM24: 1.1
B25: 23 | C25: 21 | D25: Côte-d'Or | E25: 21 - Côte-d'Or | F25: 23 | G25: H1 | H25: Ec | I25: 2 | J25: 6 | K25: -10 | L25: -14 | M25: - | N25: - | O25: -10 | P25: -11 | Q25: -12 | R25: -13 | S25: -14 | T25: - | U25: - | V25: - | W25: - | X25: - | Y25: - | Z25: - | AA25: - | AB25: 4900 | AC25: 63000 | AF25: 73 | AH25: 73 | AI25: 1.5 | AK25: I2 | AL25: 1450 | AM25: 1
B26: 24 | C26: 22 | D26: Côtes-d'Armor | E26: 22 - Côtes-d'Armor | F26: 24 | G26: H2 | H26: Ea | I26: 0 | J26: 3 | K26: -2 | L26: -5 | M26: -2 | N26: -4 | O26: -4 | P26: -5 | Q26: - | R26: - | S26: - | T26: - | U26: - | V26: - | W26: - | X26: - | Y26: - | Z26: - | AA26: - | AB26: 5400 | AC26: 48600 | AF26: 79 | AH26: 79 | AJ26: 5 | AK26: I1 | AL26: 1250 | AM26: 1
B27: 25 | C27: 23 | D27: Creuse | E27: 23 - Creuse | F27: 25 | G27: H1 | H27: Ec | I27: 2 | J27: 13 | K27: -8 | L27: -19 | M27: - | N27: - | O27: -8 | P27: -9 | Q27: -10 | R27: -11 | S27: -12 | T27: -13 | U27: -14 | V27: -15 | W27: -16 | X27: -17 | Y27: -18 | Z27: -19 | AA27: - | AB27: 5200 | AC27: 65000 | AF27: 84 | AH27: 84 | AI27: 1.5 | AK27: I2 | AL27: 1450 | AM27: 1.1
B28: 26 | C28: 24 | D28: Dordogne | E28: 24 - Dordogne | F28: 26 | G28: H2 | H28: Ec | I28: 2 | J28: 4 | K28: -5 | L28: -7 | M28: - | N28: - | O28: -5 | P28: -6 | Q28: -7 | R28: - | S28: - | T28: - | U28: - | V28: - | W28: - | X28: - | Y28: - | Z28: - | AA28: - | AB28: 5000 | AC28: 49900 | AF28: 87 | AH28: 87 | AK28: I2 | AL28: 1450 | AM28: 1
B29: 27 | C29: 25 | D29: Doubs | E29: 25 - Doubs | F29: 27 | G29: H1 | H29: Ec | I29: 2 | J29: 10 | K29: -12 | L29: -20 | M29: - | N29: - | O29: -12 | P29: -13 | Q29: -14 | R29: -15 | S29: -16 | T29: -17 | U29: -18 | V29: -19 | W29: -20 | X29: - | Y29: - | Z29: - | AA29: - | AB29: 5000 | AC29: 65300 | AF29: 71 | AH29: 71 | AI29: 1.5 | AK29: I2 | AL29: 1450 | AM29: 1
B30: 28 | C30: 26 | D30: Drôme | E30: 26 - Drôme | F30: 28 | G30: H2 | H30: Ed | I30: 2 | J30: 10 | K30: -6 | L30: -14 | M30: - | N30: - | O30: -6 | P30: -7 | Q30: -8 | R30: -9 | S30: -10 | T30: -11 | U30: -12 | V30: -13 | W30: -14 | X30: - | Y30: - | Z30: - | AA30: - | AB30: 4800 | AC30: 50900 | AD30: Nord | AE30: Sud | AF30: 100 | AG30: 120 | AH30: 110 | AI30: 1.5 | AK30: I3 | AL30: 1800 | AM30: 1
B31: 29 | C31: 27 | D31: Eure | E31: 27 - Eure | F31: 29 | G31: H1 | H31: Ea | I31: 2 | J31: 3 | K31: -7 | L31: -8 | M31: - | N31: - | O31: -7 | P31: -8 | Q31: - | R31: - | S31: - | T31: - | U31: - | V31: - | W31: - | X31: - | Y31: - | Z31: - | AA31: - | AB31: 5500 | AC31: 60000 | AF31: 78 | AH31: 78 | AJ31: 5 | AK31: I1 | AL31: 1250 | AM31: 1
B32: 30 | C32: 28 | D32: Eure-et-Loire | E32: 28 - Eure-et-Loire | F32: 30 | G32: H1 | H32: Eb | I32: 2 | J32: 3 | K32: -7 | L32: -8 | M32: - | N32: - | O32: -7 | P32: -8 | Q32: - | R32: - | S32: - | T32: - | U32: - | V32: - | W32: - | X32: - | Y32: - | Z32: - | AA32: - | AB32: 5600 | AC32: 60504 | AF32: 78 | AH32: 78 | AK32: I2 | AL32: 1450 | AM32: 1
B33: 31 | C33: 29 | D33: Finistère | E33: 29 - Finistère | F33: 31 | G33: H2 | H33: Ea | I33: 0 | J33: 3 | K33: -2 | L33: -5 | M33: -2 | N33: -4 | O33: -4 | P33: -5 | Q33: - | R33: - | S33: - | T33: - | U33: - | V33: - | W33: - | X33: - | Y33: - | Z33: - | AA33: - | AB33: 5800 | AC33: 44900 | AF33: 79 | AH33: 79 | AJ33: 5 | AK33: I1 | AL33: 1250 | AM33: 1
B34: 32 | C34: 30 | D34: Gard | E34: 30 - Gard | F34: 32 | G34: H3 | H34: Ed | I34: 0 | J34: 14 | K34: -3 | L34: -12 | M34: -3 | N34: -3 | O34: -5 | P34: -6 | Q34: -7 | R34: -7 | S34: -8 | T34: -8 | U34: -9 | V34: -9 | W34: -10 | X34: -10 | Y34: -11 | Z34: -11 | AA34: -12 | AB34: 4000 | AC34: 42300 | AD34: Nord | AE34: Sud | AF34: 120 | AG34: 127 | AH34: 123.5 | AI34: 1.8 | AJ34: 5 | AK34: I4 | AL34: 2200 | AM34: 1
B35: 33 | C35: 31 | D35: Haute-Garonne | E35: 31 - Haute-Garonne | F35: 33 | G35: H2 | H35: Ec | I35: 2 | J35: 14 | K35: -5 | L35: -12 | M35: - | N35: - | O35: -5 | P35: -6 | Q35: -7 | R35: -7 | S35: -8 | T35: -8 | U35: -9 | V35: -9 | W35: -10 | X35: -10 | Y35: -11 | Z35: -11 | AA35: -12 | AB35: 4500 | AC35: 48300 | AF35: 98 | AH35: 98 | AI35: 1.5 | AK35: I3 | AL35: 1800 | AM35: 1
B36: 34 | C36: 32 | D36: Gers | E36: 32 - Gers | F36: 34 | G36: H2 | H36: Ec | I36: 2 | J36: 3 | K36: -5 | L36: -6 | M36: - | N36: - | O36: -5 | P36: -6 | Q36: - | R36: - | S36: - | T36: - | U36: - | V36: - | W36: - | X36: - | Y36: - | Z36: - | AA36: - | AB36: 4800 | AC36: 48000 | AF36: 92 | AH36: 92 | AK36: I3 | AL36: 1800 | AM36: 1
B37: 35 | C37: 33 | D37: Gironde | E37: 33 - Gironde | F37: 35 | G37: H2 | H37: Ec | I37: 0 | J37: 2 | K37: -2 | L37: -5 | M37: -2 | N37: -4 | O37: -5 | P37: - | Q37: - | R37: - | S37: - | T37: - | U37: - | V37: - | W37: - | X37: - | Y37: - | Z37: - | AA37: - | AB37: 4500 | AC37: 44400 | AF37: 91 | AH37: 91 | AJ37: 5 | AK37: I3 | AL37: 1800 | AM37: 1
B38: 36 | C38: 34 | D38: Hérault | E38: 34 - Hérault | F38: 36 | G38: H3 | H38: Ed | I38: 0 | J38: 14 | K38: -3 | L38: -12 | M38: -3 | N38: -3 | O38: -5 | P38: -6 | Q38: -7 | R38: -7 | S38: -8 | T38: -8 | U38: -9 | V38: -9 | W38: -10 | X38: -10 | Y38: -11 | Z38: -11 | AA38: -12 | AB38: 4100 | AC38: 36500 | AD38: >30km de la mer | AE38: <30km de la mer | AF38: 110 | AG38: 127 | AH38: 118.5 | AI38: 1.8 | AJ38: 5 | AK38: I4 | AL38: 2200 | AM38: 1
B39: 37 | C39: 35 | D39: Ile-et-Vilaine | E39: 35 - Ile-et-Vilaine | F39: 37 | G39: H2 | H39: Ea | I39: 0 | J39: 1 | K39: -2 | L39: -4 | M39: -2 | N39: -4 | O39: -4 | P39: - | Q39: - | R39: - | S39: - | T39: - | U39: - | V39: - | W39: - | X39: - | Y39: - | Z39: - | AA39: - | AB39: 5300 | AC39: 53000 | AF39: 79 | AH39: 79 | AJ39: 5 | AK39: I2 | AL39: 1450 | AM39: 1
B40: 38 | C40: 36 | D40: Indre | E40: 36 - Indre | F40: 38 | G40: H2 | H40: Eb | I40: 2 | J40: 4 | K40: -7 | L40: -9 | M40: - | N40: - | O40: -7 | P40: -8 | Q40: -9 | R40: - | S40: - | T40: - | U40: - | V40: - | W40: - | X40: - | Y40: - | Z40: - | AA40: - | AB40: 5300 | AC40: 59000 | AF40: 84 | AH40: 84 | AK40: I2 | AL40: 1450 | AM40: 1
B41: 39 | C41: 37 | D41: Indre-et-Loire | E41: 37 - Indre-et-Loire | F41: 39 | G41: H2 | H41: Eb | I41: 2 | J41: 2 | K41: -7 | L41: -7 | M41: - | N41: - | O41: -7 | P41: - | Q41: - | R41: - | S41: - | T41: - | U41: - | V41: - | W41: - | X41: - | Y41: - | Z41: - | AA41: - | AB41: 5300 | AC41: 57000 | AF41: 85 | AH41: 85 | AK41: I2 | AL41: 1450 | AM41: 1
B42: 40 | C42: 38 | D42: Isère | E42: 38 - Isère | F42: 40 | G42: H1 | H42: Ec | I42: 2 | J42: 12 | K42: -10 | L42: -20 | M42: - | N42: - | O42: -10 | P42: -11 | Q42: -12 | R42: -13 | S42: -14 | T42: -15 | U42: -16 | V42: -17 | W42: -18 | X42: -19 | Y42: -20 | Z42: - | AA42: - | AB42: 4800 | AC42: 62700 | AD42: Nord | AE42: Sud | AF42: 90 | AG42: 115 | AH42: 102.5 | AI42: 1.5 | AK42: I3 | AL42: 1800 | AM42: 1.1
B43: 41 | C43: 39 | D43: Jura | E43: 39 - Jura | F43: 41 | G43: H1 | H43: Ec | I43: 2 | J43: 12 | K43: -10 | L43: -20 | M43: - | N43: - | O43: -10 | P43: -11 | Q43: -12 | R43: -13 | S43: -14 | T43: -15 | U43: -16 | V43: -17 | W43: -18 | X43: -19 | Y43: -20 | Z43: - | AA43: - | AB43: 4900 | AC43: 65000 | AF43: 74 | AH43: 74 | AI43: 1.5 | AK43: I2 | AL43: 1450 | AM43: 1
B44: 42 | C44: 40 | D44: Landes | E44: 40 - Landes | F44: 42 | G44: H2 | H44: Ec | I44: 0 | J44: 3 | K44: -2 | L44: -6 | M44: -2 | N44: -4 | O44: -5 | P44: -6 | Q44: - | R44: - | S44: - | T44: - | U44: - | V44: - | W44: - | X44: - | Y44: - | Z44: - | AA44: - | AB44: 4400 | AC44: 42000 | AF44: 94 | AH44: 94 | AJ44: 5 | AK44: I3 | AL44: 1800 | AM44: 1
B45: 43 | C45: 41 | D45: Loir-et-Cher | E45: 41 - Loir-et-Cher | F45: 43 | G45: H2 | H45: Eb | I45: 2 | J45: 3 | K45: -7 | L45: -8 | M45: - | N45: - | O45: -7 | P45: -8 | Q45: - | R45: - | S45: - | T45: - | U45: - | V45: - | W45: - | X45: - | Y45: - | Z45: - | AA45: - | AB45: 5400 | AC45: 59000 | AF45: 82 | AH45: 82 | AK45: I2 | AL45: 1450 | AM45: 1
B46: 44 | C46: 42 | D46: Loire | E46: 42 - Loire | F46: 44 | G46: H1 | H46: Ec | I46: 2 | J46: 12 | K46: -10 | L46: -20 | M46: - | N46: - | O46: -10 | P46: -11 | Q46: -12 | R46: -13 | S46: -14 | T46: -15 | U46: -16 | V46: -17 | W46: -18 | X46: -19 | Y46: -20 | Z46: - | AA46: - | AB46: 4900 | AC46: 63300 | AF46: 83 | AH46: 83 | AI46: 1.5 | AK46: I2 | AL46: 1450 | AM46: 1
B47: 45 | C47: 43 | D47: Haute-Loire | E47: 43 - Haute-Loire | F47: 45 | G47: H1 | H47: Ec | I47: 2 | J47: 13 | K47: -8 | L47: -19 | M47: - | N47: - | O47: -8 | P47: -9 | Q47: -10 | R47: -11 | S47: -12 | T47: -13 | U47: -14 | V47: -15 | W47: -16 | X47: -17 | Y47: -18 | Z47: -19 | AA47: - | AB47: 5000 | AC47: 61000 | AF47: 92 | AH47: 92 | AI47: 1.5 | AK47: I2 | AL47: 1450 | AM47: 1.1
B48: 46 | C48: 44 | D48: Loire Atlantique | E48: 44 - Loire Atlantique | F48: 46 | G48: H2 | H48: Eb | I48: 0 | J48: 2 | K48: -2 | L48: -5 | M48: -2 | N48: -4 | O48: -5 | P48: - | Q48: - | R48: - | S48: - | T48: - | U48: - | V48: - | W48: - | X48: - | Y48: - | Z48: - | AA48: - | AB48: 4900 | AC48: 49700 | AF48: 82 | AH48: 82 | AJ48: 5 | AK48: I2 | AL48: 1450 | AM48: 1
B49: 47 | C49: 45 | D49: Loiret | E49: 45 - Loiret | F49: 47 | G49: H1 | H49: Eb | I49: 2 | J49: 3 | K49: -7 | L49: -8 | M49: - | N49: - | O49: -7 | P49: -8 | Q49: - | R49: - | S49: - | T49: - | U49: - | V49: - | W49: - | X49: - | Y49: - | Z49: - | AA49: - | AB49: 5400 | AC49: 61000 | AF49: 78 | AH49: 78 | AK49: I2 | AL49: 1450 | AM49: 1
B50: 48 | C50: 46 | D50: Lot | E50: 46 - Lot | F50: 48 | G50: H2 | H50: Ec | I50: 2 | J50: 10 | K50: -6 | L50: -14 | M50: - | N50: - | O50: -6 | P50: -7 | Q50: -8 | R50: -9 | S50: -10 | T50: -11 | U50: -12 | V50: -13 | W50: -14 | X50: - | Y50: - | Z50: - | AA50: - | AB50: 4600 | AC50: 51100 | AF50: 88 | AH50: 88 | AI50: 1.5 | AK50: I3 | AL50: 1800 | AM50: 1
B51: 49 | C51: 47 | D51: Lot-et-Garonne | E51: 47 - Lot-et-Garonne | F51: 49 | G51: H2 | H51: Ec | I51: 2 | J51: 3 | K51: -5 | L51: -6 | M51: - | N51: - | O51: -5 | P51: -6 | Q51: - | R51: - | S51: - | T51: - | U51: - | V51: - | W51: - | X51: - | Y51: - | Z51: - | AA51: - | AB51: 5000 | AC51: 49800 | AF51: 87 | AH51: 87 | AK51: I3 | AL51: 1800 | AM51: 1
B52: 50 | C52: 48 | D52: Lozère | E52: 48 - Lozère | F52: 50 | G52: H2 | H52: Ed | I52: 2 | J52: 13 | K52: -8 | L52: -19 | M52: - | N52: - | O52: -8 | P52: -9 | Q52: -10 | R52: -11 | S52: -12 | T52: -13 | U52: -14 | V52: -15 | W52: -16 | X52: -17 | Y52: -18 | Z52: -19 | AA52: - | AB52: 4600 | AC52: 64800 | AF52: 100 | AH52: 100 | AI52: 1.5 | AK52: I3 | AL52: 1800 | AM52: 1
B53: 51 | C53: 49 | D53: Maine-et-Loire | E53: 49 - Maine-et-Loire | F53: 51 | G53: H2 | H53: Eb | I53: 2 | J53: 3 | K53: -7 | L53: -8 | M53: - | N53: - | O53: -7 | P53: -8 | Q53: - | R53: - | S53: - | T53: - | U53: - | V53: - | W53: - | X53: - | Y53: - | Z53: - | AA53: - | AB53: 5200 | AC53: 55000 | AF53: 83 | AH53: 83 | AK53: I2 | AL53: 1450 | AM53: 1
B54: 52 | C54: 50 | D54: Manche | E54: 50 - Manche | F54: 52 | G54: H2 | H54: Ea | I54: 0 | J54: 3 | K54: -2 | L54: -5 | M54: -2 | N54: -2 | O54: -4 | P54: -5 | Q54: - | R54: - | S54: - | T54: - | U54: - | V54: - | W54: - | X54: - | Y54: - | Z54: - | AA54: - | AB54: 5700 | AC54: 49700 | AF54: 76 | AH54: 76 | AJ54: 4 | AK54: I1 | AL54: 1250 | AM54: 1
B55: 53 | C55: 51 | D55: Marne | E55: 51 - Marne | F55: 53 | G55: H1 | H55: Eb | I55: 2 | J55: 3 | K55: -10 | L55: -11 | M55: - | N55: - | O55: -10 | P55: -11 | Q55: - | R55: - | S55: - | T55: - | U55: - | V55: - | W55: - | X55: - | Y55: - | Z55: - | AA55: - | AB55: 5600 | AC55: 65000 | AF55: 74 | AH55: 74 | AK55: I1 | AL55: 1250 | AM55: 1
B56: 54 | C56: 52 | D56: Haute-Marne | E56: 52 - Haute-Marne | F56: 54 | G56: H1 | H56: Eb | I56: 2 | J56: 5 | K56: -12 | L56: -15 | M56: - | N56: - | O56: -12 | P56: -13 | Q56: -14 | R56: -15 | S56: - | T56: - | U56: - | V56: - | W56: - | X56: - | Y56: - | Z56: - | AA56: - | AB56: 5200 | AC56: 62700 | AF56: 73 | AH56: 73 | AI56: 1.5 | AK56: I1 | AL56: 1250 | AM56: 1
B57: 55 | C57: 53 | D57: Mayenne | E57: 53 - Mayenne | F57: 55 | G57: H2 | H57: Eb | I57: 2 | J57: 3 | K57: -7 | L57: -8 | M57: - | N57: - | O57: -7 | P57: -8 | Q57: - | R57: - | S57: - | T57: - | U57: - | V57: - | W57: - | X57: - | Y57: - | Z57: - | AA57: - | AB57: 5200 | AC57: 55200 | AF57: 81 | AH57: 81 | AK57: I2 | AL57: 1450 | AM57: 1
B58: 56 | C58: 54 | D58: Meurthe-et-Moselle | E58: 54 - Meurthe-et-Moselle | F58: 56 | G58: H1 | H58: Eb | I58: 2 | J58: 8 | K58: -15 | L58: -20 | M58: - | N58: - | O58: -15 | P58: -15 | Q58: -16 | R58: -17 | S58: -18 | T58: -19 | U58: -20 | V58: - | W58: - | X58: - | Y58: - | Z58: - | AA58: - | AB58: 5800 | AC58: 66500 | AF58: 69 | AH58: 69 | AK58: I1 | AL58: 1250 | AM58: 1
B59: 57 | C59: 55 | D59: Meuse | E59: 55 - Meuse | F59: 57 | G59: H1 | H59: Eb | I59: 2 | J59: 4 | K59: -12 | L59: -14 | M59: - | N59: - | O59: -12 | P59: -13 | Q59: -14 | R59: - | S59: - | T59: - | U59: - | V59: - | W59: - | X59: - | Y59: - | Z59: - | AA59: - | AB59: 5600 | AC59: 71200 | AF59: 71 | AH59: 71 | AK59: I1 | AL59: 1250 | AM59: 1
B60: 58 | C60: 56 | D60: Morbihan | E60: 56 - Morbihan | F60: 58 | G60: H2 | H60: Ea | I60: 0 | J60: 3 | K60: -2 | L60: -5 | M60: -2 | N60: -4 | O60: -4 | P60: -5 | Q60: - | R60: - | S60: - | T60: - | U60: - | V60: - | W60: - | X60: - | Y60: - | Z60: - | AA60: - | AB60: 5100 | AC60: 48000 | AF60: 79 | AH60: 79 | AJ60: 5 | AK60: I2 | AL60: 1450 | AM60: 1
B61: 59 | C61: 57 | D61: Moselle | E61: 57 - Moselle | F61: 59 | G61: H1 | H61: Eb | I61: 2 | J61: 8 | K61: -15 | L61: -20 | M61: - | N61: - | O61: -15 | P61: -15 | Q61: -16 | R61: -17 | S61: -18 | T61: -19 | U61: -20 | V61: - | W61: - | X61: - | Y61: - | Z61: - | AA61: - | AB61: 5600 | AC61: 68000 | AF61: 69 | AH61: 69 | AK61: I1 | AL61: 1250 | AM61: 1
B62: 60 | C62: 58 | D62: Nièvre | E62: 58 - Nièvre | F62: 60 | G62: H1 | H62: Eb | I62: 2 | J62: 12 | K62: -10 | L62: -20 | M62: - | N62: - | O62: -10 | P62: -11 | Q62: -12 | R62: -13 | S62: -14 | T62: -15 | U62: -16 | V62: -17 | W62: -18 | X62: -19 | Y62: -20 | Z62: - | AA62: - | AB62: 5200 | AC62: 60800 | AF62: 76 | AH62: 76 | AI62: 1.5 | AK62: I2 | AL62: 1450 | AM62: 1
B63: 61 | C63: 59 | D63: Nord | E63: 59 - Nord | F63: 61 | G63: H1 | H63: Ea | I63: 0 | J63: 3 | K63: -7 | L63: -10 | M63: -7 | N63: -9 | O63: -9 | P63: -10 | Q63: - | R63: - | S63: - | T63: - | U63: - | V63: - | W63: - | X63: - | Y63: - | Z63: - | AA63: - | AB63: 5500 | AC63: 60000 | AF63: 69 | AH63: 69 | AJ63: 5 | AK63: I1 | AL63: 1250 | AM63: 1
B64: 62 | C64: 60 | D64: Oise | E64: 60 - Oise | F64: 62 | G64: H1 | H64: Ea | I64: 2 | J64: 3 | K64: -7 | L64: -8 | M64: - | N64: - | O64: -7 | P64: -8 | Q64: - | R64: - | S64: - | T64: - | U64: - | V64: - | W64: - | X64: - | Y64: - | Z64: - | AA64: - | AB64: 5700 | AC64: 61200 | AF64: 75 | AH64: 75 | AK64: I1 | AL64: 1250 | AM64: 1
B65: 63 | C65: 61 | D65: Orne | E65: 61 - Orne | F65: 63 | G65: H1 | H65: Ea | I65: 2 | J65: 4 | K65: -7 | L65: -9 | M65: - | N65: - | O65: -7 | P65: -8 | Q65: -9 | R65: - | S65: - | T65: - | U65: - | V65: - | W65: - | X65: - | Y65: - | Z65: - | AA65: - | AB65: 5600 | AC65: 60900 | AF65: 79 | AH65: 79 | AK65: I1 | AL65: 1250 | AM65: 1
B66: 64 | C66: 62 | D66: Pas-de-Calais | E66: 62 - Pas-de-Calais | F66: 64 | G66: H1 | H66: Ea | I66: 0 | J66: 3 | K66: -7 | L66: -10 | M66: -7 | N66: -9 | O66: -9 | P66: -10 | Q66: - | R66: - | S66: - | T66: - | U66: - | V66: - | W66: - | X66: - | Y66: - | Z66: - | AA66: - | AB66: 5500 | AC66: 60400 | AF66: 69 | AH66: 69 | AJ66: 5 | AK66: I1 | AL66: 1250 | AM66: 1
B67: 65 | C67: 63 | D67: Puy-de-Dôme | E67: 63 - Puy-de-Dôme | F67: 65 | G67: H1 | H67: Ec | I67: 2 | J67: 13 | K67: -8 | L67: -19 | M67: - | N67: - | O67: -8 | P67: -9 | Q67: -10 | R67: -11 | S67: -12 | T67: -13 | U67: -14 | V67: -15 | W67: -16 | X67: -17 | Y67: -18 | Z67: -19 | AA67: - | AB67: 4800 | AC67: 60000 | AF67: 83 | AH67: 83 | AI67: 1.5 | AK67: I2 | AL67: 1450 | AM67: 1.1
B68: 66 | C68: 64 | D68: Pyrénées Atlantiques | E68: =C68&" - "&D68 -> 64 - Pyrénées Atlantiques | F68: 66 | G68: H2 | H68: Ec | I68: 0 | J68: =MATCH(L68,M68:AA68,0)-1 -> 14 | K68: -3 | L68: -12 | M68: -3 | N68: -4 | O68: -5 | P68: -6 | Q68: -7 | R68: -7 | S68: -8 | T68: -8 | U68: -9 | V68: -9 | W68: -10 | X68: -10 | Y68: -11 | Z68: -11 | AA68: -12 | AB68: 4200 | AC68: 38400 | AF68: 98 | AH68: 98 | AI68: 1.8 | AJ68: 5 | AK68: I3 | AL68: 1800 | AM68: 1.1
B69: 67 | C69: 65 | D69: Hautes-Pyrénées | E69: 65 - Hautes-Pyrénées | F69: 67 | G69: H2 | H69: Ec | I69: 2 | J69: 14 | K69: =MAX(M69:AA69) -> -5 | L69: -12 | M69: - | N69: - | O69: -5 | P69: -6 | Q69: -7 | R69: -7 | S69: -8 | T69: -8 | U69: -9 | V69: -9 | W69: -10 | X69: -10 | Y69: -11 | Z69: -11 | AA69: -12 | AB69: 4600 | AC69: 52500 | AF69: 98 | AH69: =IF(AG69=0,AF69,(AF69+AG69)/2) -> 98 | AI69: 1.5 | AK69: I3 | AL69: 1800 | AM69: 1
B70: 68 | C70: 66 | D70: Pyrénées-orientales | E70: 66 - Pyrénées-orientales | F70: 68 | G70: H3 | H70: Ed | I70: 0 | J70: 14 | K70: -2 | L70: -12 | M70: -2 | N70: -4 | O70: -5 | P70: -6 | Q70: -7 | R70: -7 | S70: -8 | T70: -8 | U70: -9 | V70: -9 | W70: -10 | X70: -10 | Y70: -11 | Z70: -11 | AA70: -12 | AB70: 3700 | AC70: 36000 | AD70: >30km de la mer | AE70: <30km de la mer | AF70: 140 | AG70: 127 | AH70: 133.5 | AI70: 1.8 | AJ70: 5 | AK70: I4 | AL70: 2200 | AM70: 1.1
B71: 69 | C71: 67 | D71: Bas-Rhin | E71: 67 - Bas-Rhin | F71: 69 | G71: H1 | H71: Eb | I71: 2 | J71: 8 | K71: -15 | L71: =MIN(M71:AA71) -> -20 | M71: - | N71: - | O71: -15 | P71: -15 | Q71: -16 | R71: -17 | S71: -18 | T71: -19 | U71: -20 | V71: - | W71: - | X71: - | Y71: - | Z71: - | AA71: - | AB71: 5200 | AC71: 64800 | AF71: 66 | AH71: 66 | AI71: 1.5 | AK71: I1 | AL71: 1250 | AM71: 1
B72: 70 | C72: 68 | D72: Haut-Rhin | E72: 68 - Haut-Rhin | F72: 70 | G72: H1 | H72: Eb | I72: 2 | J72: 8 | K72: -15 | L72: -20 | M72: - | N72: - | O72: -15 | P72: -15 | Q72: -16 | R72: -17 | S72: -18 | T72: -19 | U72: -20 | V72: - | W72: - | X72: - | Y72: - | Z72: - | AA72: - | AB72: 5300 | AC72: 64000 | AF72: 69 | AH72: 69 | AI72: 1.5 | AK72: I1 | AL72: 1250 | AM72: 1
B73: 71 | C73: 69 | D73: Rhône | E73: 69 - Rhône | F73: 71 | G73: H1 | H73: Ec | I73: 2 | J73: 12 | K73: -10 | L73: -20 | M73: - | N73: - | O73: -10 | P73: -11 | Q73: -12 | R73: -13 | S73: -14 | T73: -15 | U73: -16 | V73: -17 | W73: -18 | X73: -19 | Y73: -20 | Z73: - | AA73: - | AB73: 4900 | AC73: 58800 | AF73: 80 | AH73: 80 | AI73: 1.5 | AK73: I2 | AL73: 1450 | AM73: 1
B74: 72 | C74: 70 | D74: Haute-Saône | E74: 70 - Haute-Saône | F74: 72 | G74: H1 | H74: Eb | I74: 2 | J74: 12 | K74: -10 | L74: -20 | M74: - | N74: - | O74: -10 | P74: -11 | Q74: -12 | R74: -13 | S74: -14 | T74: -15 | U74: -16 | V74: -17 | W74: -18 | X74: -19 | Y74: -20 | Z74: - | AA74: - | AB74: 5300 | AC74: 65000 | AF74: 71 | AH74: 71 | AI74: 1.5 | AK74: I1 | AL74: 1250 | AM74: 1
B75: 73 | C75: 71 | D75: Saône-et-Loire | E75: 71 - Saône-et-Loire | F75: 73 | G75: H1 | H75: Ec | I75: 2 | J75: 12 | K75: -10 | L75: -20 | M75: - | N75: - | O75: -10 | P75: -11 | Q75: -12 | R75: -13 | S75: -14 | T75: -15 | U75: -16 | V75: -17 | W75: -18 | X75: -19 | Y75: -20 | Z75: - | AA75: - | AB75: 5200 | AC75: 62400 | AF75: 74 | AH75: 74 | AI75: 1.5 | AK75: I2 | AL75: 1450 | AM75: 1
B76: 74 | C76: 72 | D76: Sarthe | E76: 72 - Sarthe | F76: 74 | G76: H2 | H76: Eb | I76: 2 | J76: 3 | K76: -7 | L76: -8 | M76: - | N76: - | O76: -7 | P76: -8 | Q76: - | R76: - | S76: - | T76: - | U76: - | V76: - | W76: - | X76: - | Y76: - | Z76: - | AA76: - | AB76: 5300 | AC76: 57000 | AF76: 82 | AH76: 82 | AK76: I2 | AL76: 1450 | AM76: 1
B77: 75 | C77: 73 | D77: Savoie | E77: 73 - Savoie | F77: 75 | G77: H1 | H77: Ec | I77: 2 | J77: 12 | K77: -10 | L77: -20 | M77: - | N77: - | O77: -10 | P77: -11 | Q77: -12 | R77: -13 | S77: -14 | T77: -15 | U77: -16 | V77: -17 | W77: -18 | X77: -19 | Y77: -20 | Z77: - | AA77: - | AB77: 4600 | AC77: 67100 | AF77: 100 | AH77: 100 | AI77: 1.5 | AK77: I2 | AL77: 1450 | AM77: 1.1
B78: 76 | C78: 74 | D78: Haute-Savoie | E78: 74 - Haute-Savoie | F78: 76 | G78: H1 | H78: Ec | I78: 2 | J78: 12 | K78: -10 | L78: -20 | M78: - | N78: - | O78: -10 | P78: -11 | Q78: -12 | R78: -13 | S78: -14 | T78: -15 | U78: -16 | V78: -17 | W78: -18 | X78: -19 | Y78: -20 | Z78: - | AA78: - | AB78: 4900 | AC78: 64100 | AF78: 80 | AH78: 80 | AI78: 1.5 | AK78: I2 | AL78: 1450 | AM78: 1
B79: 77 | C79: 75 | D79: Paris | E79: 75 - Paris | F79: 77 | G79: H1 | H79: Eb | I79: 2 | J79: 2 | K79: -5 | L79: -5 | M79: - | N79: - | O79: -5 | P79: - | Q79: - | R79: - | S79: - | T79: - | U79: - | V79: - | W79: - | X79: - | Y79: - | Z79: - | AA79: - | AB79: 5100 | AC79: 55000 | AF79: 66 | AH79: 66 | AK79: I1 | AL79: 1250 | AM79: 1
B80: 78 | C80: 76 | D80: Seine-Maritime | E80: 76 - Seine-Maritime | F80: 78 | G80: H1 | H80: Ea | I80: 0 | J80: 3 | K80: -5 | L80: -8 | M80: -5 | N80: -7 | O80: -7 | P80: -8 | Q80: - | R80: - | S80: - | T80: - | U80: - | V80: - | W80: - | X80: - | Y80: - | Z80: - | AA80: - | AB80: 5500 | AC80: 58000 | AF80: 76 | AH80: 76 | AJ80: 5 | AK80: I1 | AL80: 1250 | AM80: 1
B81: 79 | C81: 77 | D81: Seine-et-Marne | E81: 77 - Seine-et-Marne | F81: 79 | G81: H1 | H81: Eb | I81: 2 | J81: 3 | K81: -7 | L81: -8 | M81: - | N81: - | O81: -7 | P81: -8 | Q81: - | R81: - | S81: - | T81: - | U81: - | V81: - | W81: - | X81: - | Y81: - | Z81: - | AA81: - | AB81: 5500 | AC81: 60000 | AF81: 72 | AH81: 72 | AK81: I1 | AL81: 1250 | AM81: 1
B82: 80 | C82: 78 | D82: Yvelines | E82: 78 - Yvelines | F82: 80 | G82: H1 | H82: Eb | I82: 2 | J82: 2 | K82: -7 | L82: -7 | M82: - | N82: - | O82: -7 | P82: - | Q82: - | R82: - | S82: - | T82: - | U82: - | V82: - | W82: - | X82: - | Y82: - | Z82: - | AA82: - | AB82: 5800 | AC82: 63100 | AF82: 72 | AH82: 72 | AK82: I1 | AL82: 1250 | AM82: 1
B83: 81 | C83: 79 | D83: Deux-Sèvres | E83: 79 - Deux-Sèvres | F83: 81 | G83: H2 | H83: Eb | I83: 2 | J83: 3 | K83: -7 | L83: -8 | M83: - | N83: - | O83: -7 | P83: -8 | Q83: - | R83: - | S83: - | T83: - | U83: - | V83: - | W83: - | X83: - | Y83: - | Z83: - | AA83: - | AB83: 5300 | AC83: 50400 | AF83: 85 | AH83: 85 | AK83: I2 | AL83: 1450 | AM83: 1
B84: 82 | C84: 80 | D84: Somme | E84: 80 - Somme | F84: 82 | G84: H1 | H84: Ea | I84: 0 | J84: 3 | K84: -7 | L84: -10 | M84: -7 | N84: -8 | O84: -9 | P84: -10 | Q84: - | R84: - | S84: - | T84: - | U84: - | V84: - | W84: - | X84: - | Y84: - | Z84: - | AA84: - | AB84: 5800 | AC84: 62500 | AF84: 73 | AH84: 73 | AJ84: 5 | AK84: I1 | AL84: 1250 | AM84: 1
B85: 83 | C85: 81 | D85: Tarn | E85: 81 - Tarn | F85: 83 | G85: H2 | H85: Ec | I85: 2 | J85: 14 | K85: -5 | L85: -12 | M85: - | N85: - | O85: -5 | P85: -6 | Q85: -7 | R85: -7 | S85: -8 | T85: -8 | U85: -9 | V85: -9 | W85: -10 | X85: -10 | Y85: -11 | Z85: -11 | AA85: -12 | AB85: 4400 | AC85: 40000 | AF85: 100 | AH85: 100 | AI85: 1.5 | AK85: I3 | AL85: 1800 | AM85: 1
B86: 84 | C86: 82 | D86: Tarn-et-Garonne | E86: 82 - Tarn-et-Garonne | F86: 84 | G86: H2 | H86: Ec | I86: 1 | J86: 3 | K86: -5 | L86: -6 | M86: - | N86: - | O86: -5 | P86: -6 | Q86: - | R86: - | S86: - | T86: - | U86: - | V86: - | W86: - | X86: - | Z86: - | AA86: - | AB86: 4800 | AC86: 49200 | AF86: 90 | AH86: 90 | AK86: I3 | AL86: 1800 | AM86: 1
B87: 85 | C87: 83 | D87: Var | E87: 83 - Var | F87: 85 | G87: H3 | H87: Ed | I87: 1 | J87: 14 | K87: 0 | L87: -12 | M87: 0 | N87: -2 | O87: -5 | P87: -6 | Q87: -7 | R87: -7 | S87: -8 | T87: -8 | U87: -9 | V87: -9 | W87: -10 | X87: -10 | Y87: -11 | Z87: -11 | AA87: -12 | AB87: 3900 | AC87: 36000 | AF87: 132 | AH87: 132 | AI87: 1.8 | AJ87: 5 | AK87: I4 | AL87: 2200 | AM87: 1.1
B88: 86 | C88: 84 | D88: Vaucluse | E88: 84 - Vaucluse | F88: 86 | G88: H2 | H88: Ed | I88: 2 | J88: 10 | K88: -6 | L88: -14 | M88: - | N88: - | O88: -6 | P88: -7 | Q88: -8 | R88: -9 | S88: -10 | T88: -11 | U88: -12 | V88: -13 | W88: -14 | X88: - | Y88: - | Z88: - | AA88: - | AB88: 4600 | AC88: 44000 | AF88: 126 | AH88: 126 | AI88: 1.5 | AK88: I4 | AL88: 2200 | AM88: 1.1
B89: 87 | C89: 85 | D89: Vendée | E89: 85 - Vendée | F89: 87 | G89: H2 | H89: Eb | I89: 0 | J89: 3 | K89: -2 | L89: -6 | M89: -2 | N89: -4 | O89: -5 | P89: -6 | Q89: - | R89: - | S89: - | T89: - | U89: - | V89: - | W89: - | X89: - | Y89: - | Z89: - | AA89: - | AB89: 5200 | AC89: 50000 | AF89: 85 | AH89: 85 | AJ89: 5 | AK89: I3 | AL89: 1800 | AM89: 1
B90: 88 | C90: 86 | D90: Vienne | E90: 86 - Vienne | F90: 88 | G90: H2 | H90: Eb | I90: 2 | J90: 3 | K90: -7 | L90: -8 | M90: - | N90: - | O90: -7 | P90: -8 | Q90: - | R90: - | S90: - | T90: - | U90: - | V90: - | W90: - | X90: - | Y90: - | Z90: - | AA90: - | AB90: 5300 | AC90: 56000 | AF90: 86 | AH90: 86 | AK90: I2 | AL90: 1450 | AM90: 1
B91: 89 | C91: 87 | D91: Haute-Vienne | E91: 87 - Haute-Vienne | F91: 89 | G91: H1 | H91: Ec | I91: 2 | J91: 13 | K91: -8 | L91: -19 | M91: - | N91: - | O91: -8 | P91: -9 | Q91: -10 | R91: -11 | S91: -12 | T91: -13 | U91: -14 | V91: -15 | W91: -16 | X91: -17 | Y91: -18 | Z91: -19 | AA91: - | AB91: 5200 | AC91: 60400 | AF91: 86 | AH91: 86 | AI91: 1.5 | AK91: I2 | AL91: 1450 | AM91: 1.1
B92: 90 | C92: 88 | D92: Vosges | E92: 88 - Vosges | F92: 90 | G92: H1 | H92: Eb | I92: 2 | J92: 8 | K92: -15 | L92: -20 | M92: - | N92: - | O92: -15 | P92: -15 | Q92: -16 | R92: -17 | S92: -18 | T92: -19 | U92: -20 | V92: - | W92: - | X92: - | Y92: - | Z92: - | AA92: - | AB92: 5300 | AC92: 65000 | AF92: 71 | AH92: 71 | AI92: 1.5 | AK92: I1 | AL92: 1250 | AM92: 1
B93: 91 | C93: 89 | D93: Yonne | E93: 89 - Yonne | F93: 91 | G93: H1 | H93: Eb | I93: 2 | J93: 6 | K93: -10 | L93: -14 | M93: - | N93: - | O93: -10 | P93: -11 | Q93: -12 | R93: -13 | S93: -14 | T93: - | U93: - | V93: - | W93: - | X93: - | Y93: - | Z93: - | AA93: - | AB93: 5400 | AC93: 60700 | AF93: 76 | AH93: 76 | AK93: I2 | AL93: 1450 | AM93: 1
B94: 92 | C94: 90 | D94: Territoire-de-Belfort | E94: 90 - Territoire-de-Belfort | F94: 92 | G94: H1 | H94: Eb | I94: 2 | J94: 8 | K94: -15 | L94: -20 | M94: - | N94: - | O94: -15 | P94: -15 | Q94: -16 | R94: -17 | S94: -18 | T94: -19 | U94: -20 | V94: - | W94: - | X94: - | Y94: - | Z94: - | AA94: - | AB94: 5300 | AC94: 67000 | AF94: 70 | AH94: 70 | AI94: 1.5 | AK94: I1 | AL94: 1250 | AM94: 1
B95: 93 | C95: 91 | D95: Essone | E95: 91 - Essone | F95: 93 | G95: H1 | H95: Eb | I95: 2 | J95: 2 | K95: -7 | L95: -7 | M95: - | N95: - | O95: -7 | P95: - | Q95: - | R95: - | S95: - | T95: - | U95: - | V95: - | W95: - | X95: - | Y95: - | Z95: - | AA95: - | AB95: 5500 | AC95: 61000 | AF95: 72 | AH95: 72 | AK95: I1 | AL95: 1250 | AM95: 1
B96: 94 | C96: 92 | D96: Hauts-de-Seine | E96: 92 - Hauts-de-Seine | F96: 94 | G96: H1 | H96: Eb | I96: 2 | J96: 2 | K96: -7 | L96: -7 | M96: - | N96: - | O96: -7 | P96: - | Q96: - | R96: - | S96: - | T96: - | U96: - | V96: - | W96: - | X96: - | Y96: - | Z96: - | AA96: - | AB96: 5300 | AC96: 58000 | AF96: 66 | AH96: 66 | AK96: I1 | AL96: 1250 | AM96: 1
B97: 95 | C97: 93 | D97: Seine-Saint-Denis | E97: 93 - Seine-Saint-Denis | F97: 95 | G97: H1 | H97: Eb | I97: 2 | J97: 2 | K97: -7 | L97: -7 | M97: - | N97: - | O97: -7 | P97: - | Q97: - | R97: - | S97: - | T97: - | U97: - | V97: - | W97: - | X97: - | Y97: - | Z97: - | AA97: - | AB97: 5300 | AC97: 58000 | AF97: 66 | AH97: 66 | AK97: I1 | AL97: 1250 | AM97: 1
B98: 96 | C98: 94 | D98: Val-de-Marne | E98: 94 - Val-de-Marne | F98: 96 | G98: H1 | H98: Eb | I98: 2 | J98: 2 | K98: -7 | L98: -7 | M98: - | N98: - | O98: -7 | P98: - | Q98: - | R98: - | S98: - | T98: - | U98: - | V98: - | W98: - | X98: - | Y98: - | Z98: - | AA98: - | AB98: 5300 | AC98: 58000 | AF98: 66 | AH98: 66 | AK98: I1 | AL98: 1250 | AM98: 1
B99: 97 | C99: 95 | D99: Val-d'Oise | E99: 95 - Val-d'Oise | F99: 97 | G99: H1 | H99: Eb | I99: 2 | J99: 2 | K99: -7 | L99: -7 | M99: - | N99: - | O99: -7 | P99: - | Q99: - | R99: - | S99: - | T99: - | U99: - | V99: - | W99: - | X99: - | Y99: - | Z99: - | AA99: - | AB99: 5500 | AC99: 61000 | AF99: 72 | AH99: 72 | AK99: I1 | AL99: 1250 | AM99: 1
B103: Type d'habitation | C103: Coeff G | D103: =Neuf!G26 -> Conforme à la RT 2000 (0,9) | G103: Conso ecs | H103: L/j à 50°C | I103: =Neuf!E29 -> Normale (50 l/j à 55°C) | L103: Type Solaire | N103: =Neuf!C41 -> Aucune
A104: 1 | B104: Conforme à la RT 2000 (0,9) | C104: 0.9 | D104: =IF(D103=B104,1,IF(D103=B105,2,IF(D103=B106,3,IF(D103=B107,4,IF(D103=B108,5))))) -> 1 | F104: 1 | G104: Econome (35 l/j à 55°C) | H104: 35 | I104: =IF(I103=G104,1,IF(I103=G105,2,IF(I103=G106,3,IF(I103=L107,4,IF(I103=L108,5))))) -> 2 | K104: 1 | L104: Aucune | M104: =I109 -> 0 | N104: =IF(N103=L104,1,IF(N103=L105,2,IF(N103=L106,3))) -> 1
A105: 2 | B105: Conforme à la RT 2005 (0,8) | C105: 0.8 | F105: 2 | G105: Normale (50 l/j à 55°C) | H105: 50 | K105: 2 | L105: CESI | M105: =I109 -> 0
A106: 3 | B106: Maison à excellente isolation (0,6) | C106: 0.6 | F106: 3 | G106: Confortable (70 l/j à 55°C) | H106: 70 | K106: 3 | L106: SSC | M106: =I109 -> 0
A107: 4 | B107: Maison bioclimatique (0,4) | C107: 0.4
B111: Calculs besoins | D111: T ext base à 0 | E111: Abonnement GAZ | I111: Abonnement Elec
B112: Ligne temp | C112: =VLOOKUP(Neuf!C20,'calculs neuf'!E4:F99,2,FALSE) -> 2 | D112: =VLOOKUP(C112,F4:AA99,10,FALSE) -> -10 | E112: Rentabilité B2I/B1 | G112: =('Coûts Energies'!H33-'Coûts Energies'!H32)/('Coûts Energies'!D32-'Coûts Energies'!D33+0.001)*100 -> -84.40321231 | H112: kWh | I112: Tout elec | J112: =IF(C118+6<12,'Coûts Energies'!H20,IF(C118+6<15,'Coûts Energies'!H21,IF(C118+6<18,'Coûts Energies'!H22,IF(C118+6<24,'Coûts Energies'!H23,IF(C118+6<30,'Coûts Energies'!H24,'Coûts Energies'!H25))))) -> 0
B113: Colonne temp | C113: =AR4 -> 1 | I113: PAC Air | J113: =IF(0.75*C118+6<12,'Coûts Energies'!H20,IF(0.75*C118+6<15,'Coûts Energies'!H21,IF(0.75*C118+6<18,'Coûts Energies'!H22,IF(0.75*C118+6<24,'Coûts Energies'!H23,IF(0.75*C118+6<30,'Coûts Energies'!H24,'Coûts Energies'!H25))))) -> 0
B114: Temp. Ext base | C114: =VLOOKUP(C112,F4:AA99,C113+9,FALSE) -> -10 | D114: Nb heures | E114: Gaz Condensation | G114: =C122/C137/0.9 -> 23351.68196 | H114: kWh | I114: PAC Sol | J114: =IF(C118/3+6<12,'Coûts Energies'!H20,IF(C118/3+6<15,'Coûts Energies'!H21,IF(C118/3+6<18,'Coûts Energies'!H22,IF(C118/3+6<24,'Coûts Energies'!H23,IF(C118/3+6<30,'Coûts Energies'!H24,'Coûts Energies'!H25))))) -> 0
B115: djh | C115: =VLOOKUP(C112,F4:AM99,24,FALSE)+D115*(Neuf!C32-19) -> 67900 | D115: =VLOOKUP(C112,F4:AM99,23,FALSE) -> 4900 | E115: Cout Abonnement | G115: =IF(G114<G112,'Coûts Energies'!H32,'Coûts Energies'!H33) -> 401.52 | H115: €
B116: Coeff G | C116: =VLOOKUP(D104,A104:C107,3,FALSE) -> 0.9 | E116: Cout Energie | G116: =IF(G114<G112,'Coûts Energies'!D32,'Coûts Energies'!D33) -> 335.76 | H116: €
B117: Volume | C117: =Neuf!C26*Neuf!E26 -> 375 | D117: m3
B118: Déperditions | C118: =ROUND(C116*C117*(Neuf!C32-C114)/1000,1) -> 10.1 | D118: kW | E118: Gaz BT | G118: =C122/C138/0.9 -> 27369.17563 | H118: kWh
B119: Besoins annuels chauffage | C119: =ROUND(0.75*C116*C117*C115/1000/0.9*(Neuf!C32-C114)/(Neuf!C32-D112),0) -> 19097 | D119: kWh | E119: Cout Abonnement | G119: =IF(G118<G112,'Coûts Energies'!H32,'Coûts Energies'!H33) -> 401.52 | H119: €
B120: Conso ECS | C120: =VLOOKUP(I104,F104:H106,3,FALSE) -> 50 | D120: l/j | E120: Cout Energie | G120: =IF(G118<G112,'Coûts Energies'!D32,'Coûts Energies'!D33) -> 335.76 | H120: €
B121: Besoins annuels ECS | C121: =ROUND(Neuf!C29*C120*365/1000*1.16*45,0) -> 3811 | D121: kWh
B122: Besoins annuels total | C122: =C121+C119 -> 22908 | D122: kWh
B124: Tableau correspondances énergétiques
B125: 1 litre fioul | C125: 10 | D125: kWh PCI | E125: =C125/0.94 -> 10.63829787 | F125: kWh PCS | G125: =E125*0.3 -> 3.191489362 | H125: kg CO2
B126: 1 m3 gaz naturel | C126: 10 | D126: kWh PCI | E126: =C126/0.9 -> 11.11111111 | F126: kWh PCS | G126: =E126*0.23 -> 2.555555556 | H126: kg CO2
B127: 1 kg propane | C127: 12.8 | D127: kWh PCI | E127: =C127/0.92 -> 13.91304348 | F127: kWh PCS
B128: 1 kg Granulés | C128: 4.8 | D128: kWh PCI
B129: 1 Stère de bûche | C129: 2000 | D129: kWh PCI | F129: 1 kWh élec | G129: 0.18 | H129: kg CO2
B131: Type d'Installation | C131: Rendement | D131: Surcoût abonnement | E131: Coût ECS | F131: Coût chauffage | G131: Coût total | H131: Coût total avec CESI | I131: Coût total avec SSC | K131: Coût ECS graphique | L131: Coût chauffage graph | M131: Somme
B132: Tout électrique | C132: 1 | D132: =J112-'Coûts Energies'!D20 -> -15.97 | E132: =C121/C132*'Coûts Energies'!H15/100 -> 685.2178 | F132: =C119/C132*(1/3*'Coûts Energies'!H15+2/3*'Coûts Energies'!H14)/100+D132 -> 1128.576867 | G132: =E132+F132 -> 1813.794667 | H132: =E132*(100-Neuf!$E$41)/100+F132 -> 1402.663987 | I132: =E132*(100-Neuf!$E$41)/100+(F132-D132)*(100-Neuf!$G$41)/100+D132 -> 1173.754613 | K132: =IF($N$104=1,E132,IF($N$104=2,H132-F132,IF($N$104=3,H132-F132))) -> 685.2178 | L132: =IF($N$104=1,F132,IF($N$104=2,F132,IF($N$104=3,(F132-D132)*(100-OErtliNERGY!$F$70)/100+D132))) -> 1128.576867 | M132: =K132+L132 -> 1813.794667
B133: PAC Air/Eau | C133: 3.5 | D133: =J113-'Coûts Energies'!D20 -> -15.97 | E133: =C121/C132*'Coûts Energies'!H15/100 -> 685.2178 | F133: =C119/C133*(1/3*'Coûts Energies'!H15+2/3*'Coûts Energies'!H14)/100+D133 -> 311.0433905 | G133: =E133+F133 -> 996.2611905 | H133: =E133*(100-Neuf!$E$41)/100+F133 -> 585.1305105 | I133: =E133*(100-Neuf!$E$41)/100+(F133-D133)*(100-Neuf!$G$41)/100+D133 -> 519.7278324 | K133: =IF($N$104=1,E133,IF($N$104=2,H133-F133,IF($N$104=3,H133-F133))) -> 685.2178 | L133: =IF($N$104=1,F133,IF($N$104=2,F133,IF($N$104=3,(F133-D133)*(100-OErtliNERGY!$F$70)/100+D133))) -> 311.0433905 | M133: =K133+L133 -> 996.2611905
B134: PAC Sol-Eau/Eau | C134: 4 | D134: =J114-'Coûts Energies'!D20 -> -15.97 | E134: =C121/C132*'Coûts Energies'!H15/100 -> 685.2178 | F134: =C119/C134*(1/3*'Coûts Energies'!H15+2/3*'Coûts Energies'!H14)/100+D134 -> 270.1667167 | G134: =E134+F134 -> 955.3845167 | H134: =E134*(100-Neuf!$E$41)/100+F134 -> 544.2538367 | I134: =E134*(100-Neuf!$E$41)/100+(F134-D134)*(100-Neuf!$G$41)/100+D134 -> 487.0264933 | K134: 685.2178 | L134: =IF($N$104=1,F134,IF($N$104=2,F134,IF($N$104=3,(F134-D134)*(100-OErtliNERGY!$F$70)/100+D134))) -> 270.1667167 | M134: 955.3845167
B135: Bois bûches | C135: 0.85 | D135: 0 | E135: =C121/C135/C129*'Coûts Energies'!D56 -> 0 | F135: =C119/C135/C129*'Coûts Energies'!D56+D135 -> 0 | G135: =E135+F135 -> 0 | H135: =E135*(100-Neuf!$E$41)/100+F135 -> 0 | I135: =E135*(100-Neuf!$E$41)/100+(F135-D135)*(100-Neuf!$G$41)/100+D135 -> 0 | K135: 0 | L135: =IF($N$104=1,F135,IF($N$104=2,F135,IF($N$104=3,(F135-D135)*(100-OErtliNERGY!$F$70)/100+D135))) -> 0 | M135: 0
B136: Bois granulés | C136: 0.85 | D136: 0 | E136: =C121/C136/C128/1000*'Coûts Energies'!H56 -> 0 | F136: =C119/C136/C128/1000*'Coûts Energies'!H56+D136 -> 0 | G136: =E136+F136 -> 0 | H136: =E136*(100-Neuf!$E$41)/100+F136 -> 0 | I136: =E136*(100-Neuf!$E$41)/100+(F136-D136)*(100-Neuf!$G$41)/100+D136 -> 0 | K136: 0 | L136: =IF($N$104=1,F136,IF($N$104=2,F136,IF($N$104=3,(F136-D136)*(100-OErtliNERGY!$F$70)/100+D136))) -> 0 | M136: 0
B137: Gaz Condensation | C137: 1.09 | D137: =G115 -> 401.52 | E137: =C121/C137*G116/0.9/100 -> 13043.64281 | F137: =C119/C137*G116/0.9/100+D137 -> 65763.48453 | G137: =E137+F137 -> 78807.12734 | H137: =E137*(100-Neuf!$E$41)/100+F137 -> 70980.94165 | I137: =E137*(100-Neuf!$E$41)/100+(F137-D137)*(100-Neuf!$G$41)/100+D137 -> 57908.54875 | K137: 13043.64281 | L137: =IF($N$104=1,F137,IF($N$104=2,F137,IF($N$104=3,(F137-D137)*(100-OErtliNERGY!$F$70)/100+D137))) -> 65763.48453 | M137: 78807.12734
B138: Gaz | C138: 0.93 | D138: =G119 -> 401.52 | E138: =C121/C138*G120/0.9/100 -> 15287.71039 | F138: =C119/C138*G120/0.9/100+D138 -> 77008.55369 | G138: 92296.26409 | H138: =E138*(100-Neuf!$E$41)/100+F138 -> 83123.63785 | I138: =E138*(100-Neuf!$E$41)/100+(F138-D138)*(100-Neuf!$G$41)/100+D138 -> 67802.23111 | K138: 15287.71039 | L138: =IF($N$104=1,F138,IF($N$104=2,F138,IF($N$104=3,(F138-D138)*(100-OErtliNERGY!$F$70)/100+D138))) -> 77008.55369 | M138: 92296.26409
B139: Fioul condensation | C139: 1.04 | D139: 0 | E139: =C121/C139*'Coûts Energies'!D40/100 -> 0 | F139: =C119/C139*'Coûts Energies'!D40/100+D139 -> 0 | G139: 0 | H139: =E139*(100-Neuf!$E$41)/100+F139 -> 0 | I139: =E139*(100-Neuf!$E$41)/100+(F139-D139)*(100-Neuf!$G$41)/100+D139 -> 0 | K139: 0 | L139: =IF($N$104=1,F139,IF($N$104=2,F139,IF($N$104=3,(F139-D139)*(100-OErtliNERGY!$F$70)/100+D139))) -> 0 | M139: 0
B140: Fioul | C140: 0.93 | D140: 0 | E140: =C121/C140*'Coûts Energies'!D40/100 -> 0 | F140: =C119/C140*'Coûts Energies'!D40/100+D140 -> 0 | G140: 0 | H140: =E140*(100-Neuf!$E$41)/100+F140 -> 0 | I140: =E140*(100-Neuf!$E$41)/100+(F140-D140)*(100-Neuf!$G$41)/100+D140 -> 0 | K140: 0 | L140: =IF($N$104=1,F140,IF($N$104=2,F140,IF($N$104=3,(F140-D140)*(100-OErtliNERGY!$F$70)/100+D140))) -> 0 | M140: 0
B141: Propane condensation | C141: 1.07 | D141: 0 | E141: =C121/C141*'Coûts Energies'!D48/100 -> 0 | F141: =C119/C141*'Coûts Energies'!D48/100+D141 -> 0 | G141: 0 | H141: =E141*(100-Neuf!$E$41)/100+F141 -> 0 | I141: =E141*(100-Neuf!$E$41)/100+(F141-D141)*(100-Neuf!$G$41)/100+D141 -> 0 | K141: 0 | L141: =IF($N$104=1,F141,IF($N$104=2,F141,IF($N$104=3,(F141-D141)*(100-OErtliNERGY!$F$70)/100+D141))) -> 0 | M141: 0
B142: Propane | C142: 0.93 | D142: 0 | E142: =C121/C142*'Coûts Energies'!D48/100 -> 0 | F142: =C119/C142*'Coûts Energies'!D48/100+D142 -> 0 | G142: 0 | H142: =E142*(100-Neuf!$E$41)/100+F142 -> 0 | I142: =E142*(100-Neuf!$E$41)/100+(F142-D142)*(100-Neuf!$G$41)/100+D142 -> 0 | K142: 0 | L142: =IF($N$104=1,F142,IF($N$104=2,F142,IF($N$104=3,(F142-D142)*(100-OErtliNERGY!$F$70)/100+D142))) -> 0 | M142: 0
